NUMERO_MANDATO;IMPORTO_RIGA;BENEFICIARIO;CIG;DATA_MANDATO;CAPITOLO;ARTICOLO;TITOLO;DESCR_TITOLO;DESCR_LIVELLO_II;DESCR_LIVELLO_III;DESCR_LIVELLO_IV;DESCR_LIVELLO_V
2;439,2;LAZZARI SRL;ZA2391639D;17/01/2023;1089;0;1;Spese correnti;Acquisto di beni e servizi;Acquisto di beni;Altri beni di consumo;Altri beni e materiali di consumo n.a.c.
3;1.471,98;TESTONI SRL;ZBF3930C21;17/01/2023;1366;0;1;Spese correnti;Acquisto di beni e servizi;Acquisto di beni;Altri beni di consumo;Carburanti, combustibili e lubrificanti
4;362,34;SA FERULA Societa Cooperativa;Z213938A2F;17/01/2023;1089;0;1;Spese correnti;Acquisto di beni e servizi;Acquisto di beni;Altri beni di consumo;Altri beni e materiali di consumo n.a.c.
5;1.754,00;S.I.P.A.L. SRL;ZD12FFA1D6;17/01/2023;1045;1;1;Spese correnti;Acquisto di beni e servizi;Acquisto di servizi;Acquisto di servizi per formazione e addestramento del personale dell'ente;Acquisto di servizi per formazione obbligatoria
6;2.333,30;AGRINOA SOCIETA' AGRICOLA COOPERATIVA SOCIALE;Z9D35A5407;17/01/2023;1742;2;1;Spese correnti;Acquisto di beni e servizi;Acquisto di servizi;Altri servizi;Altri servizi diversi n.a.c.
7;99;LA MERIDIANA S.N.C. DI TRONCI E. & C.;ZC8392CBE2;17/01/2023;1010;0;1;Spese correnti;Acquisto di beni e servizi;Acquisto di beni;Altri beni di consumo;Altri beni e materiali di consumo n.a.c.
8;1.459,00;COMUNE DI GIBA; ;17/01/2023;1920;10;1;Spese correnti;Acquisto di beni e servizi;Acquisto di servizi;Altri servizi;Altri servizi diversi n.a.c.
9;102,55;REGIONE AUTONOMA DELLA SARDEGNA; ;17/01/2023;1059;0;1;Spese correnti;Acquisto di beni e servizi;Acquisto di servizi;Utenze e canoni;Acqua
39;426,98;ABBANOA S.P.A.; ;19/01/2023;1367;0;1;Spese correnti;Acquisto di beni e servizi;Acquisto di servizi;Utenze e canoni;Acqua
40;35,56;ABBANOA S.P.A.; ;19/01/2023;1087;3;1;Spese correnti;Acquisto di beni e servizi;Acquisto di servizi;Utenze e canoni;Acqua
40;72,17;ABBANOA S.P.A.; ;19/01/2023;1087;3;1;Spese correnti;Acquisto di beni e servizi;Acquisto di servizi;Utenze e canoni;Acqua
40;126,94;ABBANOA S.P.A.; ;19/01/2023;1087;3;1;Spese correnti;Acquisto di beni e servizi;Acquisto di servizi;Utenze e canoni;Acqua
41;52,62;ABBANOA S.P.A.; ;19/01/2023;1387;0;1;Spese correnti;Acquisto di beni e servizi;Acquisto di servizi;Utenze e canoni;Acqua
42;55,47;ABBANOA S.P.A.; ;19/01/2023;1526;1;1;Spese correnti;Acquisto di beni e servizi;Acquisto di servizi;Utenze e canoni;Acqua
42;109,01;ABBANOA S.P.A.; ;19/01/2023;1526;1;1;Spese correnti;Acquisto di beni e servizi;Acquisto di servizi;Utenze e canoni;Acqua
43;54,97;ABBANOA S.P.A.; ;19/01/2023;1827;0;1;Spese correnti;Acquisto di beni e servizi;Acquisto di servizi;Utenze e canoni;Acqua
43;61,72;ABBANOA S.P.A.; ;19/01/2023;1827;0;1;Spese correnti;Acquisto di beni e servizi;Acquisto di servizi;Utenze e canoni;Acqua
44;52,1;ABBANOA S.P.A.; ;19/01/2023;1717;1;1;Spese correnti;Acquisto di beni e servizi;Acquisto di servizi;Utenze e canoni;Acqua
45;2.937,72;SOGGETTI DIVERSI; ;19/01/2023;1916;0;1;Spese correnti;Trasferimenti correnti;Trasferimenti correnti a Famiglie;Interventi assistenziali;Altri assegni e sussidi assistenziali
46;1.004,52;SOGGETTI DIVERSI; ;19/01/2023;1916;0;1;Spese correnti;Trasferimenti correnti;Trasferimenti correnti a Famiglie;Interventi assistenziali;Altri assegni e sussidi assistenziali
47;540,75;SOGGETTI DIVERSI; ;19/01/2023;1916;0;1;Spese correnti;Trasferimenti correnti;Trasferimenti correnti a Famiglie;Interventi assistenziali;Altri assegni e sussidi assistenziali
48;464,82;SOGGETTI DIVERSI; ;19/01/2023;1916;0;1;Spese correnti;Trasferimenti correnti;Trasferimenti correnti a Famiglie;Interventi assistenziali;Altri assegni e sussidi assistenziali
49;464,82;SOGGETTI DIVERSI; ;19/01/2023;1916;0;1;Spese correnti;Trasferimenti correnti;Trasferimenti correnti a Famiglie;Interventi assistenziali;Altri assegni e sussidi assistenziali
50;636,41;SOGGETTI DIVERSI; ;19/01/2023;1916;0;1;Spese correnti;Trasferimenti correnti;Trasferimenti correnti a Famiglie;Interventi assistenziali;Altri assegni e sussidi assistenziali
51;540,75;SOGGETTI DIVERSI; ;19/01/2023;1916;0;1;Spese correnti;Trasferimenti correnti;Trasferimenti correnti a Famiglie;Interventi assistenziali;Altri assegni e sussidi assistenziali
52;532,18;SOGGETTI DIVERSI; ;19/01/2023;1916;0;1;Spese correnti;Trasferimenti correnti;Trasferimenti correnti a Famiglie;Interventi assistenziali;Altri assegni e sussidi assistenziali
53;156,25;SOGGETTI DIVERSI; ;19/01/2023;1920;15;1;Spese correnti;Trasferimenti correnti;Trasferimenti correnti a Famiglie;Interventi assistenziali;Altri assegni e sussidi assistenziali
54;533,92;SOGGETTI DIVERSI; ;19/01/2023;1916;0;1;Spese correnti;Trasferimenti correnti;Trasferimenti correnti a Famiglie;Interventi assistenziali;Altri assegni e sussidi assistenziali
55;375;SOGGETTI DIVERSI; ;19/01/2023;1920;15;1;Spese correnti;Trasferimenti correnti;Trasferimenti correnti a Famiglie;Interventi assistenziali;Altri assegni e sussidi assistenziali
56;181,87;OMESSO NOMINATIVO NEL RISPETTO DELLA NORMATIVA SULLA PROTEZIONE DATI PERSONALI; ;19/01/2023;1920;15;1;Spese correnti;Trasferimenti correnti;Trasferimenti correnti a Famiglie;Interventi assistenziali;Altri assegni e sussidi assistenziali
57;332,4;SOGGETTI DIVERSI; ;19/01/2023;1920;15;1;Spese correnti;Trasferimenti correnti;Trasferimenti correnti a Famiglie;Interventi assistenziali;Altri assegni e sussidi assistenziali
58;66,96;SOGGETTI DIVERSI; ;19/01/2023;1917;0;1;Spese correnti;Trasferimenti correnti;Trasferimenti correnti a Famiglie;Interventi assistenziali;Altri assegni e sussidi assistenziali
59;25,31;SOGGETTI DIVERSI; ;19/01/2023;1917;0;1;Spese correnti;Trasferimenti correnti;Trasferimenti correnti a Famiglie;Interventi assistenziali;Altri assegni e sussidi assistenziali
60;329,03;SOGGETTI DIVERSI; ;19/01/2023;1917;0;1;Spese correnti;Trasferimenti correnti;Trasferimenti correnti a Famiglie;Interventi assistenziali;Altri assegni e sussidi assistenziali
61;480,04;SOGGETTI DIVERSI; ;19/01/2023;1920;15;1;Spese correnti;Trasferimenti correnti;Trasferimenti correnti a Famiglie;Interventi assistenziali;Altri assegni e sussidi assistenziali
62;239,26;SOGGETTI DIVERSI; ;19/01/2023;1920;15;1;Spese correnti;Trasferimenti correnti;Trasferimenti correnti a Famiglie;Interventi assistenziali;Altri assegni e sussidi assistenziali
63;316,2;SOGGETTI DIVERSI; ;19/01/2023;1920;15;1;Spese correnti;Trasferimenti correnti;Trasferimenti correnti a Famiglie;Interventi assistenziali;Altri assegni e sussidi assistenziali
64;200,54;SOGGETTI DIVERSI; ;19/01/2023;1920;15;1;Spese correnti;Trasferimenti correnti;Trasferimenti correnti a Famiglie;Interventi assistenziali;Altri assegni e sussidi assistenziali
65;540,38;SOGGETTI DIVERSI; ;19/01/2023;1920;15;1;Spese correnti;Trasferimenti correnti;Trasferimenti correnti a Famiglie;Interventi assistenziali;Altri assegni e sussidi assistenziali
66;279,27;SOGGETTI DIVERSI; ;19/01/2023;1920;15;1;Spese correnti;Trasferimenti correnti;Trasferimenti correnti a Famiglie;Interventi assistenziali;Altri assegni e sussidi assistenziali
67;410,06;SOGGETTI DIVERSI; ;19/01/2023;1920;15;1;Spese correnti;Trasferimenti correnti;Trasferimenti correnti a Famiglie;Interventi assistenziali;Altri assegni e sussidi assistenziali
68;191,34;SOGGETTI DIVERSI; ;20/01/2023;1920;15;1;Spese correnti;Trasferimenti correnti;Trasferimenti correnti a Famiglie;Interventi assistenziali;Altri assegni e sussidi assistenziali
69;159,41;SOGGETTI DIVERSI; ;20/01/2023;1920;15;1;Spese correnti;Trasferimenti correnti;Trasferimenti correnti a Famiglie;Interventi assistenziali;Altri assegni e sussidi assistenziali
70;125,05;SOGGETTI DIVERSI; ;20/01/2023;1920;15;1;Spese correnti;Trasferimenti correnti;Trasferimenti correnti a Famiglie;Interventi assistenziali;Altri assegni e sussidi assistenziali
71;457,15;SOGGETTI DIVERSI; ;20/01/2023;1920;15;1;Spese correnti;Trasferimenti correnti;Trasferimenti correnti a Famiglie;Interventi assistenziali;Altri assegni e sussidi assistenziali
72;927,08;SOGGETTI DIVERSI; ;20/01/2023;1920;15;1;Spese correnti;Trasferimenti correnti;Trasferimenti correnti a Famiglie;Interventi assistenziali;Altri assegni e sussidi assistenziali
73;250;SOGGETTI DIVERSI; ;20/01/2023;1920;15;1;Spese correnti;Trasferimenti correnti;Trasferimenti correnti a Famiglie;Interventi assistenziali;Altri assegni e sussidi assistenziali
74;232,06;SOGGETTI DIVERSI; ;20/01/2023;1920;15;1;Spese correnti;Trasferimenti correnti;Trasferimenti correnti a Famiglie;Interventi assistenziali;Altri assegni e sussidi assistenziali
75;503,68;SOGGETTI DIVERSI; ;20/01/2023;1920;15;1;Spese correnti;Trasferimenti correnti;Trasferimenti correnti a Famiglie;Interventi assistenziali;Altri assegni e sussidi assistenziali
76;3.375,94;SOGGETTI DIVERSI; ;20/01/2023;1920;0;1;Spese correnti;Trasferimenti correnti;Trasferimenti correnti a Famiglie;Interventi assistenziali;Altri assegni e sussidi assistenziali
77;109,86;SOGGETTI DIVERSI; ;20/01/2023;1920;0;1;Spese correnti;Trasferimenti correnti;Trasferimenti correnti a Famiglie;Interventi assistenziali;Altri assegni e sussidi assistenziali
78;1.551,67;OMESSO NOMINATIVO NEL RISPETTO DELLA NORMATIVA SULLA PROTEZIONE DATI PERSONALI; ;20/01/2023;1920;0;1;Spese correnti;Trasferimenti correnti;Trasferimenti correnti a Famiglie;Interventi assistenziali;Altri assegni e sussidi assistenziali
79;729,6;OMESSO NOMINATIVO NEL RISPETTO DELLA NORMATIVA SULLA PROTEZIONE DATI PERSONALI; ;20/01/2023;1920;0;1;Spese correnti;Trasferimenti correnti;Trasferimenti correnti a Famiglie;Interventi assistenziali;Altri assegni e sussidi assistenziali
80;191,05;SOGGETTI DIVERSI; ;20/01/2023;1917;0;1;Spese correnti;Trasferimenti correnti;Trasferimenti correnti a Famiglie;Interventi assistenziali;Altri assegni e sussidi assistenziali
81;326,72;SOGGETTI DIVERSI; ;20/01/2023;1920;15;1;Spese correnti;Trasferimenti correnti;Trasferimenti correnti a Famiglie;Interventi assistenziali;Altri assegni e sussidi assistenziali
82;155;SOGGETTI DIVERSI; ;20/01/2023;1920;15;1;Spese correnti;Trasferimenti correnti;Trasferimenti correnti a Famiglie;Interventi assistenziali;Altri assegni e sussidi assistenziali
83;249,75;SOGGETTI DIVERSI; ;20/01/2023;1920;15;1;Spese correnti;Trasferimenti correnti;Trasferimenti correnti a Famiglie;Interventi assistenziali;Altri assegni e sussidi assistenziali
84;166,66;ABILTECNO Societa' Cooperativa Onlus; ;20/01/2023;1920;15;1;Spese correnti;Trasferimenti correnti;Trasferimenti correnti a Famiglie;Interventi assistenziali;Altri assegni e sussidi assistenziali
85;126,07;SOGGETTI DIVERSI; ;20/01/2023;1920;15;1;Spese correnti;Trasferimenti correnti;Trasferimenti correnti a Famiglie;Interventi assistenziali;Altri assegni e sussidi assistenziali
86;375;ABILTECNO Societa' Cooperativa Onlus; ;20/01/2023;1920;15;1;Spese correnti;Trasferimenti correnti;Trasferimenti correnti a Famiglie;Interventi assistenziali;Altri assegni e sussidi assistenziali
87;96,13;COCCO ORNELLA; ;20/01/2023;1920;15;1;Spese correnti;Trasferimenti correnti;Trasferimenti correnti a Famiglie;Interventi assistenziali;Altri assegni e sussidi assistenziali
88;363,74;SOGGETTI DIVERSI; ;20/01/2023;1920;15;1;Spese correnti;Trasferimenti correnti;Trasferimenti correnti a Famiglie;Interventi assistenziali;Altri assegni e sussidi assistenziali
89;500;COOP. SOCIALE ADEST A R.L. ONLUS; ;20/01/2023;1920;15;1;Spese correnti;Trasferimenti correnti;Trasferimenti correnti a Famiglie;Interventi assistenziali;Altri assegni e sussidi assistenziali
90;2.036,66;COOP. SOCIALE ADEST A R.L. ONLUS; ;20/01/2023;1920;15;1;Spese correnti;Trasferimenti correnti;Trasferimenti correnti a Famiglie;Interventi assistenziali;Altri assegni e sussidi assistenziali
91;500;COOP. SOCIALE ADEST A R.L. ONLUS; ;20/01/2023;1920;15;1;Spese correnti;Trasferimenti correnti;Trasferimenti correnti a Famiglie;Interventi assistenziali;Altri assegni e sussidi assistenziali
92;352,5;COOP. SOCIALE ADEST A R.L. ONLUS; ;20/01/2023;1920;15;1;Spese correnti;Trasferimenti correnti;Trasferimenti correnti a Famiglie;Interventi assistenziali;Altri assegni e sussidi assistenziali
93;485;COOP. SOCIALE ADEST A R.L. ONLUS; ;20/01/2023;1920;15;1;Spese correnti;Trasferimenti correnti;Trasferimenti correnti a Famiglie;Interventi assistenziali;Altri assegni e sussidi assistenziali
94;705;COOP. SOCIALE ADEST A R.L. ONLUS; ;20/01/2023;1920;15;1;Spese correnti;Trasferimenti correnti;Trasferimenti correnti a Famiglie;Interventi assistenziali;Altri assegni e sussidi assistenziali
95;375;COOP. SOCIALE ADEST A R.L. ONLUS; ;20/01/2023;1920;15;1;Spese correnti;Trasferimenti correnti;Trasferimenti correnti a Famiglie;Interventi assistenziali;Altri assegni e sussidi assistenziali
96;1.364,00;COOP. SOCIALE ADEST A R.L. ONLUS;8417474F46;20/01/2023;1920;15;1;Spese correnti;Trasferimenti correnti;Trasferimenti correnti a Famiglie;Interventi assistenziali;Altri assegni e sussidi assistenziali
97;705;COOP. SOCIALE ADEST A R.L. ONLUS; ;20/01/2023;1920;15;1;Spese correnti;Trasferimenti correnti;Trasferimenti correnti a Famiglie;Interventi assistenziali;Altri assegni e sussidi assistenziali
98;205,98;SOGGETTI DIVERSI; ;20/01/2023;1920;15;1;Spese correnti;Trasferimenti correnti;Trasferimenti correnti a Famiglie;Interventi assistenziali;Altri assegni e sussidi assistenziali
99;750;COOP. SOCIALE ADEST A R.L. ONLUS; ;20/01/2023;1920;15;1;Spese correnti;Trasferimenti correnti;Trasferimenti correnti a Famiglie;Interventi assistenziali;Altri assegni e sussidi assistenziali
100;312,5;COOP. SOCIALE ADEST A R.L. ONLUS; ;23/01/2023;1920;15;1;Spese correnti;Trasferimenti correnti;Trasferimenti correnti a Famiglie;Interventi assistenziali;Altri assegni e sussidi assistenziali
101;315,81;SOGGETTI DIVERSI; ;23/01/2023;1920;15;1;Spese correnti;Trasferimenti correnti;Trasferimenti correnti a Famiglie;Interventi assistenziali;Altri assegni e sussidi assistenziali
102;250;SOGGETTI DIVERSI; ;23/01/2023;1920;15;1;Spese correnti;Trasferimenti correnti;Trasferimenti correnti a Famiglie;Interventi assistenziali;Altri assegni e sussidi assistenziali
103;1.232,89;SOGGETTI DIVERSI; ;23/01/2023;1920;0;1;Spese correnti;Trasferimenti correnti;Trasferimenti correnti a Famiglie;Interventi assistenziali;Altri assegni e sussidi assistenziali
104;800;ISTITUTO COMPRENSIVO G.MARCONI; ;23/01/2023;1346;0;1;Spese correnti;Trasferimenti correnti;Trasferimenti correnti a Amministrazioni Pubbliche;Trasferimenti correnti a Amministrazioni Locali;Trasferimenti correnti a altre Amministrazioni Locali n.a.c.
105;500;ISTITUTO COMPRENSIVO G.MARCONI; ;23/01/2023;1421;2;1;Spese correnti;Trasferimenti correnti;Trasferimenti correnti a Amministrazioni Pubbliche;Trasferimenti correnti a Amministrazioni Locali;Trasferimenti correnti a altre Amministrazioni Locali n.a.c.
106;500;ISTITUTO COMPRENSIVO G.MARCONI; ;23/01/2023;1421;3;1;Spese correnti;Trasferimenti correnti;Trasferimenti correnti a Amministrazioni Pubbliche;Trasferimenti correnti a Amministrazioni Locali;Trasferimenti correnti a altre Amministrazioni Locali n.a.c.
107;975;SOGGETTI DIVERSI; ;23/01/2023;1920;15;1;Spese correnti;Trasferimenti correnti;Trasferimenti correnti a Famiglie;Interventi assistenziali;Altri assegni e sussidi assistenziali
108;339,61;SOGGETTI DIVERSI; ;23/01/2023;1920;15;1;Spese correnti;Trasferimenti correnti;Trasferimenti correnti a Famiglie;Interventi assistenziali;Altri assegni e sussidi assistenziali
109;298,41;SOGGETTI DIVERSI; ;23/01/2023;1920;15;1;Spese correnti;Trasferimenti correnti;Trasferimenti correnti a Famiglie;Interventi assistenziali;Altri assegni e sussidi assistenziali
110;54,05;SOGGETTI DIVERSI; ;23/01/2023;1919;10;1;Spese correnti;Trasferimenti correnti;Trasferimenti correnti a Famiglie;Interventi assistenziali;Altri assegni e sussidi assistenziali
111;32,55;SOGGETTI DIVERSI; ;23/01/2023;1919;10;1;Spese correnti;Trasferimenti correnti;Trasferimenti correnti a Famiglie;Interventi assistenziali;Altri assegni e sussidi assistenziali
112;62,49;SOGGETTI DIVERSI; ;23/01/2023;1919;10;1;Spese correnti;Trasferimenti correnti;Trasferimenti correnti a Famiglie;Interventi assistenziali;Altri assegni e sussidi assistenziali
113;215;SOGGETTI DIVERSI; ;23/01/2023;1919;6;1;Spese correnti;Trasferimenti correnti;Trasferimenti correnti a Famiglie;Interventi assistenziali;Altri assegni e sussidi assistenziali
114;88;SOGGETTI DIVERSI; ;23/01/2023;1919;6;1;Spese correnti;Trasferimenti correnti;Trasferimenti correnti a Famiglie;Interventi assistenziali;Altri assegni e sussidi assistenziali
115;17.200,00;REGIONE AUTONOMA DELLA SARDEGNA; ;23/01/2023;1914;2;1;Spese correnti;Acquisto di beni e servizi;Acquisto di servizi;Contratti di servizio pubblico;Contratti di servizio di assistenza sociale residenziale e semiresidenziale
116;983,32;ISAR COOPERATIVA SOCIALE ONLUS;Z6E33B9DBA;23/01/2023;1036;0;1;Spese correnti;Acquisto di beni e servizi;Acquisto di servizi;Servizi ausiliari per il funzionamento dell'ente;Servizi di pulizia e lavanderia
117;67,16;MINISTERO  - DIPARTIMENTO AFFARI INTERNI; ;23/01/2023;1037;1;1;Spese correnti;Trasferimenti correnti;Trasferimenti correnti a Amministrazioni Pubbliche;Trasferimenti correnti a Amministrazioni Centrali;Trasferimenti correnti a Ministeri
118;931,68;RAP PROFESSIONALE S.R.L.;ZEC35BACE0;23/01/2023;1265;0;1;Spese correnti;Acquisto di beni e servizi;Acquisto di beni;Altri beni di consumo;Vestiario
119;98,84;SOGGETTI DIVERSI; ;23/01/2023;1427;0;1;Spese correnti;Trasferimenti correnti;Trasferimenti correnti a Famiglie;Borse di studio, dottorati di ricerca e contratti di formazione specialistica area medica;Borse di studio
120;98,84;SOGGETTI DIVERSI; ;23/01/2023;1427;0;1;Spese correnti;Trasferimenti correnti;Trasferimenti correnti a Famiglie;Borse di studio, dottorati di ricerca e contratti di formazione specialistica area medica;Borse di studio
121;98,84;SOGGETTI DIVERSI; ;23/01/2023;1427;0;1;Spese correnti;Trasferimenti correnti;Trasferimenti correnti a Famiglie;Borse di studio, dottorati di ricerca e contratti di formazione specialistica area medica;Borse di studio
122;98,84;SOGGETTI DIVERSI; ;23/01/2023;1427;0;1;Spese correnti;Trasferimenti correnti;Trasferimenti correnti a Famiglie;Borse di studio, dottorati di ricerca e contratti di formazione specialistica area medica;Borse di studio
123;98,84;SOGGETTI DIVERSI; ;23/01/2023;1427;0;1;Spese correnti;Trasferimenti correnti;Trasferimenti correnti a Famiglie;Borse di studio, dottorati di ricerca e contratti di formazione specialistica area medica;Borse di studio
124;98,84;SOGGETTI DIVERSI; ;23/01/2023;1427;0;1;Spese correnti;Trasferimenti correnti;Trasferimenti correnti a Famiglie;Borse di studio, dottorati di ricerca e contratti di formazione specialistica area medica;Borse di studio
125;98,84;SOGGETTI DIVERSI; ;23/01/2023;1427;0;1;Spese correnti;Trasferimenti correnti;Trasferimenti correnti a Famiglie;Borse di studio, dottorati di ricerca e contratti di formazione specialistica area medica;Borse di studio
126;98,84;SOGGETTI DIVERSI; ;23/01/2023;1427;0;1;Spese correnti;Trasferimenti correnti;Trasferimenti correnti a Famiglie;Borse di studio, dottorati di ricerca e contratti di formazione specialistica area medica;Borse di studio
127;98,84;SOGGETTI DIVERSI; ;23/01/2023;1427;0;1;Spese correnti;Trasferimenti correnti;Trasferimenti correnti a Famiglie;Borse di studio, dottorati di ricerca e contratti di formazione specialistica area medica;Borse di studio
128;98,84;SOGGETTI DIVERSI; ;23/01/2023;1427;0;1;Spese correnti;Trasferimenti correnti;Trasferimenti correnti a Famiglie;Borse di studio, dottorati di ricerca e contratti di formazione specialistica area medica;Borse di studio
129;98,84;SOGGETTI DIVERSI; ;23/01/2023;1427;0;1;Spese correnti;Trasferimenti correnti;Trasferimenti correnti a Famiglie;Borse di studio, dottorati di ricerca e contratti di formazione specialistica area medica;Borse di studio
130;98,84;SOGGETTI DIVERSI; ;23/01/2023;1427;0;1;Spese correnti;Trasferimenti correnti;Trasferimenti correnti a Famiglie;Borse di studio, dottorati di ricerca e contratti di formazione specialistica area medica;Borse di studio
131;98,84;SOGGETTI DIVERSI; ;23/01/2023;1427;0;1;Spese correnti;Trasferimenti correnti;Trasferimenti correnti a Famiglie;Borse di studio, dottorati di ricerca e contratti di formazione specialistica area medica;Borse di studio
132;98,84;SOGGETTI DIVERSI; ;23/01/2023;1427;0;1;Spese correnti;Trasferimenti correnti;Trasferimenti correnti a Famiglie;Borse di studio, dottorati di ricerca e contratti di formazione specialistica area medica;Borse di studio
133;98,84;SOGGETTI DIVERSI; ;23/01/2023;1427;0;1;Spese correnti;Trasferimenti correnti;Trasferimenti correnti a Famiglie;Borse di studio, dottorati di ricerca e contratti di formazione specialistica area medica;Borse di studio
134;98,84;SOGGETTI DIVERSI; ;23/01/2023;1427;0;1;Spese correnti;Trasferimenti correnti;Trasferimenti correnti a Famiglie;Borse di studio, dottorati di ricerca e contratti di formazione specialistica area medica;Borse di studio
135;98,84;SOGGETTI DIVERSI; ;23/01/2023;1427;0;1;Spese correnti;Trasferimenti correnti;Trasferimenti correnti a Famiglie;Borse di studio, dottorati di ricerca e contratti di formazione specialistica area medica;Borse di studio
136;98,84;SOGGETTI DIVERSI; ;23/01/2023;1427;0;1;Spese correnti;Trasferimenti correnti;Trasferimenti correnti a Famiglie;Borse di studio, dottorati di ricerca e contratti di formazione specialistica area medica;Borse di studio
137;98,84;SOGGETTI DIVERSI; ;23/01/2023;1427;0;1;Spese correnti;Trasferimenti correnti;Trasferimenti correnti a Famiglie;Borse di studio, dottorati di ricerca e contratti di formazione specialistica area medica;Borse di studio
138;98,84;SOGGETTI DIVERSI; ;23/01/2023;1427;0;1;Spese correnti;Trasferimenti correnti;Trasferimenti correnti a Famiglie;Borse di studio, dottorati di ricerca e contratti di formazione specialistica area medica;Borse di studio
139;98,84;SOGGETTI DIVERSI; ;23/01/2023;1427;0;1;Spese correnti;Trasferimenti correnti;Trasferimenti correnti a Famiglie;Borse di studio, dottorati di ricerca e contratti di formazione specialistica area medica;Borse di studio
140;98,84;SOGGETTI DIVERSI; ;23/01/2023;1427;0;1;Spese correnti;Trasferimenti correnti;Trasferimenti correnti a Famiglie;Borse di studio, dottorati di ricerca e contratti di formazione specialistica area medica;Borse di studio
141;98,84;SOGGETTI DIVERSI; ;23/01/2023;1427;0;1;Spese correnti;Trasferimenti correnti;Trasferimenti correnti a Famiglie;Borse di studio, dottorati di ricerca e contratti di formazione specialistica area medica;Borse di studio
142;98,84;SOGGETTI DIVERSI; ;23/01/2023;1427;0;1;Spese correnti;Trasferimenti correnti;Trasferimenti correnti a Famiglie;Borse di studio, dottorati di ricerca e contratti di formazione specialistica area medica;Borse di studio
143;98,84;SOGGETTI DIVERSI; ;23/01/2023;1427;0;1;Spese correnti;Trasferimenti correnti;Trasferimenti correnti a Famiglie;Borse di studio, dottorati di ricerca e contratti di formazione specialistica area medica;Borse di studio
144;98,84;SOGGETTI DIVERSI; ;23/01/2023;1427;0;1;Spese correnti;Trasferimenti correnti;Trasferimenti correnti a Famiglie;Borse di studio, dottorati di ricerca e contratti di formazione specialistica area medica;Borse di studio
145;98,84;SOGGETTI DIVERSI; ;23/01/2023;1427;0;1;Spese correnti;Trasferimenti correnti;Trasferimenti correnti a Famiglie;Borse di studio, dottorati di ricerca e contratti di formazione specialistica area medica;Borse di studio
146;98,84;SOGGETTI DIVERSI; ;23/01/2023;1427;0;1;Spese correnti;Trasferimenti correnti;Trasferimenti correnti a Famiglie;Borse di studio, dottorati di ricerca e contratti di formazione specialistica area medica;Borse di studio
147;98,84;SOGGETTI DIVERSI; ;23/01/2023;1427;0;1;Spese correnti;Trasferimenti correnti;Trasferimenti correnti a Famiglie;Borse di studio, dottorati di ricerca e contratti di formazione specialistica area medica;Borse di studio
148;98,83;SOGGETTI DIVERSI; ;23/01/2023;1427;0;1;Spese correnti;Trasferimenti correnti;Trasferimenti correnti a Famiglie;Borse di studio, dottorati di ricerca e contratti di formazione specialistica area medica;Borse di studio
149;98,83;SOGGETTI DIVERSI; ;23/01/2023;1427;0;1;Spese correnti;Trasferimenti correnti;Trasferimenti correnti a Famiglie;Borse di studio, dottorati di ricerca e contratti di formazione specialistica area medica;Borse di studio
150;98,83;SOGGETTI DIVERSI; ;23/01/2023;1427;0;1;Spese correnti;Trasferimenti correnti;Trasferimenti correnti a Famiglie;Borse di studio, dottorati di ricerca e contratti di formazione specialistica area medica;Borse di studio
151;98,83;SOGGETTI DIVERSI; ;23/01/2023;1427;0;1;Spese correnti;Trasferimenti correnti;Trasferimenti correnti a Famiglie;Borse di studio, dottorati di ricerca e contratti di formazione specialistica area medica;Borse di studio
152;98,83;SOGGETTI DIVERSI; ;23/01/2023;1427;0;1;Spese correnti;Trasferimenti correnti;Trasferimenti correnti a Famiglie;Borse di studio, dottorati di ricerca e contratti di formazione specialistica area medica;Borse di studio
153;98,83;SOGGETTI DIVERSI; ;23/01/2023;1427;0;1;Spese correnti;Trasferimenti correnti;Trasferimenti correnti a Famiglie;Borse di studio, dottorati di ricerca e contratti di formazione specialistica area medica;Borse di studio
154;98,83;SOGGETTI DIVERSI; ;23/01/2023;1427;0;1;Spese correnti;Trasferimenti correnti;Trasferimenti correnti a Famiglie;Borse di studio, dottorati di ricerca e contratti di formazione specialistica area medica;Borse di studio
155;98,83;SOGGETTI DIVERSI; ;23/01/2023;1427;0;1;Spese correnti;Trasferimenti correnti;Trasferimenti correnti a Famiglie;Borse di studio, dottorati di ricerca e contratti di formazione specialistica area medica;Borse di studio
156;214,18;SOGGETTI DIVERSI; ;24/01/2023;1433;0;1;Spese correnti;Trasferimenti correnti;Trasferimenti correnti a Famiglie;Altri trasferimenti a famiglie;Altri trasferimenti a famiglie n.a.c.
157;103,4;SOGGETTI DIVERSI; ;24/01/2023;1433;0;1;Spese correnti;Trasferimenti correnti;Trasferimenti correnti a Famiglie;Altri trasferimenti a famiglie;Altri trasferimenti a famiglie n.a.c.
158;93,9;SOGGETTI DIVERSI; ;24/01/2023;1433;0;1;Spese correnti;Trasferimenti correnti;Trasferimenti correnti a Famiglie;Altri trasferimenti a famiglie;Altri trasferimenti a famiglie n.a.c.
159;324,1;SOGGETTI DIVERSI; ;24/01/2023;1433;0;1;Spese correnti;Trasferimenti correnti;Trasferimenti correnti a Famiglie;Altri trasferimenti a famiglie;Altri trasferimenti a famiglie n.a.c.
160;258,53;SOGGETTI DIVERSI; ;24/01/2023;1433;0;1;Spese correnti;Trasferimenti correnti;Trasferimenti correnti a Famiglie;Altri trasferimenti a famiglie;Altri trasferimenti a famiglie n.a.c.
161;249,34;SOGGETTI DIVERSI; ;24/01/2023;1433;0;1;Spese correnti;Trasferimenti correnti;Trasferimenti correnti a Famiglie;Altri trasferimenti a famiglie;Altri trasferimenti a famiglie n.a.c.
162;274,95;SOGGETTI DIVERSI; ;24/01/2023;1433;0;1;Spese correnti;Trasferimenti correnti;Trasferimenti correnti a Famiglie;Altri trasferimenti a famiglie;Altri trasferimenti a famiglie n.a.c.
163;87,4;SOGGETTI DIVERSI; ;24/01/2023;1433;0;1;Spese correnti;Trasferimenti correnti;Trasferimenti correnti a Famiglie;Altri trasferimenti a famiglie;Altri trasferimenti a famiglie n.a.c.
164;256,35;SOGGETTI DIVERSI; ;24/01/2023;1433;0;1;Spese correnti;Trasferimenti correnti;Trasferimenti correnti a Famiglie;Altri trasferimenti a famiglie;Altri trasferimenti a famiglie n.a.c.
165;238,29;SOGGETTI DIVERSI; ;24/01/2023;1433;0;1;Spese correnti;Trasferimenti correnti;Trasferimenti correnti a Famiglie;Altri trasferimenti a famiglie;Altri trasferimenti a famiglie n.a.c.
166;151,65;SOGGETTI DIVERSI; ;24/01/2023;1433;0;1;Spese correnti;Trasferimenti correnti;Trasferimenti correnti a Famiglie;Altri trasferimenti a famiglie;Altri trasferimenti a famiglie n.a.c.
167;243,8;SOGGETTI DIVERSI; ;24/01/2023;1433;0;1;Spese correnti;Trasferimenti correnti;Trasferimenti correnti a Famiglie;Altri trasferimenti a famiglie;Altri trasferimenti a famiglie n.a.c.
168;103,12;SOGGETTI DIVERSI; ;24/01/2023;1433;0;1;Spese correnti;Trasferimenti correnti;Trasferimenti correnti a Famiglie;Altri trasferimenti a famiglie;Altri trasferimenti a famiglie n.a.c.
169;91,3;SOGGETTI DIVERSI; ;24/01/2023;1433;0;1;Spese correnti;Trasferimenti correnti;Trasferimenti correnti a Famiglie;Altri trasferimenti a famiglie;Altri trasferimenti a famiglie n.a.c.
170;203,6;SOGGETTI DIVERSI; ;24/01/2023;1433;0;1;Spese correnti;Trasferimenti correnti;Trasferimenti correnti a Famiglie;Altri trasferimenti a famiglie;Altri trasferimenti a famiglie n.a.c.
171;362,95;SOGGETTI DIVERSI; ;24/01/2023;1433;0;1;Spese correnti;Trasferimenti correnti;Trasferimenti correnti a Famiglie;Altri trasferimenti a famiglie;Altri trasferimenti a famiglie n.a.c.
172;182,25;SOGGETTI DIVERSI; ;24/01/2023;1433;0;1;Spese correnti;Trasferimenti correnti;Trasferimenti correnti a Famiglie;Altri trasferimenti a famiglie;Altri trasferimenti a famiglie n.a.c.
173;1.956,15;DIVERSI; ;24/01/2023;1001;0;1;Spese correnti;Acquisto di beni e servizi;Acquisto di servizi;Organi e incarichi istituzionali dell'amministrazione;Organi istituzionali dell'amministrazione - Indennità
176;4.000,01;PRO.TU.SAR. DI PIRAS RAFFAELE;9344454761;30/01/2023;1417;3;1;Spese correnti;Acquisto di beni e servizi;Acquisto di servizi;Contratti di servizio pubblico;Contratti di servizio di trasporto scolastico
177;872,3;LA MERIDIANA S.N.C. DI TRONCI E. & C.;ZFA276DF86;30/01/2023;3304;0;2;Spese in conto capitale;Investimenti fissi lordi e acquisto di terreni;Beni materiali;Beni immobili;Cimiteri
178;549,33;ENEL ENERGIA S.P.A.;ZA135CD269;30/01/2023;3467;1;2;Spese in conto capitale;Investimenti fissi lordi e acquisto di terreni;Beni materiali;Beni immobili;Altre vie di comunicazione
179;5,47;ENEL ENERGIA S.P.A.;ZA135CD269;30/01/2023;3467;1;2;Spese in conto capitale;Investimenti fissi lordi e acquisto di terreni;Beni materiali;Beni immobili;Altre vie di comunicazione
180;5.875,81;TEKNOSERVICE S.R.L.;ZD036CF607;30/01/2023;1738;0;1;Spese correnti;Acquisto di beni e servizi;Acquisto di servizi;Contratti di servizio pubblico;Contratti di servizio per la raccolta rifiuti
181;122,78;MONDOFFICE S.R.L.;Z963698C7C;30/01/2023;1046;0;1;Spese correnti;Acquisto di beni e servizi;Acquisto di beni;Altri beni di consumo;Carta, cancelleria e stampati
181;168,54;MONDOFFICE S.R.L.;Z963698C7C;30/01/2023;1046;0;1;Spese correnti;Acquisto di beni e servizi;Acquisto di beni;Altri beni di consumo;Carta, cancelleria e stampati
181;231,82;MONDOFFICE S.R.L.;Z963698C7C;30/01/2023;1046;0;1;Spese correnti;Acquisto di beni e servizi;Acquisto di beni;Altri beni di consumo;Carta, cancelleria e stampati
181;255,08;MONDOFFICE S.R.L.;Z963698C7C;30/01/2023;1046;0;1;Spese correnti;Acquisto di beni e servizi;Acquisto di beni;Altri beni di consumo;Carta, cancelleria e stampati
182;524,6;MAGGIOLI SPA -;Z0938F4460;30/01/2023;1046;1;1;Spese correnti;Acquisto di beni e servizi;Acquisto di servizi;Altri servizi;Altri servizi diversi n.a.c.
183;73,2;MAGGIOLI SPA -;Z0938F4460;30/01/2023;1046;1;1;Spese correnti;Acquisto di beni e servizi;Acquisto di servizi;Altri servizi;Altri servizi diversi n.a.c.
184;640,5;SAIU ELETTROSERVICE DI CADDIA GIOVANNA ANGELA;Z0D380CD3E;31/01/2023;1938;0;1;Spese correnti;Acquisto di beni e servizi;Acquisto di servizi;Contratti di servizio pubblico;Contratti di servizio per l'illuminazione pubblica
185;52;KUWAIT PETROLEUM ITALIA SPA;Z5235D861D;31/01/2023;1057;0;1;Spese correnti;Acquisto di beni e servizi;Acquisto di beni;Altri beni di consumo;Carburanti, combustibili e lubrificanti
186;549;BIOLOGIC FORESTER DI FORRESU MARCO;Z0238B44D7;31/01/2023;1089;1;1;Spese correnti;Acquisto di beni e servizi;Acquisto di servizi;Manutenzione ordinaria e riparazioni;Manutenzione ordinaria e riparazioni di mobili e arredi
187;593,76;PAREDES ITALIA;ZDB38F54C7;31/01/2023;1043;0;1;Spese correnti;Acquisto di beni e servizi;Acquisto di beni;Altri beni di consumo;Altri beni e materiali di consumo n.a.c.
188;152;S.I.P.A.L. SRL;Z64239C8D1;31/01/2023;1043;4;1;Spese correnti;Acquisto di beni e servizi;Acquisto di servizi;Prestazioni professionali e specialistiche;Altre prestazioni professionali e specialistiche n.a.c.
188;494;S.I.P.A.L. SRL;Z64239C8D1;31/01/2023;1043;4;1;Spese correnti;Acquisto di beni e servizi;Acquisto di servizi;Prestazioni professionali e specialistiche;Altre prestazioni professionali e specialistiche n.a.c.
189;3.423,92;HALLEY SARDEGNA S.R.L.;ZD93914A3D;31/01/2023;1043;1;1;Spese correnti;Acquisto di beni e servizi;Acquisto di servizi;Servizi informatici e di telecomunicazioni;Gestione e manutenzione applicazioni
190;1.779,98;INCASPISANO;ZA238B6E01;31/01/2023;1043;0;1;Spese correnti;Acquisto di beni e servizi;Acquisto di beni;Altri beni di consumo;Carta, cancelleria e stampati
191;193,2;AGROCUI SRL;Z2A3621EAE;31/01/2023;1742;3;1;Spese correnti;Acquisto di beni e servizi;Acquisto di servizi;Altri servizi;Altri servizi diversi n.a.c.
192;555;AGROCUI SRL;Z2A3621EAE;31/01/2023;1742;3;1;Spese correnti;Acquisto di beni e servizi;Acquisto di servizi;Altri servizi;Altri servizi diversi n.a.c.
193;761,81;AGROCUI SRL;Z2A3621EAE;31/01/2023;1742;4;1;Spese correnti;Acquisto di beni e servizi;Acquisto di servizi;Altri servizi;Altri servizi diversi n.a.c.
194;346,84;COOP. SOCIALE ADEST A R.L. ONLUS;ZB03465342;31/01/2023;1920;12;1;Spese correnti;Acquisto di beni e servizi;Acquisto di servizi;Contratti di servizio pubblico;Altre spese per contratti di servizio pubblico
194;1.954,22;COOP. SOCIALE ADEST A R.L. ONLUS;ZB03465342;31/01/2023;1920;12;1;Spese correnti;Acquisto di beni e servizi;Acquisto di servizi;Contratti di servizio pubblico;Altre spese per contratti di servizio pubblico
195;10;CENTRO CARNI F.LLI PINNA; ;31/01/2023;1919;6;1;Spese correnti;Trasferimenti correnti;Trasferimenti correnti a Famiglie;Interventi assistenziali;Altri assegni e sussidi assistenziali
196;210;CENTRO CARNI F.LLI PINNA; ;31/01/2023;1919;6;1;Spese correnti;Trasferimenti correnti;Trasferimenti correnti a Famiglie;Interventi assistenziali;Altri assegni e sussidi assistenziali
197;165;CENTRO CARNI F.LLI PINNA; ;31/01/2023;1919;6;1;Spese correnti;Trasferimenti correnti;Trasferimenti correnti a Famiglie;Interventi assistenziali;Altri assegni e sussidi assistenziali
198;165;CENTRO CARNI F.LLI PINNA; ;31/01/2023;1919;6;1;Spese correnti;Trasferimenti correnti;Trasferimenti correnti a Famiglie;Interventi assistenziali;Altri assegni e sussidi assistenziali
199;450;CENTRO CARNI F.LLI PINNA; ;31/01/2023;1919;6;1;Spese correnti;Trasferimenti correnti;Trasferimenti correnti a Famiglie;Interventi assistenziali;Altri assegni e sussidi assistenziali
200;780;CENTRO CARNI F.LLI PINNA; ;31/01/2023;1919;6;1;Spese correnti;Trasferimenti correnti;Trasferimenti correnti a Famiglie;Interventi assistenziali;Altri assegni e sussidi assistenziali
201;100;CAMBULA VANNINA; ;31/01/2023;1919;6;1;Spese correnti;Trasferimenti correnti;Trasferimenti correnti a Famiglie;Interventi assistenziali;Altri assegni e sussidi assistenziali
202;270;CAMBULA VANNINA; ;31/01/2023;1919;6;1;Spese correnti;Trasferimenti correnti;Trasferimenti correnti a Famiglie;Interventi assistenziali;Altri assegni e sussidi assistenziali
203;315;CAMBULA VANNINA; ;31/01/2023;1919;6;1;Spese correnti;Trasferimenti correnti;Trasferimenti correnti a Famiglie;Interventi assistenziali;Altri assegni e sussidi assistenziali
204;945;CAMBULA VANNINA; ;31/01/2023;1919;6;1;Spese correnti;Trasferimenti correnti;Trasferimenti correnti a Famiglie;Interventi assistenziali;Altri assegni e sussidi assistenziali
205;630;CAMBULA VANNINA; ;31/01/2023;1919;6;1;Spese correnti;Trasferimenti correnti;Trasferimenti correnti a Famiglie;Interventi assistenziali;Altri assegni e sussidi assistenziali
206;375;CAMBULA VANNINA; ;31/01/2023;1919;6;1;Spese correnti;Trasferimenti correnti;Trasferimenti correnti a Famiglie;Interventi assistenziali;Altri assegni e sussidi assistenziali
207;118;MARKET CAMBULA RITA; ;31/01/2023;1919;6;1;Spese correnti;Trasferimenti correnti;Trasferimenti correnti a Famiglie;Interventi assistenziali;Altri assegni e sussidi assistenziali
208;75;MARKET CAMBULA RITA; ;31/01/2023;1919;6;1;Spese correnti;Trasferimenti correnti;Trasferimenti correnti a Famiglie;Interventi assistenziali;Altri assegni e sussidi assistenziali
209;330;MARKET CAMBULA RITA; ;31/01/2023;1919;6;1;Spese correnti;Trasferimenti correnti;Trasferimenti correnti a Famiglie;Interventi assistenziali;Altri assegni e sussidi assistenziali
210;120;MARKET CAMBULA RITA; ;31/01/2023;1919;6;1;Spese correnti;Trasferimenti correnti;Trasferimenti correnti a Famiglie;Interventi assistenziali;Altri assegni e sussidi assistenziali
211;360;MARKET CAMBULA RITA; ;31/01/2023;1919;6;1;Spese correnti;Trasferimenti correnti;Trasferimenti correnti a Famiglie;Interventi assistenziali;Altri assegni e sussidi assistenziali
212;257,5;MARKET CAMBULA RITA; ;31/01/2023;1919;6;1;Spese correnti;Trasferimenti correnti;Trasferimenti correnti a Famiglie;Interventi assistenziali;Altri assegni e sussidi assistenziali
213;27,5;MARKET CAMBULA RITA; ;31/01/2023;1919;6;1;Spese correnti;Trasferimenti correnti;Trasferimenti correnti a Famiglie;Interventi assistenziali;Altri assegni e sussidi assistenziali
214;75,93;SOGGETTI DIVERSI; ;31/01/2023;1917;0;1;Spese correnti;Trasferimenti correnti;Trasferimenti correnti a Famiglie;Interventi assistenziali;Altri assegni e sussidi assistenziali
223;80;NCC TRASPORTI e SERVIZI di Sergio Marongiu;Z1836F875A;03/02/2023;1043;4;1;Spese correnti;Acquisto di beni e servizi;Acquisto di servizi;Prestazioni professionali e specialistiche;Altre prestazioni professionali e specialistiche n.a.c.
224;244;MEDIANET SRL;ZBD2A99DFB;03/02/2023;1043;2;1;Spese correnti;Acquisto di beni e servizi;Acquisto di servizi;Utenze e canoni;Telefonia fissa
225;244;MEDIANET SRL;Z05390F79B;03/02/2023;1043;2;1;Spese correnti;Acquisto di beni e servizi;Acquisto di servizi;Utenze e canoni;Telefonia fissa
226;4.375,78;DITTA DIANA CLAUDIO;Z6B3816028;03/02/2023;3466;1;2;Spese in conto capitale;Investimenti fissi lordi e acquisto di terreni;Beni materiali;Beni immobili;Altre vie di comunicazione
227;1.602,22;DITTA DIANA CLAUDIO;Z6B3816028;03/02/2023;3466;0;2;Spese in conto capitale;Investimenti fissi lordi e acquisto di terreni;Beni materiali;Beni immobili;Altre vie di comunicazione
228;600;DITTA DIANA CLAUDIO;ZCD2ABCD3D;03/02/2023;1089;2;1;Spese correnti;Acquisto di beni e servizi;Acquisto di servizi;Manutenzione ordinaria e riparazioni;Manutenzione ordinaria e riparazioni di impianti e macchinari
229;3.833,06;CHIRIGU RICCARDO;Z513729A58;03/02/2023;3467;1;2;Spese in conto capitale;Investimenti fissi lordi e acquisto di terreni;Beni materiali;Beni immobili;Altre vie di comunicazione
230;1.122,65;TECNOCASIC  S.P.A.;Z6434DAFD3;03/02/2023;1739;0;1;Spese correnti;Acquisto di beni e servizi;Acquisto di servizi;Contratti di servizio pubblico;Contratti di servizio per il conferimento in discarica dei rifiuti
231;966,24;SALIS ASCENSORI S.R.L.;Z55234041C;03/02/2023;1089;2;1;Spese correnti;Acquisto di beni e servizi;Acquisto di servizi;Manutenzione ordinaria e riparazioni;Manutenzione ordinaria e riparazioni di impianti e macchinari
232;5.875,84;TEKNOSERVICE S.R.L.;ZAE390CDE5;03/02/2023;1738;0;1;Spese correnti;Acquisto di beni e servizi;Acquisto di servizi;Contratti di servizio pubblico;Contratti di servizio per la raccolta rifiuti
233;11.178,05;IMPRESA MELIS MAURIZIO S.R.L.;9,48E+15;03/02/2023;3467;1;2;Spese in conto capitale;Investimenti fissi lordi e acquisto di terreni;Beni materiali;Beni immobili;Altre vie di comunicazione
234;4.881,95;IMPRESA MELIS MAURIZIO S.R.L.;9,48E+15;03/02/2023;3467;1;2;Spese in conto capitale;Investimenti fissi lordi e acquisto di terreni;Beni materiali;Beni immobili;Altre vie di comunicazione
235;137,45;PALMAS COSTRUZIONI S.R.L.;Z543932A1E;03/02/2023;3215;0;2;Spese in conto capitale;Investimenti fissi lordi e acquisto di terreni;Beni materiali;Beni immobili;Musei, teatri e biblioteche
236;9.074,42;PALMAS COSTRUZIONI S.R.L.;Z543932A1E;03/02/2023;3215;0;2;Spese in conto capitale;Investimenti fissi lordi e acquisto di terreni;Beni materiali;Beni immobili;Musei, teatri e biblioteche
237;500;ORATORIO CIRCOLO ANSPI B.V. DELLA NEVE; ;03/02/2023;1520;0;1;Spese correnti;Trasferimenti correnti;Trasferimenti correnti a Istituzioni Sociali Private;Trasferimenti correnti a Istituzioni Sociali Private;Trasferimenti correnti a Istituzioni Sociali Private
239;909,92;VERDE VITA SRL;Z2734D619D;06/02/2023;1739;0;1;Spese correnti;Acquisto di beni e servizi;Acquisto di servizi;Contratti di servizio pubblico;Contratti di servizio per il conferimento in discarica dei rifiuti
240;640,5;SAIU ELETTROSERVICE DI CADDIA GIOVANNA ANGELA;Z0D380CD3E;06/02/2023;1938;0;1;Spese correnti;Acquisto di beni e servizi;Acquisto di servizi;Contratti di servizio pubblico;Contratti di servizio per l'illuminazione pubblica
241;200;A.N.U.S.C.A.; ;06/02/2023;1119;0;1;Spese correnti;Acquisto di beni e servizi;Acquisto di servizi;Altri servizi;Quote di associazioni
242;6.696,77;SOGGETTI DIVERSI; ;06/02/2023;1908;0;1;Spese correnti;Trasferimenti correnti;Trasferimenti correnti a Famiglie;Interventi assistenziali;Altri assegni e sussidi assistenziali
243;367,74;SOGGETTI DIVERSI; ;06/02/2023;1908;0;1;Spese correnti;Trasferimenti correnti;Trasferimenti correnti a Famiglie;Interventi assistenziali;Altri assegni e sussidi assistenziali
244;619,35;SOGGETTI DIVERSI; ;06/02/2023;1908;0;1;Spese correnti;Trasferimenti correnti;Trasferimenti correnti a Famiglie;Interventi assistenziali;Altri assegni e sussidi assistenziali
245;21,62;ENEL ENERGIA S.P.A.;9146558A6E;07/02/2023;1937;0;1;Spese correnti;Acquisto di beni e servizi;Acquisto di servizi;Utenze e canoni;Energia elettrica
245;31,54;ENEL ENERGIA S.P.A.;9146558A6E;07/02/2023;1937;0;1;Spese correnti;Acquisto di beni e servizi;Acquisto di servizi;Utenze e canoni;Energia elettrica
245;200,07;ENEL ENERGIA S.P.A.;9146558A6E;07/02/2023;1937;0;1;Spese correnti;Acquisto di beni e servizi;Acquisto di servizi;Utenze e canoni;Energia elettrica
245;360,22;ENEL ENERGIA S.P.A.;9146558A6E;07/02/2023;1937;0;1;Spese correnti;Acquisto di beni e servizi;Acquisto di servizi;Utenze e canoni;Energia elettrica
245;652,19;ENEL ENERGIA S.P.A.;9146558A6E;07/02/2023;1937;0;1;Spese correnti;Acquisto di beni e servizi;Acquisto di servizi;Utenze e canoni;Energia elettrica
245;1.212,75;ENEL ENERGIA S.P.A.;9146558A6E;07/02/2023;1937;0;1;Spese correnti;Acquisto di beni e servizi;Acquisto di servizi;Utenze e canoni;Energia elettrica
246;138,4;ENEL ENERGIA S.P.A.;9146558A6E;07/02/2023;1386;2;1;Spese correnti;Acquisto di beni e servizi;Acquisto di servizi;Utenze e canoni;Energia elettrica
247;330,54;ENEL ENERGIA S.P.A.;9146558A6E;07/02/2023;1366;3;1;Spese correnti;Acquisto di beni e servizi;Acquisto di servizi;Utenze e canoni;Energia elettrica
248;23,61;ENEL ENERGIA S.P.A.;9146558A6E;07/02/2023;1087;2;1;Spese correnti;Acquisto di beni e servizi;Acquisto di servizi;Utenze e canoni;Energia elettrica
248;70,63;ENEL ENERGIA S.P.A.;9146558A6E;07/02/2023;1087;2;1;Spese correnti;Acquisto di beni e servizi;Acquisto di servizi;Utenze e canoni;Energia elettrica
248;1.009,20;ENEL ENERGIA S.P.A.;9146558A6E;07/02/2023;1087;2;1;Spese correnti;Acquisto di beni e servizi;Acquisto di servizi;Utenze e canoni;Energia elettrica
249;12,05;ENEL ENERGIA S.P.A.;9146558A6E;07/02/2023;1826;1;1;Spese correnti;Acquisto di beni e servizi;Acquisto di servizi;Utenze e canoni;Energia elettrica
249;46,46;ENEL ENERGIA S.P.A.;9146558A6E;07/02/2023;1826;1;1;Spese correnti;Acquisto di beni e servizi;Acquisto di servizi;Utenze e canoni;Energia elettrica
250;10,58;ENEL ENERGIA S.P.A.;9146558A6E;07/02/2023;1526;0;1;Spese correnti;Acquisto di beni e servizi;Acquisto di servizi;Utenze e canoni;Energia elettrica
250;64,71;ENEL ENERGIA S.P.A.;9146558A6E;07/02/2023;1526;0;1;Spese correnti;Acquisto di beni e servizi;Acquisto di servizi;Utenze e canoni;Energia elettrica
250;350,05;ENEL ENERGIA S.P.A.;9146558A6E;07/02/2023;1526;0;1;Spese correnti;Acquisto di beni e servizi;Acquisto di servizi;Utenze e canoni;Energia elettrica
251;47,75;ENEL ENERGIA S.P.A.;9146558A6E;07/02/2023;1656;1;1;Spese correnti;Acquisto di beni e servizi;Acquisto di servizi;Utenze e canoni;Energia elettrica
252;37,82;ENEL ENERGIA S.P.A.;9146558A6E;07/02/2023;1090;0;1;Spese correnti;Acquisto di beni e servizi;Acquisto di servizi;Utenze e canoni;Energia elettrica
253;313,1;ENEL ENERGIA S.P.A.;9146558A6E;07/02/2023;1086;0;1;Spese correnti;Acquisto di beni e servizi;Acquisto di servizi;Utenze e canoni;Energia elettrica
254;31.439,02;FANNI OLIVIERO;94989361F7;07/02/2023;3242;0;2;Spese in conto capitale;Investimenti fissi lordi e acquisto di terreni;Beni materiali;Beni immobili;Opere per la sistemazione del suolo
255;31.073,93;LILLIU STEFANO S.R.L.;9240852050;07/02/2023;3467;0;2;Spese in conto capitale;Investimenti fissi lordi e acquisto di terreni;Beni materiali;Beni immobili;Altre vie di comunicazione
256;23.416,07;LILLIU STEFANO S.R.L.;9240852050;07/02/2023;3467;0;2;Spese in conto capitale;Investimenti fissi lordi e acquisto di terreni;Beni materiali;Beni immobili;Altre vie di comunicazione
257;13.250,00;LEL.FRA SOCIETA' COOPERATIVA SOCIALE;ZCC386A8E0;07/02/2023;3212;2;2;Spese in conto capitale;Investimenti fissi lordi e acquisto di terreni;Beni materiali;Beni immobili;Fabbricati ad uso commerciale
258;12.830,89;LEL.FRA SOCIETA' COOPERATIVA SOCIALE;ZCC386A8E0;07/02/2023;3212;2;2;Spese in conto capitale;Investimenti fissi lordi e acquisto di terreni;Beni materiali;Beni immobili;Fabbricati ad uso commerciale
259;7.790,42;ZUCCA PIERANGELO;ZB4342B0E4;10/02/2023;3467;2;2;Spese in conto capitale;Investimenti fissi lordi e acquisto di terreni;Beni materiali;Beni immobili;Altre vie di comunicazione
260;3.626,81;ZUCCA PIERANGELO;ZB4342B0E4;10/02/2023;3467;0;2;Spese in conto capitale;Investimenti fissi lordi e acquisto di terreni;Beni materiali;Beni immobili;Altre vie di comunicazione
261;102,1;AGROCUI SRL;Z2A3621EAE;10/02/2023;1742;4;1;Spese correnti;Acquisto di beni e servizi;Acquisto di servizi;Altri servizi;Altri servizi diversi n.a.c.
262;1.220,00;CLINCO MARINELLA MATERIALI EDILI;Z0F3621A58;10/02/2023;1742;3;1;Spese correnti;Acquisto di beni e servizi;Acquisto di servizi;Altri servizi;Altri servizi diversi n.a.c.
263;662,11;CERAMICHE ORBANA S.R.L. DEI F.LLI ORBANA;ZAB389B05B;10/02/2023;1742;2;1;Spese correnti;Acquisto di beni e servizi;Acquisto di servizi;Altri servizi;Altri servizi diversi n.a.c.
264;1.320,42;VERDE VITA SRL;ZE2396C1D5;10/02/2023;1739;0;1;Spese correnti;Acquisto di beni e servizi;Acquisto di servizi;Contratti di servizio pubblico;Contratti di servizio per il conferimento in discarica dei rifiuti
265;307,44;FRANCESCO CONTINI EREDI SAS;Z5C36CD6C3;10/02/2023;1089;2;1;Spese correnti;Acquisto di beni e servizi;Acquisto di servizi;Manutenzione ordinaria e riparazioni;Manutenzione ordinaria e riparazioni di attrezzature
266;3.107,00;ESSE & TI ASSICURAZIONI S.N.C.;Z3D39B04BE;10/02/2023;1057;1;1;Spese correnti;Altre spese correnti;Premi di assicurazione;Premi di assicurazione contro i danni;Altri premi di assicurazione contro i danni
267;215;SOGGETTI DIVERSI; ;13/02/2023;1919;6;1;Spese correnti;Trasferimenti correnti;Trasferimenti correnti a Famiglie;Interventi assistenziali;Altri assegni e sussidi assistenziali
268;405;SOGGETTI DIVERSI; ;13/02/2023;1919;6;1;Spese correnti;Trasferimenti correnti;Trasferimenti correnti a Famiglie;Interventi assistenziali;Altri assegni e sussidi assistenziali
269;166,66;OMESSO NOMINATIVO NEL RISPETTO DELLA NORMATIVA SULLA PROTEZIONE DATI PERSONALI; ;13/02/2023;1920;15;1;Spese correnti;Trasferimenti correnti;Trasferimenti correnti a Famiglie;Interventi assistenziali;Altri assegni e sussidi assistenziali
270;153,65;OMESSO NOMINATIVO NEL RISPETTO DELLA NORMATIVA SULLA PROTEZIONE DATI PERSONALI; ;13/02/2023;1920;15;1;Spese correnti;Trasferimenti correnti;Trasferimenti correnti a Famiglie;Interventi assistenziali;Altri assegni e sussidi assistenziali
271;375;OMESSO NOMINATIVO NEL RISPETTO DELLA NORMATIVA SULLA PROTEZIONE DATI PERSONALI; ;13/02/2023;1920;15;1;Spese correnti;Trasferimenti correnti;Trasferimenti correnti a Famiglie;Interventi assistenziali;Altri assegni e sussidi assistenziali
272;241,48;OMESSO NOMINATIVO NEL RISPETTO DELLA NORMATIVA SULLA PROTEZIONE DATI PERSONALI; ;13/02/2023;1920;15;1;Spese correnti;Trasferimenti correnti;Trasferimenti correnti a Famiglie;Interventi assistenziali;Altri assegni e sussidi assistenziali
273;145,7;OMESSO NOMINATIVO NEL RISPETTO DELLA NORMATIVA SULLA PROTEZIONE DATI PERSONALI; ;13/02/2023;1920;15;1;Spese correnti;Trasferimenti correnti;Trasferimenti correnti a Famiglie;Interventi assistenziali;Altri assegni e sussidi assistenziali
274;292,18;OMESSO NOMINATIVO NEL RISPETTO DELLA NORMATIVA SULLA PROTEZIONE DATI PERSONALI; ;13/02/2023;1920;15;1;Spese correnti;Trasferimenti correnti;Trasferimenti correnti a Famiglie;Interventi assistenziali;Altri assegni e sussidi assistenziali
275;155;OMESSO NOMINATIVO NEL RISPETTO DELLA NORMATIVA SULLA PROTEZIONE DATI PERSONALI; ;13/02/2023;1920;15;1;Spese correnti;Trasferimenti correnti;Trasferimenti correnti a Famiglie;Interventi assistenziali;Altri assegni e sussidi assistenziali
276;249,72;OMESSO NOMINATIVO NEL RISPETTO DELLA NORMATIVA SULLA PROTEZIONE DATI PERSONALI; ;13/02/2023;1920;15;1;Spese correnti;Trasferimenti correnti;Trasferimenti correnti a Famiglie;Interventi assistenziali;Altri assegni e sussidi assistenziali
277;181,87;OMESSO NOMINATIVO NEL RISPETTO DELLA NORMATIVA SULLA PROTEZIONE DATI PERSONALI; ;13/02/2023;1920;15;1;Spese correnti;Trasferimenti correnti;Trasferimenti correnti a Famiglie;Interventi assistenziali;Altri assegni e sussidi assistenziali
278;347,91;OMESSO NOMINATIVO NEL RISPETTO DELLA NORMATIVA SULLA PROTEZIONE DATI PERSONALI; ;13/02/2023;1920;15;1;Spese correnti;Trasferimenti correnti;Trasferimenti correnti a Famiglie;Interventi assistenziali;Altri assegni e sussidi assistenziali
279;166,8;OMESSO NOMINATIVO NEL RISPETTO DELLA NORMATIVA SULLA PROTEZIONE DATI PERSONALI; ;13/02/2023;1920;15;1;Spese correnti;Trasferimenti correnti;Trasferimenti correnti a Famiglie;Interventi assistenziali;Altri assegni e sussidi assistenziali
280;156,25;OMESSO NOMINATIVO NEL RISPETTO DELLA NORMATIVA SULLA PROTEZIONE DATI PERSONALI; ;13/02/2023;1920;15;1;Spese correnti;Trasferimenti correnti;Trasferimenti correnti a Famiglie;Interventi assistenziali;Altri assegni e sussidi assistenziali
281;194,37;OMESSO NOMINATIVO NEL RISPETTO DELLA NORMATIVA SULLA PROTEZIONE DATI PERSONALI; ;13/02/2023;1920;15;1;Spese correnti;Trasferimenti correnti;Trasferimenti correnti a Famiglie;Interventi assistenziali;Altri assegni e sussidi assistenziali
282;185,69;OMESSO NOMINATIVO NEL RISPETTO DELLA NORMATIVA SULLA PROTEZIONE DATI PERSONALI; ;13/02/2023;1920;15;1;Spese correnti;Trasferimenti correnti;Trasferimenti correnti a Famiglie;Interventi assistenziali;Altri assegni e sussidi assistenziali
283;780,13;OMESSO NOMINATIVO NEL RISPETTO DELLA NORMATIVA SULLA PROTEZIONE DATI PERSONALI; ;13/02/2023;1920;0;1;Spese correnti;Trasferimenti correnti;Trasferimenti correnti a Famiglie;Interventi assistenziali;Altri assegni e sussidi assistenziali
284;366,14;OMESSO NOMINATIVO NEL RISPETTO DELLA NORMATIVA SULLA PROTEZIONE DATI PERSONALI; ;13/02/2023;1920;0;1;Spese correnti;Trasferimenti correnti;Trasferimenti correnti a Famiglie;Interventi assistenziali;Altri assegni e sussidi assistenziali
285;1.223,80;OMESSO NOMINATIVO NEL RISPETTO DELLA NORMATIVA SULLA PROTEZIONE DATI PERSONALI; ;13/02/2023;1920;0;1;Spese correnti;Trasferimenti correnti;Trasferimenti correnti a Famiglie;Interventi assistenziali;Altri assegni e sussidi assistenziali
286;534,12;OMESSO NOMINATIVO NEL RISPETTO DELLA NORMATIVA SULLA PROTEZIONE DATI PERSONALI; ;13/02/2023;1920;0;1;Spese correnti;Trasferimenti correnti;Trasferimenti correnti a Famiglie;Interventi assistenziali;Altri assegni e sussidi assistenziali
287;179,69;OMESSO NOMINATIVO NEL RISPETTO DELLA NORMATIVA SULLA PROTEZIONE DATI PERSONALI; ;13/02/2023;1920;15;1;Spese correnti;Trasferimenti correnti;Trasferimenti correnti a Famiglie;Interventi assistenziali;Altri assegni e sussidi assistenziali
288;313,31;OMESSO NOMINATIVO NEL RISPETTO DELLA NORMATIVA SULLA PROTEZIONE DATI PERSONALI; ;13/02/2023;1920;15;1;Spese correnti;Trasferimenti correnti;Trasferimenti correnti a Famiglie;Interventi assistenziali;Altri assegni e sussidi assistenziali
289;157,41;OMESSO NOMINATIVO NEL RISPETTO DELLA NORMATIVA SULLA PROTEZIONE DATI PERSONALI; ;13/02/2023;1920;15;1;Spese correnti;Trasferimenti correnti;Trasferimenti correnti a Famiglie;Interventi assistenziali;Altri assegni e sussidi assistenziali
290;1.064,33;OMESSO NOMINATIVO NEL RISPETTO DELLA NORMATIVA SULLA PROTEZIONE DATI PERSONALI; ;13/02/2023;1920;0;1;Spese correnti;Trasferimenti correnti;Trasferimenti correnti a Famiglie;Interventi assistenziali;Altri assegni e sussidi assistenziali
291;325,49;OMESSO NOMINATIVO NEL RISPETTO DELLA NORMATIVA SULLA PROTEZIONE DATI PERSONALI; ;13/02/2023;1920;0;1;Spese correnti;Trasferimenti correnti;Trasferimenti correnti a Famiglie;Interventi assistenziali;Altri assegni e sussidi assistenziali
292;317,98;OMESSO NOMINATIVO NEL RISPETTO DELLA NORMATIVA SULLA PROTEZIONE DATI PERSONALI; ;13/02/2023;1920;15;1;Spese correnti;Trasferimenti correnti;Trasferimenti correnti a Famiglie;Interventi assistenziali;Altri assegni e sussidi assistenziali
293;4.000,01;PRO.TU.SAR. DI PIRAS RAFFAELE;9344454761;13/02/2023;1417;3;1;Spese correnti;Acquisto di beni e servizi;Acquisto di servizi;Contratti di servizio pubblico;Contratti di servizio di trasporto scolastico
294;983,32;ISAR COOPERATIVA SOCIALE ONLUS;Z6E33B9DBA;17/02/2023;1036;0;1;Spese correnti;Acquisto di beni e servizi;Acquisto di servizi;Servizi ausiliari per il funzionamento dell'ente;Servizi di pulizia e lavanderia
295;160,83;OMESSO NOMINATIVO NEL RISPETTO DELLA NORMATIVA SULLA PROTEZIONE DATI PERSONALI; ;17/02/2023;1920;15;1;Spese correnti;Trasferimenti correnti;Trasferimenti correnti a Famiglie;Interventi assistenziali;Altri assegni e sussidi assistenziali
296;250;OMESSO NOMINATIVO NEL RISPETTO DELLA NORMATIVA SULLA PROTEZIONE DATI PERSONALI; ;17/02/2023;1920;15;1;Spese correnti;Trasferimenti correnti;Trasferimenti correnti a Famiglie;Interventi assistenziali;Altri assegni e sussidi assistenziali
297;407,63;OMESSO NOMINATIVO NEL RISPETTO DELLA NORMATIVA SULLA PROTEZIONE DATI PERSONALI; ;17/02/2023;1920;15;1;Spese correnti;Trasferimenti correnti;Trasferimenti correnti a Famiglie;Interventi assistenziali;Altri assegni e sussidi assistenziali
298;159,37;OMESSO NOMINATIVO NEL RISPETTO DELLA NORMATIVA SULLA PROTEZIONE DATI PERSONALI; ;17/02/2023;1920;15;1;Spese correnti;Trasferimenti correnti;Trasferimenti correnti a Famiglie;Interventi assistenziali;Altri assegni e sussidi assistenziali
299;333,02;OMESSO NOMINATIVO NEL RISPETTO DELLA NORMATIVA SULLA PROTEZIONE DATI PERSONALI; ;17/02/2023;1920;15;1;Spese correnti;Trasferimenti correnti;Trasferimenti correnti a Famiglie;Interventi assistenziali;Altri assegni e sussidi assistenziali
300;148,26;OMESSO NOMINATIVO NEL RISPETTO DELLA NORMATIVA SULLA PROTEZIONE DATI PERSONALI; ;17/02/2023;1920;15;1;Spese correnti;Trasferimenti correnti;Trasferimenti correnti a Famiglie;Interventi assistenziali;Altri assegni e sussidi assistenziali
331;1.956,15;DIVERSI; ;24/02/2023;1001;0;1;Spese correnti;Acquisto di beni e servizi;Acquisto di servizi;Organi e incarichi istituzionali dell'amministrazione;Organi istituzionali dell'amministrazione - Indennità
334;990;COMUNE DI GIBA; ;24/02/2023;1370;0;1;Spese correnti;Acquisto di beni e servizi;Acquisto di servizi;Contratti di servizio pubblico;Contratti di servizio per le mense scolastiche
335;25,31;SOGGETTI DIVERSI; ;24/02/2023;1917;0;1;Spese correnti;Trasferimenti correnti;Trasferimenti correnti a Famiglie;Interventi assistenziali;Altri assegni e sussidi assistenziali
336;165,45;OMESSO NOMINATIVO NEL RISPETTO DELLA NORMATIVA SULLA PROTEZIONE DATI PERSONALI; ;24/02/2023;1920;15;1;Spese correnti;Trasferimenti correnti;Trasferimenti correnti a Famiglie;Interventi assistenziali;Altri assegni e sussidi assistenziali
337;594;OMESSO NOMINATIVO NEL RISPETTO DELLA NORMATIVA SULLA PROTEZIONE DATI PERSONALI; ;24/02/2023;1920;15;1;Spese correnti;Trasferimenti correnti;Trasferimenti correnti a Famiglie;Interventi assistenziali;Altri assegni e sussidi assistenziali
338;2.557,36;SOGGETTI DIVERSI; ;24/02/2023;3445;0;2;Spese in conto capitale;Contributi agli investimenti;Contributi agli investimenti a Famiglie;Contributi agli investimenti a Famiglie;Contributi agli investimenti a Famiglie
339;120,88;ASEL ASSOCIAZIONE SARDA ENTI LOCALI; ;24/02/2023;1012;0;1;Spese correnti;Acquisto di beni e servizi;Acquisto di servizi;Altri servizi;Quote di associazioni
340;216,76;ANCI SARDEGNA; ;24/02/2023;1011;0;1;Spese correnti;Acquisto di beni e servizi;Acquisto di servizi;Altri servizi;Quote di associazioni
341;8.575,77;AGRINOA SOCIETA' AGRICOLA COOPERATIVA SOCIALE;Z3235A2F58;27/02/2023;1742;4;1;Spese correnti;Acquisto di beni e servizi;Acquisto di servizi;Altri servizi;Altri servizi diversi n.a.c.
342;646,84;AGRINOA SOCIETA' AGRICOLA COOPERATIVA SOCIALE;Z9D35A5407;27/02/2023;1742;2;1;Spese correnti;Acquisto di beni e servizi;Acquisto di servizi;Altri servizi;Altri servizi diversi n.a.c.
343;38,17;ABBANOA S.P.A.; ;27/02/2023;1087;3;1;Spese correnti;Acquisto di beni e servizi;Acquisto di servizi;Utenze e canoni;Acqua
344;361,35;ABBANOA S.P.A.; ;27/02/2023;1657;0;1;Spese correnti;Acquisto di beni e servizi;Acquisto di servizi;Utenze e canoni;Acqua
345;1.764,51;OMESSO NOMINATIVO NEL RISPETTO DELLA NORMATIVA SULLA PROTEZIONE DATI PERSONALI; ;27/02/2023;1920;2;1;Spese correnti;Trasferimenti correnti;Trasferimenti correnti a Famiglie;Interventi assistenziali;Altri assegni e sussidi assistenziali
346;131,75;OMESSO NOMINATIVO NEL RISPETTO DELLA NORMATIVA SULLA PROTEZIONE DATI PERSONALI; ;27/02/2023;1920;2;1;Spese correnti;Trasferimenti correnti;Trasferimenti correnti a Famiglie;Interventi assistenziali;Altri assegni e sussidi assistenziali
347;1.000,00;FONDAZIONE CAMMINO MINERARIO DI SANTA BARBARA; ;27/02/2023;1035;0;1;Spese correnti;Trasferimenti correnti;Trasferimenti correnti a Amministrazioni Pubbliche;Trasferimenti correnti a Amministrazioni Locali;Trasferimenti correnti a Consorzi di enti locali
348;264,51;FATICONI S.P.A.;Z10310615F;27/02/2023;1043;5;1;Spese correnti;Acquisto di beni e servizi;Acquisto di servizi;Utilizzo di beni di terzi;Noleggi di impianti e macchinari
349;264,51;FATICONI S.P.A.;Z10310615F;27/02/2023;1087;1;1;Spese correnti;Acquisto di beni e servizi;Acquisto di servizi;Utilizzo di beni di terzi;Noleggi di impianti e macchinari
350;10,86;ENEL ENERGIA S.P.A.;ZA135CD269;27/02/2023;1937;0;1;Spese correnti;Acquisto di beni e servizi;Acquisto di servizi;Utenze e canoni;Energia elettrica
350;22,09;ENEL ENERGIA S.P.A.;9146558A6E;27/02/2023;1937;0;1;Spese correnti;Acquisto di beni e servizi;Acquisto di servizi;Utenze e canoni;Energia elettrica
350;32,04;ENEL ENERGIA S.P.A.;9146558A6E;27/02/2023;1937;0;1;Spese correnti;Acquisto di beni e servizi;Acquisto di servizi;Utenze e canoni;Energia elettrica
350;237,85;ENEL ENERGIA S.P.A.;9146558A6E;27/02/2023;1937;0;1;Spese correnti;Acquisto di beni e servizi;Acquisto di servizi;Utenze e canoni;Energia elettrica
350;424,71;ENEL ENERGIA S.P.A.;9146558A6E;27/02/2023;1937;0;1;Spese correnti;Acquisto di beni e servizi;Acquisto di servizi;Utenze e canoni;Energia elettrica
350;779,85;ENEL ENERGIA S.P.A.;9146558A6E;27/02/2023;1937;0;1;Spese correnti;Acquisto di beni e servizi;Acquisto di servizi;Utenze e canoni;Energia elettrica
350;1.408,28;ENEL ENERGIA S.P.A.;9146558A6E;27/02/2023;1937;0;1;Spese correnti;Acquisto di beni e servizi;Acquisto di servizi;Utenze e canoni;Energia elettrica
351;211,52;ENEL ENERGIA S.P.A.;9146558A6E;27/02/2023;1386;2;1;Spese correnti;Acquisto di beni e servizi;Acquisto di servizi;Utenze e canoni;Energia elettrica
352;454,92;ENEL ENERGIA S.P.A.;9146558A6E;27/02/2023;1366;3;1;Spese correnti;Acquisto di beni e servizi;Acquisto di servizi;Utenze e canoni;Energia elettrica
353;25,38;ENEL ENERGIA S.P.A.;9146558A6E;27/02/2023;1087;2;1;Spese correnti;Acquisto di beni e servizi;Acquisto di servizi;Utenze e canoni;Energia elettrica
353;109,59;ENEL ENERGIA S.P.A.;9146558A6E;27/02/2023;1087;2;1;Spese correnti;Acquisto di beni e servizi;Acquisto di servizi;Utenze e canoni;Energia elettrica
353;1.423,41;ENEL ENERGIA S.P.A.;9146558A6E;27/02/2023;1087;2;1;Spese correnti;Acquisto di beni e servizi;Acquisto di servizi;Utenze e canoni;Energia elettrica
354;15,49;ENEL ENERGIA S.P.A.;9146558A6E;27/02/2023;1826;1;1;Spese correnti;Acquisto di beni e servizi;Acquisto di servizi;Utenze e canoni;Energia elettrica
354;61,38;ENEL ENERGIA S.P.A.;9146558A6E;27/02/2023;1826;1;1;Spese correnti;Acquisto di beni e servizi;Acquisto di servizi;Utenze e canoni;Energia elettrica
355;10,86;ENEL ENERGIA S.P.A.;9146558A6E;27/02/2023;1526;0;1;Spese correnti;Acquisto di beni e servizi;Acquisto di servizi;Utenze e canoni;Energia elettrica
355;165,66;ENEL ENERGIA S.P.A.;9146558A6E;27/02/2023;1526;0;1;Spese correnti;Acquisto di beni e servizi;Acquisto di servizi;Utenze e canoni;Energia elettrica
355;334,65;ENEL ENERGIA S.P.A.;9146558A6E;27/02/2023;1526;0;1;Spese correnti;Acquisto di beni e servizi;Acquisto di servizi;Utenze e canoni;Energia elettrica
356;48,48;ENEL ENERGIA S.P.A.;9146558A6E;27/02/2023;1656;1;1;Spese correnti;Acquisto di beni e servizi;Acquisto di servizi;Utenze e canoni;Energia elettrica
357;37,41;ENEL ENERGIA S.P.A.;9146558A6E;27/02/2023;1090;0;1;Spese correnti;Acquisto di beni e servizi;Acquisto di servizi;Utenze e canoni;Energia elettrica
358;314,81;ENEL ENERGIA S.P.A.;9146558A6E;27/02/2023;1086;0;1;Spese correnti;Acquisto di beni e servizi;Acquisto di servizi;Utenze e canoni;Energia elettrica
359;225;AUTORITA' NAZIONALE ANTICORRUZIONE (A.N.A.C.) EX AVCP; ;27/02/2023;3467;1;2;Spese in conto capitale;Investimenti fissi lordi e acquisto di terreni;Beni materiali;Beni immobili;Altre vie di comunicazione
360;30;AUTORITA' NAZIONALE ANTICORRUZIONE (A.N.A.C.) EX AVCP;9190879947;27/02/2023;3214;0;2;Spese in conto capitale;Investimenti fissi lordi e acquisto di terreni;Beni materiali;Beni immobili;Musei, teatri e biblioteche
361;30;AUTORITA' NAZIONALE ANTICORRUZIONE (A.N.A.C.) EX AVCP;922750385C;27/02/2023;3215;0;2;Spese in conto capitale;Investimenti fissi lordi e acquisto di terreni;Beni materiali;Beni immobili;Musei, teatri e biblioteche
362;225;AUTORITA' NAZIONALE ANTICORRUZIONE (A.N.A.C.) EX AVCP;9240852050;27/02/2023;3467;0;2;Spese in conto capitale;Investimenti fissi lordi e acquisto di terreni;Beni materiali;Beni immobili;Altre vie di comunicazione
363;30;AUTORITA' NAZIONALE ANTICORRUZIONE (A.N.A.C.) EX AVCP;93126333DD;27/02/2023;3481;1;2;Spese in conto capitale;Investimenti fissi lordi e acquisto di terreni;Beni materiali;Beni immobili;Altre vie di comunicazione
364;30;AUTORITA' NAZIONALE ANTICORRUZIONE (A.N.A.C.) EX AVCP;9344454761;27/02/2023;1043;4;1;Spese correnti;Acquisto di beni e servizi;Acquisto di servizi;Prestazioni professionali e specialistiche;Altre prestazioni professionali e specialistiche n.a.c.
365;30;AUTORITA' NAZIONALE ANTICORRUZIONE (A.N.A.C.) EX AVCP;9,48E+15;27/02/2023;3467;1;2;Spese in conto capitale;Investimenti fissi lordi e acquisto di terreni;Beni materiali;Beni immobili;Altre vie di comunicazione
366;30;AUTORITA' NAZIONALE ANTICORRUZIONE (A.N.A.C.) EX AVCP;94989361F7;27/02/2023;3242;0;2;Spese in conto capitale;Investimenti fissi lordi e acquisto di terreni;Beni materiali;Beni immobili;Opere per la sistemazione del suolo
368;550;OMESSO NOMINATIVO NEL RISPETTO DELLA NORMATIVA SULLA PROTEZIONE DATI PERSONALI; ;13/03/2023;1920;15;1;Spese correnti;Trasferimenti correnti;Trasferimenti correnti a Famiglie;Interventi assistenziali;Altri assegni e sussidi assistenziali
369;506,85;SOGGETTI DIVERSI; ;13/03/2023;1916;0;1;Spese correnti;Trasferimenti correnti;Trasferimenti correnti a Famiglie;Interventi assistenziali;Altri assegni e sussidi assistenziali
370;5.215,60;COMUNE DI GIBA; ;13/03/2023;1370;0;1;Spese correnti;Acquisto di beni e servizi;Acquisto di servizi;Contratti di servizio pubblico;Contratti di servizio per le mense scolastiche
371;1.021,12;COMUNE DI GIBA; ;13/03/2023;1370;0;1;Spese correnti;Acquisto di beni e servizi;Acquisto di servizi;Contratti di servizio pubblico;Contratti di servizio per le mense scolastiche
372;122;OMESSO NOMINATIVO NEL RISPETTO DELLA NORMATIVA SULLA PROTEZIONE DATI PERSONALI; ;13/03/2023;1920;15;1;Spese correnti;Trasferimenti correnti;Trasferimenti correnti a Famiglie;Interventi assistenziali;Altri assegni e sussidi assistenziali
373;176,25;OMESSO NOMINATIVO NEL RISPETTO DELLA NORMATIVA SULLA PROTEZIONE DATI PERSONALI; ;14/03/2023;1920;15;1;Spese correnti;Trasferimenti correnti;Trasferimenti correnti a Famiglie;Interventi assistenziali;Altri assegni e sussidi assistenziali
374;183,48;OMESSO NOMINATIVO NEL RISPETTO DELLA NORMATIVA SULLA PROTEZIONE DATI PERSONALI; ;14/03/2023;1920;15;1;Spese correnti;Trasferimenti correnti;Trasferimenti correnti a Famiglie;Interventi assistenziali;Altri assegni e sussidi assistenziali
375;166,8;OMESSO NOMINATIVO NEL RISPETTO DELLA NORMATIVA SULLA PROTEZIONE DATI PERSONALI; ;14/03/2023;1920;15;1;Spese correnti;Trasferimenti correnti;Trasferimenti correnti a Famiglie;Interventi assistenziali;Altri assegni e sussidi assistenziali
376;375;OMESSO NOMINATIVO NEL RISPETTO DELLA NORMATIVA SULLA PROTEZIONE DATI PERSONALI; ;14/03/2023;1920;15;1;Spese correnti;Trasferimenti correnti;Trasferimenti correnti a Famiglie;Interventi assistenziali;Altri assegni e sussidi assistenziali
377;260,23;OMESSO NOMINATIVO NEL RISPETTO DELLA NORMATIVA SULLA PROTEZIONE DATI PERSONALI; ;14/03/2023;1920;15;1;Spese correnti;Trasferimenti correnti;Trasferimenti correnti a Famiglie;Interventi assistenziali;Altri assegni e sussidi assistenziali
378;156,25;OMESSO NOMINATIVO NEL RISPETTO DELLA NORMATIVA SULLA PROTEZIONE DATI PERSONALI; ;14/03/2023;1920;15;1;Spese correnti;Trasferimenti correnti;Trasferimenti correnti a Famiglie;Interventi assistenziali;Altri assegni e sussidi assistenziali
379;989,08;OMESSO NOMINATIVO NEL RISPETTO DELLA NORMATIVA SULLA PROTEZIONE DATI PERSONALI; ;14/03/2023;1920;0;1;Spese correnti;Trasferimenti correnti;Trasferimenti correnti a Famiglie;Interventi assistenziali;Altri assegni e sussidi assistenziali
380;313,29;OMESSO NOMINATIVO NEL RISPETTO DELLA NORMATIVA SULLA PROTEZIONE DATI PERSONALI; ;14/03/2023;1920;15;1;Spese correnti;Trasferimenti correnti;Trasferimenti correnti a Famiglie;Interventi assistenziali;Altri assegni e sussidi assistenziali
381;155;OMESSO NOMINATIVO NEL RISPETTO DELLA NORMATIVA SULLA PROTEZIONE DATI PERSONALI; ;14/03/2023;1920;15;1;Spese correnti;Trasferimenti correnti;Trasferimenti correnti a Famiglie;Interventi assistenziali;Altri assegni e sussidi assistenziali
382;181,87;OMESSO NOMINATIVO NEL RISPETTO DELLA NORMATIVA SULLA PROTEZIONE DATI PERSONALI; ;14/03/2023;1920;15;1;Spese correnti;Trasferimenti correnti;Trasferimenti correnti a Famiglie;Interventi assistenziali;Altri assegni e sussidi assistenziali
383;196,29;OMESSO NOMINATIVO NEL RISPETTO DELLA NORMATIVA SULLA PROTEZIONE DATI PERSONALI; ;14/03/2023;1920;15;1;Spese correnti;Trasferimenti correnti;Trasferimenti correnti a Famiglie;Interventi assistenziali;Altri assegni e sussidi assistenziali
384;180,39;OMESSO NOMINATIVO NEL RISPETTO DELLA NORMATIVA SULLA PROTEZIONE DATI PERSONALI; ;14/03/2023;1920;15;1;Spese correnti;Trasferimenti correnti;Trasferimenti correnti a Famiglie;Interventi assistenziali;Altri assegni e sussidi assistenziali
385;343,29;OMESSO NOMINATIVO NEL RISPETTO DELLA NORMATIVA SULLA PROTEZIONE DATI PERSONALI; ;14/03/2023;1920;0;1;Spese correnti;Trasferimenti correnti;Trasferimenti correnti a Famiglie;Interventi assistenziali;Altri assegni e sussidi assistenziali
386;256,39;OMESSO NOMINATIVO NEL RISPETTO DELLA NORMATIVA SULLA PROTEZIONE DATI PERSONALI; ;14/03/2023;1920;0;1;Spese correnti;Trasferimenti correnti;Trasferimenti correnti a Famiglie;Interventi assistenziali;Altri assegni e sussidi assistenziali
387;166,66;OMESSO NOMINATIVO NEL RISPETTO DELLA NORMATIVA SULLA PROTEZIONE DATI PERSONALI; ;14/03/2023;1920;15;1;Spese correnti;Trasferimenti correnti;Trasferimenti correnti a Famiglie;Interventi assistenziali;Altri assegni e sussidi assistenziali
388;295,04;OMESSO NOMINATIVO NEL RISPETTO DELLA NORMATIVA SULLA PROTEZIONE DATI PERSONALI; ;14/03/2023;1920;15;1;Spese correnti;Trasferimenti correnti;Trasferimenti correnti a Famiglie;Interventi assistenziali;Altri assegni e sussidi assistenziali
389;147,03;OMESSO NOMINATIVO NEL RISPETTO DELLA NORMATIVA SULLA PROTEZIONE DATI PERSONALI; ;14/03/2023;1920;15;1;Spese correnti;Trasferimenti correnti;Trasferimenti correnti a Famiglie;Interventi assistenziali;Altri assegni e sussidi assistenziali
390;1.177,99;OMESSO NOMINATIVO NEL RISPETTO DELLA NORMATIVA SULLA PROTEZIONE DATI PERSONALI; ;14/03/2023;1920;0;1;Spese correnti;Trasferimenti correnti;Trasferimenti correnti a Famiglie;Interventi assistenziali;Altri assegni e sussidi assistenziali
391;123;OMESSO NOMINATIVO NEL RISPETTO DELLA NORMATIVA SULLA PROTEZIONE DATI PERSONALI; ;14/03/2023;1920;15;1;Spese correnti;Trasferimenti correnti;Trasferimenti correnti a Famiglie;Interventi assistenziali;Altri assegni e sussidi assistenziali
392;176,25;OMESSO NOMINATIVO NEL RISPETTO DELLA NORMATIVA SULLA PROTEZIONE DATI PERSONALI; ;14/03/2023;1920;15;1;Spese correnti;Trasferimenti correnti;Trasferimenti correnti a Famiglie;Interventi assistenziali;Altri assegni e sussidi assistenziali
393;182,17;OMESSO NOMINATIVO NEL RISPETTO DELLA NORMATIVA SULLA PROTEZIONE DATI PERSONALI; ;14/03/2023;1920;15;1;Spese correnti;Trasferimenti correnti;Trasferimenti correnti a Famiglie;Interventi assistenziali;Altri assegni e sussidi assistenziali
394;363,74;COOP. SOCIALE ADEST A R.L. ONLUS; ;14/03/2023;1920;15;1;Spese correnti;Trasferimenti correnti;Trasferimenti correnti a Famiglie;Interventi assistenziali;Altri assegni e sussidi assistenziali
395;500;OMESSO NOMINATIVO NEL RISPETTO DELLA NORMATIVA SULLA PROTEZIONE DATI PERSONALI; ;14/03/2023;1920;15;1;Spese correnti;Trasferimenti correnti;Trasferimenti correnti a Famiglie;Interventi assistenziali;Altri assegni e sussidi assistenziali
396;2.036,66;OMESSO NOMINATIVO NEL RISPETTO DELLA NORMATIVA SULLA PROTEZIONE DATI PERSONALI; ;14/03/2023;1920;15;1;Spese correnti;Trasferimenti correnti;Trasferimenti correnti a Famiglie;Interventi assistenziali;Altri assegni e sussidi assistenziali
397;500;OMESSO NOMINATIVO NEL RISPETTO DELLA NORMATIVA SULLA PROTEZIONE DATI PERSONALI; ;14/03/2023;1920;15;1;Spese correnti;Trasferimenti correnti;Trasferimenti correnti a Famiglie;Interventi assistenziali;Altri assegni e sussidi assistenziali
398;352,5;OMESSO NOMINATIVO NEL RISPETTO DELLA NORMATIVA SULLA PROTEZIONE DATI PERSONALI; ;14/03/2023;1920;15;1;Spese correnti;Trasferimenti correnti;Trasferimenti correnti a Famiglie;Interventi assistenziali;Altri assegni e sussidi assistenziali
399;485;OMESSO NOMINATIVO NEL RISPETTO DELLA NORMATIVA SULLA PROTEZIONE DATI PERSONALI; ;14/03/2023;1920;15;1;Spese correnti;Trasferimenti correnti;Trasferimenti correnti a Famiglie;Interventi assistenziali;Altri assegni e sussidi assistenziali
400;705;OMESSO NOMINATIVO NEL RISPETTO DELLA NORMATIVA SULLA PROTEZIONE DATI PERSONALI; ;14/03/2023;1920;15;1;Spese correnti;Trasferimenti correnti;Trasferimenti correnti a Famiglie;Interventi assistenziali;Altri assegni e sussidi assistenziali
401;462;OMESSO NOMINATIVO NEL RISPETTO DELLA NORMATIVA SULLA PROTEZIONE DATI PERSONALI; ;14/03/2023;1920;15;1;Spese correnti;Trasferimenti correnti;Trasferimenti correnti a Famiglie;Interventi assistenziali;Altri assegni e sussidi assistenziali
402;705;OMESSO NOMINATIVO NEL RISPETTO DELLA NORMATIVA SULLA PROTEZIONE DATI PERSONALI; ;14/03/2023;1920;15;1;Spese correnti;Trasferimenti correnti;Trasferimenti correnti a Famiglie;Interventi assistenziali;Altri assegni e sussidi assistenziali
403;750;OMESSO NOMINATIVO NEL RISPETTO DELLA NORMATIVA SULLA PROTEZIONE DATI PERSONALI; ;14/03/2023;1920;15;1;Spese correnti;Trasferimenti correnti;Trasferimenti correnti a Famiglie;Interventi assistenziali;Altri assegni e sussidi assistenziali
404;312,5;OMESSO NOMINATIVO NEL RISPETTO DELLA NORMATIVA SULLA PROTEZIONE DATI PERSONALI; ;14/03/2023;1920;15;1;Spese correnti;Trasferimenti correnti;Trasferimenti correnti a Famiglie;Interventi assistenziali;Altri assegni e sussidi assistenziali
405;479,78;SOGGETTI DIVERSI; ;14/03/2023;1916;0;1;Spese correnti;Trasferimenti correnti;Trasferimenti correnti a Famiglie;Interventi assistenziali;Altri assegni e sussidi assistenziali
406;139,24;OMESSO NOMINATIVO NEL RISPETTO DELLA NORMATIVA SULLA PROTEZIONE DATI PERSONALI; ;14/03/2023;1920;15;1;Spese correnti;Trasferimenti correnti;Trasferimenti correnti a Famiglie;Interventi assistenziali;Altri assegni e sussidi assistenziali
407;224,24;OMESSO NOMINATIVO NEL RISPETTO DELLA NORMATIVA SULLA PROTEZIONE DATI PERSONALI; ;14/03/2023;1920;15;1;Spese correnti;Trasferimenti correnti;Trasferimenti correnti a Famiglie;Interventi assistenziali;Altri assegni e sussidi assistenziali
408;250;OMESSO NOMINATIVO NEL RISPETTO DELLA NORMATIVA SULLA PROTEZIONE DATI PERSONALI; ;14/03/2023;1920;15;1;Spese correnti;Trasferimenti correnti;Trasferimenti correnti a Famiglie;Interventi assistenziali;Altri assegni e sussidi assistenziali
409;219,6;MAGGIOLI SPA -;Z0938F4460;14/03/2023;1046;1;1;Spese correnti;Acquisto di beni e servizi;Acquisto di servizi;Altri servizi;Altri servizi diversi n.a.c.
410;4.000,01;PRO.TU.SAR. DI PIRAS RAFFAELE;9344454761;14/03/2023;1417;3;1;Spese correnti;Acquisto di beni e servizi;Acquisto di servizi;Contratti di servizio pubblico;Contratti di servizio di trasporto scolastico
411;983,32;ISAR COOPERATIVA SOCIALE ONLUS;Z6E33B9DBA;14/03/2023;1036;0;1;Spese correnti;Acquisto di beni e servizi;Acquisto di servizi;Servizi ausiliari per il funzionamento dell'ente;Servizi di pulizia e lavanderia
412;149,5;OMESSO NOMINATIVO NEL RISPETTO DELLA NORMATIVA SULLA PROTEZIONE DATI PERSONALI;Z4F3A23BE5;14/03/2023;1043;0;1;Spese correnti;Acquisto di beni e servizi;Acquisto di beni;Altri beni di consumo;Materiale informatico
413;488;MEDIANET SRL;Z05390F79B;14/03/2023;1043;2;1;Spese correnti;Acquisto di beni e servizi;Acquisto di servizi;Utenze e canoni;Telefonia fissa
414;493,5;COOPERATIVA DIMENSIONE UMANA  a.r.l.  ONLUS;ZDB31B66F8;14/03/2023;1920;12;1;Spese correnti;Acquisto di beni e servizi;Acquisto di servizi;Contratti di servizio pubblico;Altre spese per contratti di servizio pubblico
415;350;SEPEL SRL;Z2C39AC941;14/03/2023;1043;0;1;Spese correnti;Acquisto di beni e servizi;Acquisto di beni;Altri beni di consumo;Carta, cancelleria e stampati
417;300;A.N.U.T.E.L.; ;20/03/2023;1050;0;1;Spese correnti;Acquisto di beni e servizi;Acquisto di servizi;Altri servizi;Quote di associazioni
418;3.252,32;ASMEL CONSORTILE SOC. CONS. A R.L.;9548518652;20/03/2023;3231;0;2;Spese in conto capitale;Investimenti fissi lordi e acquisto di terreni;Beni materiali;Beni immobili;Fabbricati ad uso abitativo
419;2.764,61;ASMEL CONSORTILE SOC. CONS. A R.L.;940845028E;20/03/2023;3134;0;2;Spese in conto capitale;Investimenti fissi lordi e acquisto di terreni;Beni materiali;Beni immobili;Fabbricati ad uso scolastico
453;215;SOGGETTI DIVERSI; ;23/03/2023;1919;6;1;Spese correnti;Trasferimenti correnti;Trasferimenti correnti a Famiglie;Interventi assistenziali;Altri assegni e sussidi assistenziali
454;405;SOGGETTI DIVERSI; ;23/03/2023;1919;6;1;Spese correnti;Trasferimenti correnti;Trasferimenti correnti a Famiglie;Interventi assistenziali;Altri assegni e sussidi assistenziali
455;288,74;IMPRESA ARTIGIANA MURGIA FABRIZIO;ZCA3939A52;23/03/2023;3212;0;2;Spese in conto capitale;Investimenti fissi lordi e acquisto di terreni;Beni materiali;Beni immobili;Fabbricati ad uso commerciale
456;1.663,26;IMPRESA ARTIGIANA MURGIA FABRIZIO;ZCA3939A52;23/03/2023;3001;0;2;Spese in conto capitale;Investimenti fissi lordi e acquisto di terreni;Beni materiali;Beni immobili;Fabbricati ad uso commerciale
457;22.169,11;ATZORI SERGIO DI ATZORI EZIO INFISSI IN ALLUMINIO;ZA7394BDE4;23/03/2023;3212;2;2;Spese in conto capitale;Investimenti fissi lordi e acquisto di terreni;Beni materiali;Beni immobili;Fabbricati ad uso commerciale
458;3.344,99;ATZORI SERGIO DI ATZORI EZIO INFISSI IN ALLUMINIO;ZA7394BDE4;23/03/2023;3212;0;2;Spese in conto capitale;Investimenti fissi lordi e acquisto di terreni;Beni materiali;Beni immobili;Fabbricati ad uso commerciale
459;127,1;KUWAIT PETROLEUM ITALIA SPA;Z5235D861D;23/03/2023;1057;0;1;Spese correnti;Acquisto di beni e servizi;Acquisto di beni;Altri beni di consumo;Carburanti, combustibili e lubrificanti
460;126,1;TECNOCASIC  S.P.A.;ZF9396C612;23/03/2023;1739;0;1;Spese correnti;Acquisto di beni e servizi;Acquisto di servizi;Contratti di servizio pubblico;Contratti di servizio per il conferimento in discarica dei rifiuti
460;327,76;TECNOCASIC  S.P.A.;ZF9396C612;23/03/2023;1739;0;1;Spese correnti;Acquisto di beni e servizi;Acquisto di servizi;Contratti di servizio pubblico;Contratti di servizio per il conferimento in discarica dei rifiuti
460;819,39;TECNOCASIC  S.P.A.;ZF9396C612;23/03/2023;1739;0;1;Spese correnti;Acquisto di beni e servizi;Acquisto di servizi;Contratti di servizio pubblico;Contratti di servizio per il conferimento in discarica dei rifiuti
460;1.031,34;TECNOCASIC  S.P.A.;ZF9396C612;23/03/2023;1739;0;1;Spese correnti;Acquisto di beni e servizi;Acquisto di servizi;Contratti di servizio pubblico;Contratti di servizio per il conferimento in discarica dei rifiuti
461;93,7;VERDE VITA SRL;ZE2396C1D5;23/03/2023;1739;0;1;Spese correnti;Acquisto di beni e servizi;Acquisto di servizi;Contratti di servizio pubblico;Contratti di servizio per il conferimento in discarica dei rifiuti
461;1.693,16;VERDE VITA SRL;ZE2396C1D5;23/03/2023;1739;0;1;Spese correnti;Acquisto di beni e servizi;Acquisto di servizi;Contratti di servizio pubblico;Contratti di servizio per il conferimento in discarica dei rifiuti
462;640,5;SAIU ELETTROSERVICE DI CADDIA GIOVANNA ANGELA;Z0D380CD3E;23/03/2023;1938;0;1;Spese correnti;Acquisto di beni e servizi;Acquisto di servizi;Contratti di servizio pubblico;Contratti di servizio per l'illuminazione pubblica
463;5.875,84;TEKNOSERVICE S.R.L.;ZAE390CDE5;23/03/2023;1738;0;1;Spese correnti;Acquisto di beni e servizi;Acquisto di servizi;Contratti di servizio pubblico;Contratti di servizio per la raccolta rifiuti
464;11,13;ENEL ENERGIA S.P.A.;ZA135CD269;23/03/2023;1937;0;1;Spese correnti;Acquisto di beni e servizi;Acquisto di servizi;Utenze e canoni;Energia elettrica
464;21,83;ENEL ENERGIA S.P.A.;9146558A6E;23/03/2023;1937;0;1;Spese correnti;Acquisto di beni e servizi;Acquisto di servizi;Utenze e canoni;Energia elettrica
464;29,39;ENEL ENERGIA S.P.A.;9146558A6E;23/03/2023;1937;0;1;Spese correnti;Acquisto di beni e servizi;Acquisto di servizi;Utenze e canoni;Energia elettrica
464;200,7;ENEL ENERGIA S.P.A.;9146558A6E;23/03/2023;1937;0;1;Spese correnti;Acquisto di beni e servizi;Acquisto di servizi;Utenze e canoni;Energia elettrica
464;351,6;ENEL ENERGIA S.P.A.;9146558A6E;23/03/2023;1937;0;1;Spese correnti;Acquisto di beni e servizi;Acquisto di servizi;Utenze e canoni;Energia elettrica
464;647,27;ENEL ENERGIA S.P.A.;9146558A6E;23/03/2023;1937;0;1;Spese correnti;Acquisto di beni e servizi;Acquisto di servizi;Utenze e canoni;Energia elettrica
464;1.147,92;ENEL ENERGIA S.P.A.;9146558A6E;23/03/2023;1937;0;1;Spese correnti;Acquisto di beni e servizi;Acquisto di servizi;Utenze e canoni;Energia elettrica
465;200,92;ENEL ENERGIA S.P.A.;9146558A6E;23/03/2023;1386;2;1;Spese correnti;Acquisto di beni e servizi;Acquisto di servizi;Utenze e canoni;Energia elettrica
466;-360,6;ENEL ENERGIA S.P.A.;9146558A6E;23/03/2023;1087;2;1;Spese correnti;Acquisto di beni e servizi;Acquisto di servizi;Utenze e canoni;Energia elettrica
466;26,45;ENEL ENERGIA S.P.A.;9146558A6E;23/03/2023;1087;2;1;Spese correnti;Acquisto di beni e servizi;Acquisto di servizi;Utenze e canoni;Energia elettrica
466;123,46;ENEL ENERGIA S.P.A.;9146558A6E;23/03/2023;1087;2;1;Spese correnti;Acquisto di beni e servizi;Acquisto di servizi;Utenze e canoni;Energia elettrica
466;1.270,00;ENEL ENERGIA S.P.A.;9146558A6E;23/03/2023;1087;2;1;Spese correnti;Acquisto di beni e servizi;Acquisto di servizi;Utenze e canoni;Energia elettrica
467;14,68;ENEL ENERGIA S.P.A.;9146558A6E;23/03/2023;1826;1;1;Spese correnti;Acquisto di beni e servizi;Acquisto di servizi;Utenze e canoni;Energia elettrica
467;55,44;ENEL ENERGIA S.P.A.;9146558A6E;23/03/2023;1826;1;1;Spese correnti;Acquisto di beni e servizi;Acquisto di servizi;Utenze e canoni;Energia elettrica
468;10,86;ENEL ENERGIA S.P.A.;9146558A6E;23/03/2023;1526;0;1;Spese correnti;Acquisto di beni e servizi;Acquisto di servizi;Utenze e canoni;Energia elettrica
468;70,74;ENEL ENERGIA S.P.A.;9146558A6E;23/03/2023;1526;0;1;Spese correnti;Acquisto di beni e servizi;Acquisto di servizi;Utenze e canoni;Energia elettrica
468;298,7;ENEL ENERGIA S.P.A.;9146558A6E;23/03/2023;1526;0;1;Spese correnti;Acquisto di beni e servizi;Acquisto di servizi;Utenze e canoni;Energia elettrica
469;42,11;ENEL ENERGIA S.P.A.;9146558A6E;23/03/2023;1656;1;1;Spese correnti;Acquisto di beni e servizi;Acquisto di servizi;Utenze e canoni;Energia elettrica
470;38,44;ENEL ENERGIA S.P.A.;9146558A6E;23/03/2023;1090;0;1;Spese correnti;Acquisto di beni e servizi;Acquisto di servizi;Utenze e canoni;Energia elettrica
471;279,9;ENEL ENERGIA S.P.A.;9146558A6E;23/03/2023;1086;0;1;Spese correnti;Acquisto di beni e servizi;Acquisto di servizi;Utenze e canoni;Energia elettrica
472;699,38;COMUNE DI PISCINAS;Z9D35A5407;24/03/2023;1742;2;1;Spese correnti;Acquisto di beni e servizi;Acquisto di servizi;Altri servizi;Altri servizi diversi n.a.c.
478;1.956,15;DIVERSI; ;27/03/2023;1001;0;1;Spese correnti;Acquisto di beni e servizi;Acquisto di servizi;Organi e incarichi istituzionali dell'amministrazione;Organi istituzionali dell'amministrazione - Indennità
486;506,22;DIVERSI; ;28/03/2023;1001;0;1;Spese correnti;Acquisto di beni e servizi;Acquisto di servizi;Organi e incarichi istituzionali dell'amministrazione;Organi istituzionali dell'amministrazione - Indennità
491;148,26;OMESSO NOMINATIVO NEL RISPETTO DELLA NORMATIVA SULLA PROTEZIONE DATI PERSONALI; ;28/03/2023;1920;15;1;Spese correnti;Trasferimenti correnti;Trasferimenti correnti a Famiglie;Interventi assistenziali;Altri assegni e sussidi assistenziali
492;333,02;OMESSO NOMINATIVO NEL RISPETTO DELLA NORMATIVA SULLA PROTEZIONE DATI PERSONALI; ;28/03/2023;1920;15;1;Spese correnti;Trasferimenti correnti;Trasferimenti correnti a Famiglie;Interventi assistenziali;Altri assegni e sussidi assistenziali
493;997;OMESSO NOMINATIVO NEL RISPETTO DELLA NORMATIVA SULLA PROTEZIONE DATI PERSONALI; ;28/03/2023;1920;15;1;Spese correnti;Trasferimenti correnti;Trasferimenti correnti a Famiglie;Interventi assistenziali;Altri assegni e sussidi assistenziali
494;111,7;OMESSO NOMINATIVO NEL RISPETTO DELLA NORMATIVA SULLA PROTEZIONE DATI PERSONALI; ;28/03/2023;1920;15;1;Spese correnti;Trasferimenti correnti;Trasferimenti correnti a Famiglie;Interventi assistenziali;Altri assegni e sussidi assistenziali
495;159,37;OMESSO NOMINATIVO NEL RISPETTO DELLA NORMATIVA SULLA PROTEZIONE DATI PERSONALI; ;28/03/2023;1920;15;1;Spese correnti;Trasferimenti correnti;Trasferimenti correnti a Famiglie;Interventi assistenziali;Altri assegni e sussidi assistenziali
496;139,24;OMESSO NOMINATIVO NEL RISPETTO DELLA NORMATIVA SULLA PROTEZIONE DATI PERSONALI; ;28/03/2023;1920;15;1;Spese correnti;Trasferimenti correnti;Trasferimenti correnti a Famiglie;Interventi assistenziali;Altri assegni e sussidi assistenziali
497;216,73;OMESSO NOMINATIVO NEL RISPETTO DELLA NORMATIVA SULLA PROTEZIONE DATI PERSONALI; ;28/03/2023;1920;15;1;Spese correnti;Trasferimenti correnti;Trasferimenti correnti a Famiglie;Interventi assistenziali;Altri assegni e sussidi assistenziali
498;403,59;OMESSO NOMINATIVO NEL RISPETTO DELLA NORMATIVA SULLA PROTEZIONE DATI PERSONALI; ;28/03/2023;1920;15;1;Spese correnti;Trasferimenti correnti;Trasferimenti correnti a Famiglie;Interventi assistenziali;Altri assegni e sussidi assistenziali
499;335,1;OMESSO NOMINATIVO NEL RISPETTO DELLA NORMATIVA SULLA PROTEZIONE DATI PERSONALI; ;28/03/2023;1920;15;1;Spese correnti;Trasferimenti correnti;Trasferimenti correnti a Famiglie;Interventi assistenziali;Altri assegni e sussidi assistenziali
500;1.095,69;OMESSO NOMINATIVO NEL RISPETTO DELLA NORMATIVA SULLA PROTEZIONE DATI PERSONALI; ;28/03/2023;1920;0;1;Spese correnti;Trasferimenti correnti;Trasferimenti correnti a Famiglie;Interventi assistenziali;Altri assegni e sussidi assistenziali
501;3.131,36;OMESSO NOMINATIVO NEL RISPETTO DELLA NORMATIVA SULLA PROTEZIONE DATI PERSONALI; ;28/03/2023;3056;0;2;Spese in conto capitale;Altre spese in conto capitale;Altri rimborsi in conto capitale di somme non dovute o incassate in eccesso;Rimborsi in conto capitale a Famiglie di somme non dovute o incassate in eccesso;Rimborsi in conto capitale a Famiglie di somme non dovute o incassate in eccesso
503;3.172,00;OMESSO NOMINATIVO NEL RISPETTO DELLA NORMATIVA SULLA PROTEZIONE DATI PERSONALI;Z133912780;03/04/2023;1039;0;1;Spese correnti;Acquisto di beni e servizi;Acquisto di servizi;Prestazioni professionali e specialistiche;Patrocinio legale
505;17,5;ECONOMO COMUNALE USAI MARIA CARMINE; ;03/04/2023;1043;0;1;Spese correnti;Acquisto di beni e servizi;Acquisto di beni;Altri beni di consumo;Altri beni e materiali di consumo n.a.c.
506;24,99;ECONOMO COMUNALE USAI MARIA CARMINE; ;03/04/2023;1054;0;1;Spese correnti;Acquisto di beni e servizi;Acquisto di servizi;Servizi finanziari;Oneri per servizio di tesoreria
508;56;ECONOMO COMUNALE USAI MARIA CARMINE; ;03/04/2023;1057;3;1;Spese correnti;Acquisto di beni e servizi;Acquisto di servizi;Manutenzione ordinaria e riparazioni;Manutenzione ordinaria e riparazioni di mezzi di trasporto ad uso civile, di sicurezza e ordine pubblico
509;10;ECONOMO COMUNALE USAI MARIA CARMINE; ;03/04/2023;1092;0;1;Spese correnti;Acquisto di beni e servizi;Acquisto di beni;Flora e Fauna;Flora selvatica e non selvatica
510;813;ECONOMO COMUNALE USAI MARIA CARMINE; ;03/04/2023;1046;2;1;Spese correnti;Acquisto di beni e servizi;Acquisto di servizi;Servizi amministrativi;Spese postali
511;2.000,00;COMUNE DI GIBA; ;03/04/2023;1920;10;1;Spese correnti;Acquisto di beni e servizi;Acquisto di servizi;Altri servizi;Altri servizi diversi n.a.c.
512;796,88;OMESSO NOMINATIVO NEL RISPETTO DELLA NORMATIVA SULLA PROTEZIONE DATI PERSONALI; ;03/04/2023;1920;0;1;Spese correnti;Trasferimenti correnti;Trasferimenti correnti a Famiglie;Interventi assistenziali;Altri assegni e sussidi assistenziali
513;400,31;OMESSO NOMINATIVO NEL RISPETTO DELLA NORMATIVA SULLA PROTEZIONE DATI PERSONALI; ;03/04/2023;1920;0;1;Spese correnti;Trasferimenti correnti;Trasferimenti correnti a Famiglie;Interventi assistenziali;Altri assegni e sussidi assistenziali
514;284,39;COMUNE DI PISCINAS; ;04/04/2023;1920;15;1;Spese correnti;Trasferimenti correnti;Trasferimenti correnti a Famiglie;Interventi assistenziali;Altri assegni e sussidi assistenziali
515;0,02;COMUNE DI PISCINAS; ;04/04/2023;1920;15;1;Spese correnti;Trasferimenti correnti;Trasferimenti correnti a Famiglie;Interventi assistenziali;Altri assegni e sussidi assistenziali
516;0,01;COMUNE DI PISCINAS; ;04/04/2023;1920;15;1;Spese correnti;Trasferimenti correnti;Trasferimenti correnti a Famiglie;Interventi assistenziali;Altri assegni e sussidi assistenziali
517;18,49;COMUNE DI PISCINAS; ;04/04/2023;1920;15;1;Spese correnti;Trasferimenti correnti;Trasferimenti correnti a Famiglie;Interventi assistenziali;Altri assegni e sussidi assistenziali
518;0,05;COMUNE DI PISCINAS; ;04/04/2023;1920;15;1;Spese correnti;Trasferimenti correnti;Trasferimenti correnti a Famiglie;Interventi assistenziali;Altri assegni e sussidi assistenziali
519;4,73;COMUNE DI PISCINAS; ;04/04/2023;1920;15;1;Spese correnti;Trasferimenti correnti;Trasferimenti correnti a Famiglie;Interventi assistenziali;Altri assegni e sussidi assistenziali
520;13,85;COMUNE DI PISCINAS; ;04/04/2023;1920;15;1;Spese correnti;Trasferimenti correnti;Trasferimenti correnti a Famiglie;Interventi assistenziali;Altri assegni e sussidi assistenziali
521;0,04;COMUNE DI PISCINAS; ;04/04/2023;1920;15;1;Spese correnti;Trasferimenti correnti;Trasferimenti correnti a Famiglie;Interventi assistenziali;Altri assegni e sussidi assistenziali
522;0,03;COMUNE DI PISCINAS; ;04/04/2023;1920;15;1;Spese correnti;Trasferimenti correnti;Trasferimenti correnti a Famiglie;Interventi assistenziali;Altri assegni e sussidi assistenziali
523;81,46;COMUNE DI PISCINAS; ;04/04/2023;1920;15;1;Spese correnti;Trasferimenti correnti;Trasferimenti correnti a Famiglie;Interventi assistenziali;Altri assegni e sussidi assistenziali
524;1.407,15;COMUNE DI PISCINAS; ;04/04/2023;1920;15;1;Spese correnti;Trasferimenti correnti;Trasferimenti correnti a Famiglie;Interventi assistenziali;Altri assegni e sussidi assistenziali
525;75,47;COMUNE DI PISCINAS; ;04/04/2023;1920;15;1;Spese correnti;Trasferimenti correnti;Trasferimenti correnti a Famiglie;Interventi assistenziali;Altri assegni e sussidi assistenziali
526;60;COMUNE DI PISCINAS; ;04/04/2023;1920;15;1;Spese correnti;Trasferimenti correnti;Trasferimenti correnti a Famiglie;Interventi assistenziali;Altri assegni e sussidi assistenziali
527;853,12;COMUNE DI PISCINAS; ;04/04/2023;1920;15;1;Spese correnti;Trasferimenti correnti;Trasferimenti correnti a Famiglie;Interventi assistenziali;Altri assegni e sussidi assistenziali
528;849,09;COMUNE DI PISCINAS; ;04/04/2023;1920;15;1;Spese correnti;Trasferimenti correnti;Trasferimenti correnti a Famiglie;Interventi assistenziali;Altri assegni e sussidi assistenziali
529;1,17;COMUNE DI PISCINAS; ;04/04/2023;1920;15;1;Spese correnti;Trasferimenti correnti;Trasferimenti correnti a Famiglie;Interventi assistenziali;Altri assegni e sussidi assistenziali
530;211,81;COMUNE DI PISCINAS; ;04/04/2023;1920;15;1;Spese correnti;Trasferimenti correnti;Trasferimenti correnti a Famiglie;Interventi assistenziali;Altri assegni e sussidi assistenziali
531;1.422,50;COMUNE DI PISCINAS; ;04/04/2023;1920;15;1;Spese correnti;Trasferimenti correnti;Trasferimenti correnti a Famiglie;Interventi assistenziali;Altri assegni e sussidi assistenziali
532;447,71;COMUNE DI PISCINAS; ;04/04/2023;1920;15;1;Spese correnti;Trasferimenti correnti;Trasferimenti correnti a Famiglie;Interventi assistenziali;Altri assegni e sussidi assistenziali
533;666,52;COMUNE DI PISCINAS; ;04/04/2023;1920;15;1;Spese correnti;Trasferimenti correnti;Trasferimenti correnti a Famiglie;Interventi assistenziali;Altri assegni e sussidi assistenziali
534;375;COMUNE DI PISCINAS; ;04/04/2023;1920;15;1;Spese correnti;Trasferimenti correnti;Trasferimenti correnti a Famiglie;Interventi assistenziali;Altri assegni e sussidi assistenziali
535;322,7;COMUNE DI PISCINAS; ;04/04/2023;1920;15;1;Spese correnti;Trasferimenti correnti;Trasferimenti correnti a Famiglie;Interventi assistenziali;Altri assegni e sussidi assistenziali
536;99,17;OMESSO NOMINATIVO NEL RISPETTO DELLA NORMATIVA SULLA PROTEZIONE DATI PERSONALI; ;04/04/2023;1920;15;1;Spese correnti;Trasferimenti correnti;Trasferimenti correnti a Famiglie;Interventi assistenziali;Altri assegni e sussidi assistenziali
537;2.500,00;COMUNE DI PISCINAS; ;04/04/2023;1920;15;1;Spese correnti;Trasferimenti correnti;Trasferimenti correnti a Famiglie;Interventi assistenziali;Altri assegni e sussidi assistenziali
538;453,53;COMUNE DI PISCINAS; ;04/04/2023;1920;15;1;Spese correnti;Trasferimenti correnti;Trasferimenti correnti a Famiglie;Interventi assistenziali;Altri assegni e sussidi assistenziali
539;3,73;COMUNE DI PISCINAS; ;04/04/2023;1920;15;1;Spese correnti;Trasferimenti correnti;Trasferimenti correnti a Famiglie;Interventi assistenziali;Altri assegni e sussidi assistenziali
540;3.568,41;PROVINCIA SUD SARDEGNA; ;07/04/2023;2160;0;1;Spese correnti;Trasferimenti correnti;Trasferimenti correnti a Amministrazioni Pubbliche;Trasferimenti correnti a Amministrazioni Locali;Trasferimenti correnti a Province
541;190;UNIONE DEI COMUNI DEL SULCIS; ;07/04/2023;1061;0;1;Spese correnti;Trasferimenti correnti;Trasferimenti correnti a Amministrazioni Pubbliche;Trasferimenti correnti a Amministrazioni Locali;Trasferimenti correnti a Unioni di Comuni
542;90;UNIONE DEI COMUNI DEL SULCIS; ;07/04/2023;1061;0;1;Spese correnti;Trasferimenti correnti;Trasferimenti correnti a Amministrazioni Pubbliche;Trasferimenti correnti a Amministrazioni Locali;Trasferimenti correnti a Unioni di Comuni
543;900;LIBERA ASSOCIAZIONE MARIO MEDDA; ;07/04/2023;1520;0;1;Spese correnti;Trasferimenti correnti;Trasferimenti correnti a Istituzioni Sociali Private;Trasferimenti correnti a Istituzioni Sociali Private;Trasferimenti correnti a Istituzioni Sociali Private
544;190;COMUNE DI SANT'ANTIOCO SERVIZIO TESORERIA; ;13/04/2023;1040;0;1;Spese correnti;Acquisto di beni e servizi;Acquisto di servizi;Acquisto di servizi per formazione e addestramento del personale dell'ente;Acquisto di servizi per altre spese per formazione e addestramento n.a.c.
545;139,03;OMESSO NOMINATIVO NEL RISPETTO DELLA NORMATIVA SULLA PROTEZIONE DATI PERSONALI; ;18/04/2023;1920;15;1;Spese correnti;Trasferimenti correnti;Trasferimenti correnti a Famiglie;Interventi assistenziali;Altri assegni e sussidi assistenziali
546;151,16;OMESSO NOMINATIVO NEL RISPETTO DELLA NORMATIVA SULLA PROTEZIONE DATI PERSONALI; ;18/04/2023;1920;15;1;Spese correnti;Trasferimenti correnti;Trasferimenti correnti a Famiglie;Interventi assistenziali;Altri assegni e sussidi assistenziali
547;80,36;OMESSO NOMINATIVO NEL RISPETTO DELLA NORMATIVA SULLA PROTEZIONE DATI PERSONALI; ;18/04/2023;1920;15;1;Spese correnti;Trasferimenti correnti;Trasferimenti correnti a Famiglie;Interventi assistenziali;Altri assegni e sussidi assistenziali
548;156,25;OMESSO NOMINATIVO NEL RISPETTO DELLA NORMATIVA SULLA PROTEZIONE DATI PERSONALI; ;18/04/2023;1920;15;1;Spese correnti;Trasferimenti correnti;Trasferimenti correnti a Famiglie;Interventi assistenziali;Altri assegni e sussidi assistenziali
549;490,13;SOGGETTI DIVERSI; ;18/04/2023;1916;0;1;Spese correnti;Trasferimenti correnti;Trasferimenti correnti a Famiglie;Interventi assistenziali;Altri assegni e sussidi assistenziali
550;490,13;SOGGETTI DIVERSI; ;18/04/2023;1916;0;1;Spese correnti;Trasferimenti correnti;Trasferimenti correnti a Famiglie;Interventi assistenziali;Altri assegni e sussidi assistenziali
551;515,44;SOGGETTI DIVERSI; ;18/04/2023;1916;0;1;Spese correnti;Trasferimenti correnti;Trasferimenti correnti a Famiglie;Interventi assistenziali;Altri assegni e sussidi assistenziali
552;515,44;SOGGETTI DIVERSI; ;18/04/2023;1916;0;1;Spese correnti;Trasferimenti correnti;Trasferimenti correnti a Famiglie;Interventi assistenziali;Altri assegni e sussidi assistenziali
553;275;SOGGETTI DIVERSI; ;18/04/2023;1919;6;1;Spese correnti;Trasferimenti correnti;Trasferimenti correnti a Famiglie;Interventi assistenziali;Altri assegni e sussidi assistenziali
554;104;SOGGETTI DIVERSI; ;18/04/2023;1919;6;1;Spese correnti;Trasferimenti correnti;Trasferimenti correnti a Famiglie;Interventi assistenziali;Altri assegni e sussidi assistenziali
555;290;SOGGETTI DIVERSI; ;18/04/2023;1919;6;1;Spese correnti;Trasferimenti correnti;Trasferimenti correnti a Famiglie;Interventi assistenziali;Altri assegni e sussidi assistenziali
556;300;SOGGETTI DIVERSI; ;18/04/2023;1919;6;1;Spese correnti;Trasferimenti correnti;Trasferimenti correnti a Famiglie;Interventi assistenziali;Altri assegni e sussidi assistenziali
557;155;SOGGETTI DIVERSI; ;18/04/2023;1919;6;1;Spese correnti;Trasferimenti correnti;Trasferimenti correnti a Famiglie;Interventi assistenziali;Altri assegni e sussidi assistenziali
558;230;SOGGETTI DIVERSI; ;18/04/2023;1919;6;1;Spese correnti;Trasferimenti correnti;Trasferimenti correnti a Famiglie;Interventi assistenziali;Altri assegni e sussidi assistenziali
589;282,5;OMESSO NOMINATIVO NEL RISPETTO DELLA NORMATIVA SULLA PROTEZIONE DATI PERSONALI; ;21/04/2023;1920;15;1;Spese correnti;Trasferimenti correnti;Trasferimenti correnti a Famiglie;Interventi assistenziali;Altri assegni e sussidi assistenziali
590;454,87;OMESSO NOMINATIVO NEL RISPETTO DELLA NORMATIVA SULLA PROTEZIONE DATI PERSONALI; ;21/04/2023;1920;15;1;Spese correnti;Trasferimenti correnti;Trasferimenti correnti a Famiglie;Interventi assistenziali;Altri assegni e sussidi assistenziali
591;1.210,11;OMESSO NOMINATIVO NEL RISPETTO DELLA NORMATIVA SULLA PROTEZIONE DATI PERSONALI; ;21/04/2023;1920;0;1;Spese correnti;Trasferimenti correnti;Trasferimenti correnti a Famiglie;Interventi assistenziali;Altri assegni e sussidi assistenziali
592;602,24;OMESSO NOMINATIVO NEL RISPETTO DELLA NORMATIVA SULLA PROTEZIONE DATI PERSONALI; ;21/04/2023;1920;0;1;Spese correnti;Trasferimenti correnti;Trasferimenti correnti a Famiglie;Interventi assistenziali;Altri assegni e sussidi assistenziali
593;1.633,58;OMESSO NOMINATIVO NEL RISPETTO DELLA NORMATIVA SULLA PROTEZIONE DATI PERSONALI; ;21/04/2023;1920;0;1;Spese correnti;Trasferimenti correnti;Trasferimenti correnti a Famiglie;Interventi assistenziali;Altri assegni e sussidi assistenziali
594;166,8;OMESSO NOMINATIVO NEL RISPETTO DELLA NORMATIVA SULLA PROTEZIONE DATI PERSONALI; ;21/04/2023;1920;15;1;Spese correnti;Trasferimenti correnti;Trasferimenti correnti a Famiglie;Interventi assistenziali;Altri assegni e sussidi assistenziali
595;394,6;OMESSO NOMINATIVO NEL RISPETTO DELLA NORMATIVA SULLA PROTEZIONE DATI PERSONALI; ;21/04/2023;1920;15;1;Spese correnti;Trasferimenti correnti;Trasferimenti correnti a Famiglie;Interventi assistenziali;Altri assegni e sussidi assistenziali
596;181,87;OMESSO NOMINATIVO NEL RISPETTO DELLA NORMATIVA SULLA PROTEZIONE DATI PERSONALI; ;21/04/2023;1920;15;1;Spese correnti;Trasferimenti correnti;Trasferimenti correnti a Famiglie;Interventi assistenziali;Altri assegni e sussidi assistenziali
597;241,48;OMESSO NOMINATIVO NEL RISPETTO DELLA NORMATIVA SULLA PROTEZIONE DATI PERSONALI; ;21/04/2023;1920;15;1;Spese correnti;Trasferimenti correnti;Trasferimenti correnti a Famiglie;Interventi assistenziali;Altri assegni e sussidi assistenziali
598;375;OMESSO NOMINATIVO NEL RISPETTO DELLA NORMATIVA SULLA PROTEZIONE DATI PERSONALI; ;21/04/2023;1920;15;1;Spese correnti;Trasferimenti correnti;Trasferimenti correnti a Famiglie;Interventi assistenziali;Altri assegni e sussidi assistenziali
599;101,24;SOGGETTI DIVERSI; ;21/04/2023;1917;0;1;Spese correnti;Trasferimenti correnti;Trasferimenti correnti a Famiglie;Interventi assistenziali;Altri assegni e sussidi assistenziali
600;309,26;OMESSO NOMINATIVO NEL RISPETTO DELLA NORMATIVA SULLA PROTEZIONE DATI PERSONALI; ;21/04/2023;1920;15;1;Spese correnti;Trasferimenti correnti;Trasferimenti correnti a Famiglie;Interventi assistenziali;Altri assegni e sussidi assistenziali
601;614;OMESSO NOMINATIVO NEL RISPETTO DELLA NORMATIVA SULLA PROTEZIONE DATI PERSONALI; ;21/04/2023;1920;15;1;Spese correnti;Trasferimenti correnti;Trasferimenti correnti a Famiglie;Interventi assistenziali;Altri assegni e sussidi assistenziali
602;100,04;OMESSO NOMINATIVO NEL RISPETTO DELLA NORMATIVA SULLA PROTEZIONE DATI PERSONALI; ;21/04/2023;1920;15;1;Spese correnti;Trasferimenti correnti;Trasferimenti correnti a Famiglie;Interventi assistenziali;Altri assegni e sussidi assistenziali
603;628,27;OMESSO NOMINATIVO NEL RISPETTO DELLA NORMATIVA SULLA PROTEZIONE DATI PERSONALI; ;21/04/2023;1920;15;1;Spese correnti;Trasferimenti correnti;Trasferimenti correnti a Famiglie;Interventi assistenziali;Altri assegni e sussidi assistenziali
604;159,38;OMESSO NOMINATIVO NEL RISPETTO DELLA NORMATIVA SULLA PROTEZIONE DATI PERSONALI; ;21/04/2023;1920;15;1;Spese correnti;Trasferimenti correnti;Trasferimenti correnti a Famiglie;Interventi assistenziali;Altri assegni e sussidi assistenziali
605;1.292,01;OMESSO NOMINATIVO NEL RISPETTO DELLA NORMATIVA SULLA PROTEZIONE DATI PERSONALI; ;21/04/2023;1920;0;1;Spese correnti;Trasferimenti correnti;Trasferimenti correnti a Famiglie;Interventi assistenziali;Altri assegni e sussidi assistenziali
606;1.595,88;OMESSO NOMINATIVO NEL RISPETTO DELLA NORMATIVA SULLA PROTEZIONE DATI PERSONALI; ;21/04/2023;1920;0;1;Spese correnti;Trasferimenti correnti;Trasferimenti correnti a Famiglie;Interventi assistenziali;Altri assegni e sussidi assistenziali
607;343,29;OMESSO NOMINATIVO NEL RISPETTO DELLA NORMATIVA SULLA PROTEZIONE DATI PERSONALI; ;21/04/2023;1920;0;1;Spese correnti;Trasferimenti correnti;Trasferimenti correnti a Famiglie;Interventi assistenziali;Altri assegni e sussidi assistenziali
608;343,29;OMESSO NOMINATIVO NEL RISPETTO DELLA NORMATIVA SULLA PROTEZIONE DATI PERSONALI; ;21/04/2023;1920;0;1;Spese correnti;Trasferimenti correnti;Trasferimenti correnti a Famiglie;Interventi assistenziali;Altri assegni e sussidi assistenziali
609;533,92;CAPPA MARGHERITA GIOVANNA; ;21/04/2023;1916;0;1;Spese correnti;Trasferimenti correnti;Trasferimenti correnti a Famiglie;Interventi assistenziali;Altri assegni e sussidi assistenziali
610;157,26;OMESSO NOMINATIVO NEL RISPETTO DELLA NORMATIVA SULLA PROTEZIONE DATI PERSONALI; ;21/04/2023;1920;15;1;Spese correnti;Trasferimenti correnti;Trasferimenti correnti a Famiglie;Interventi assistenziali;Altri assegni e sussidi assistenziali
611;265,78;OMESSO NOMINATIVO NEL RISPETTO DELLA NORMATIVA SULLA PROTEZIONE DATI PERSONALI; ;21/04/2023;1920;15;1;Spese correnti;Trasferimenti correnti;Trasferimenti correnti a Famiglie;Interventi assistenziali;Altri assegni e sussidi assistenziali
612;224,1;OMESSO NOMINATIVO NEL RISPETTO DELLA NORMATIVA SULLA PROTEZIONE DATI PERSONALI; ;21/04/2023;1920;15;1;Spese correnti;Trasferimenti correnti;Trasferimenti correnti a Famiglie;Interventi assistenziali;Altri assegni e sussidi assistenziali
613;565,21;OMESSO NOMINATIVO NEL RISPETTO DELLA NORMATIVA SULLA PROTEZIONE DATI PERSONALI; ;21/04/2023;1920;15;1;Spese correnti;Trasferimenti correnti;Trasferimenti correnti a Famiglie;Interventi assistenziali;Altri assegni e sussidi assistenziali
614;248,84;OMESSO NOMINATIVO NEL RISPETTO DELLA NORMATIVA SULLA PROTEZIONE DATI PERSONALI; ;21/04/2023;1920;15;1;Spese correnti;Trasferimenti correnti;Trasferimenti correnti a Famiglie;Interventi assistenziali;Altri assegni e sussidi assistenziali
615;494,98;OMESSO NOMINATIVO NEL RISPETTO DELLA NORMATIVA SULLA PROTEZIONE DATI PERSONALI; ;21/04/2023;1920;15;1;Spese correnti;Trasferimenti correnti;Trasferimenti correnti a Famiglie;Interventi assistenziali;Altri assegni e sussidi assistenziali
616;179,78;OMESSO NOMINATIVO NEL RISPETTO DELLA NORMATIVA SULLA PROTEZIONE DATI PERSONALI; ;21/04/2023;1920;15;1;Spese correnti;Trasferimenti correnti;Trasferimenti correnti a Famiglie;Interventi assistenziali;Altri assegni e sussidi assistenziali
617;396,36;OMESSO NOMINATIVO NEL RISPETTO DELLA NORMATIVA SULLA PROTEZIONE DATI PERSONALI; ;21/04/2023;1920;15;1;Spese correnti;Trasferimenti correnti;Trasferimenti correnti a Famiglie;Interventi assistenziali;Altri assegni e sussidi assistenziali
618;549,82;OMESSO NOMINATIVO NEL RISPETTO DELLA NORMATIVA SULLA PROTEZIONE DATI PERSONALI; ;21/04/2023;1920;15;1;Spese correnti;Trasferimenti correnti;Trasferimenti correnti a Famiglie;Interventi assistenziali;Altri assegni e sussidi assistenziali
619;176,25;OMESSO NOMINATIVO NEL RISPETTO DELLA NORMATIVA SULLA PROTEZIONE DATI PERSONALI; ;21/04/2023;1920;15;1;Spese correnti;Trasferimenti correnti;Trasferimenti correnti a Famiglie;Interventi assistenziali;Altri assegni e sussidi assistenziali
620;250;OMESSO NOMINATIVO NEL RISPETTO DELLA NORMATIVA SULLA PROTEZIONE DATI PERSONALI; ;21/04/2023;1920;15;1;Spese correnti;Trasferimenti correnti;Trasferimenti correnti a Famiglie;Interventi assistenziali;Altri assegni e sussidi assistenziali
621;152,43;OMESSO NOMINATIVO NEL RISPETTO DELLA NORMATIVA SULLA PROTEZIONE DATI PERSONALI; ;21/04/2023;1920;15;1;Spese correnti;Trasferimenti correnti;Trasferimenti correnti a Famiglie;Interventi assistenziali;Altri assegni e sussidi assistenziali
622;1.956,15;DIVERSI; ;26/04/2023;1001;0;1;Spese correnti;Acquisto di beni e servizi;Acquisto di servizi;Organi e incarichi istituzionali dell'amministrazione;Organi istituzionali dell'amministrazione - Indennità
625;201,23;OMESSO NOMINATIVO NEL RISPETTO DELLA NORMATIVA SULLA PROTEZIONE DATI PERSONALI; ;26/04/2023;1920;15;1;Spese correnti;Trasferimenti correnti;Trasferimenti correnti a Famiglie;Interventi assistenziali;Altri assegni e sussidi assistenziali
626;166,66;OMESSO NOMINATIVO NEL RISPETTO DELLA NORMATIVA SULLA PROTEZIONE DATI PERSONALI; ;26/04/2023;1920;15;1;Spese correnti;Trasferimenti correnti;Trasferimenti correnti a Famiglie;Interventi assistenziali;Altri assegni e sussidi assistenziali
627;300;SOGGETTI DIVERSI; ;26/04/2023;1919;6;1;Spese correnti;Trasferimenti correnti;Trasferimenti correnti a Famiglie;Interventi assistenziali;Altri assegni e sussidi assistenziali
628;10;SOGGETTI DIVERSI; ;26/04/2023;1919;6;1;Spese correnti;Trasferimenti correnti;Trasferimenti correnti a Famiglie;Interventi assistenziali;Altri assegni e sussidi assistenziali
629;237,13;OMESSO NOMINATIVO NEL RISPETTO DELLA NORMATIVA SULLA PROTEZIONE DATI PERSONALI; ;26/04/2023;1920;15;1;Spese correnti;Trasferimenti correnti;Trasferimenti correnti a Famiglie;Interventi assistenziali;Altri assegni e sussidi assistenziali
630;375;OMESSO NOMINATIVO NEL RISPETTO DELLA NORMATIVA SULLA PROTEZIONE DATI PERSONALI; ;26/04/2023;1920;15;1;Spese correnti;Trasferimenti correnti;Trasferimenti correnti a Famiglie;Interventi assistenziali;Altri assegni e sussidi assistenziali
631;80,36;OMESSO NOMINATIVO NEL RISPETTO DELLA NORMATIVA SULLA PROTEZIONE DATI PERSONALI; ;26/04/2023;1920;15;1;Spese correnti;Trasferimenti correnti;Trasferimenti correnti a Famiglie;Interventi assistenziali;Altri assegni e sussidi assistenziali
632;384,16;OMESSO NOMINATIVO NEL RISPETTO DELLA NORMATIVA SULLA PROTEZIONE DATI PERSONALI; ;26/04/2023;1920;15;1;Spese correnti;Trasferimenti correnti;Trasferimenti correnti a Famiglie;Interventi assistenziali;Altri assegni e sussidi assistenziali
633;1.330,69;TECNOCASIC  S.P.A.;ZF9396C612;27/04/2023;1739;0;1;Spese correnti;Acquisto di beni e servizi;Acquisto di servizi;Contratti di servizio pubblico;Contratti di servizio per il conferimento in discarica dei rifiuti
634;640,5;SAIU ELETTROSERVICE DI CADDIA GIOVANNA ANGELA;Z0D380CD3E;27/04/2023;1938;0;1;Spese correnti;Acquisto di beni e servizi;Acquisto di servizi;Contratti di servizio pubblico;Contratti di servizio per l'illuminazione pubblica
635;924,65;VERDE VITA SRL;ZE2396C1D5;27/04/2023;1739;0;1;Spese correnti;Acquisto di beni e servizi;Acquisto di servizi;Contratti di servizio pubblico;Contratti di servizio per il conferimento in discarica dei rifiuti
636;5.875,84;TEKNOSERVICE S.R.L.;ZAE390CDE5;27/04/2023;1738;0;1;Spese correnti;Acquisto di beni e servizi;Acquisto di servizi;Contratti di servizio pubblico;Contratti di servizio per la raccolta rifiuti
637;218,65;KUWAIT PETROLEUM ITALIA SPA;Z5235D861D;27/04/2023;1057;0;1;Spese correnti;Acquisto di beni e servizi;Acquisto di beni;Altri beni di consumo;Carburanti, combustibili e lubrificanti
638;693;COOPERATIVA DIMENSIONE UMANA  a.r.l.  ONLUS;ZDB31B66F8;27/04/2023;1920;12;1;Spese correnti;Acquisto di beni e servizi;Acquisto di servizi;Contratti di servizio pubblico;Altre spese per contratti di servizio pubblico
639;4.000,01;PRO.TU.SAR. DI PIRAS RAFFAELE;9344454761;27/04/2023;1417;3;1;Spese correnti;Acquisto di beni e servizi;Acquisto di servizi;Contratti di servizio pubblico;Contratti di servizio di trasporto scolastico
640;983,32;ISAR COOPERATIVA SOCIALE ONLUS;Z6E33B9DBA;27/04/2023;1036;0;1;Spese correnti;Acquisto di beni e servizi;Acquisto di servizi;Servizi ausiliari per il funzionamento dell'ente;Servizi di pulizia e lavanderia
641;1.292,59;HALLEY SARDEGNA S.R.L.;Z443A5E438;27/04/2023;1046;1;1;Spese correnti;Acquisto di beni e servizi;Acquisto di servizi;Altri servizi;Altri servizi diversi n.a.c.
642;307,38;AGRINOA SOCIETA' AGRICOLA COOPERATIVA SOCIALE;Z3235A2F58;27/04/2023;1742;4;1;Spese correnti;Acquisto di beni e servizi;Acquisto di servizi;Altri servizi;Altri servizi diversi n.a.c.
643;9.634,34;TESORIERE BANCO DI SARDEGNA;Z9E3494F18;27/04/2023;1054;0;1;Spese correnti;Acquisto di beni e servizi;Acquisto di servizi;Servizi finanziari;Oneri per servizio di tesoreria
644;3.423,92;HALLEY SARDEGNA S.R.L.;ZD93914A3D;27/04/2023;1043;1;1;Spese correnti;Acquisto di beni e servizi;Acquisto di servizi;Servizi informatici e di telecomunicazioni;Gestione e manutenzione applicazioni
645;276,16;FATICONI S.P.A.;Z10310615F;27/04/2023;1043;5;1;Spese correnti;Acquisto di beni e servizi;Acquisto di servizi;Utilizzo di beni di terzi;Noleggi di impianti e macchinari
646;276,15;FATICONI S.P.A.;Z10310615F;27/04/2023;1087;1;1;Spese correnti;Acquisto di beni e servizi;Acquisto di servizi;Utilizzo di beni di terzi;Noleggi di impianti e macchinari
647;9.333,35;COMUNE DI PISCINAS; ;28/04/2023;1920;0;1;Spese correnti;Trasferimenti correnti;Trasferimenti correnti a Famiglie;Interventi assistenziali;Altri assegni e sussidi assistenziali
648;5.333,33;OMESSO NOMINATIVO NEL RISPETTO DELLA NORMATIVA SULLA PROTEZIONE DATI PERSONALI; ;28/04/2023;1920;0;1;Spese correnti;Trasferimenti correnti;Trasferimenti correnti a Famiglie;Interventi assistenziali;Altri assegni e sussidi assistenziali
649;39,7;REGIONE AUTONOMA DELLA SARDEGNA; ;28/04/2023;1919;6;1;Spese correnti;Trasferimenti correnti;Trasferimenti correnti a Famiglie;Interventi assistenziali;Altri assegni e sussidi assistenziali
650;929,16;REGIONE AUTONOMA DELLA SARDEGNA; ;28/04/2023;1919;6;1;Spese correnti;Trasferimenti correnti;Trasferimenti correnti a Famiglie;Interventi assistenziali;Altri assegni e sussidi assistenziali
651;1.590,00;REGIONE AUTONOMA DELLA SARDEGNA; ;28/04/2023;1919;6;1;Spese correnti;Trasferimenti correnti;Trasferimenti correnti a Famiglie;Interventi assistenziali;Altri assegni e sussidi assistenziali
652;1.896,35;LAI BENIAMINO; ;02/05/2023;1053;0;1;Spese correnti;Acquisto di beni e servizi;Acquisto di servizi;Organi e incarichi istituzionali dell'amministrazione;Compensi agli organi istituzionali di revisione, di controllo ed altri incarichi istituzionali dell'amministrazione
654;4.841,73;LAI BENIAMINO; ;02/05/2023;1053;0;1;Spese correnti;Acquisto di beni e servizi;Acquisto di servizi;Organi e incarichi istituzionali dell'amministrazione;Compensi agli organi istituzionali di revisione, di controllo ed altri incarichi istituzionali dell'amministrazione
656;7.137,33;FANNI OLIVIERO;94989361F7;04/05/2023;3242;0;2;Spese in conto capitale;Investimenti fissi lordi e acquisto di terreni;Beni materiali;Beni immobili;Opere per la sistemazione del suolo
657;218,27;MINISTERO  - DIPARTIMENTO AFFARI INTERNI; ;04/05/2023;1037;1;1;Spese correnti;Trasferimenti correnti;Trasferimenti correnti a Amministrazioni Pubbliche;Trasferimenti correnti a Amministrazioni Centrali;Trasferimenti correnti a Ministeri
658;184,69;MINISTERO  - DIPARTIMENTO AFFARI INTERNI; ;04/05/2023;1037;1;1;Spese correnti;Trasferimenti correnti;Trasferimenti correnti a Amministrazioni Pubbliche;Trasferimenti correnti a Amministrazioni Centrali;Trasferimenti correnti a Ministeri
659;184,69;MINISTERO  - DIPARTIMENTO AFFARI INTERNI; ;04/05/2023;1037;1;1;Spese correnti;Trasferimenti correnti;Trasferimenti correnti a Amministrazioni Pubbliche;Trasferimenti correnti a Amministrazioni Centrali;Trasferimenti correnti a Ministeri
660;633,42;PISANU MADDALENA; ;04/05/2023;1916;0;1;Spese correnti;Trasferimenti correnti;Trasferimenti correnti a Famiglie;Interventi assistenziali;Altri assegni e sussidi assistenziali
661;479,9;UCCHEDDU MAURO; ;04/05/2023;1916;0;1;Spese correnti;Trasferimenti correnti;Trasferimenti correnti a Famiglie;Interventi assistenziali;Altri assegni e sussidi assistenziali
664;11,07;ENEL ENERGIA S.P.A.;9146558A6E;11/05/2023;1937;0;1;Spese correnti;Acquisto di beni e servizi;Acquisto di servizi;Utenze e canoni;Energia elettrica
664;23,33;ENEL ENERGIA S.P.A.;9146558A6E;11/05/2023;1937;0;1;Spese correnti;Acquisto di beni e servizi;Acquisto di servizi;Utenze e canoni;Energia elettrica
664;23,66;ENEL ENERGIA S.P.A.;9146558A6E;11/05/2023;1937;0;1;Spese correnti;Acquisto di beni e servizi;Acquisto di servizi;Utenze e canoni;Energia elettrica
664;199,53;ENEL ENERGIA S.P.A.;9146558A6E;11/05/2023;1937;0;1;Spese correnti;Acquisto di beni e servizi;Acquisto di servizi;Utenze e canoni;Energia elettrica
664;345,16;ENEL ENERGIA S.P.A.;9146558A6E;11/05/2023;1937;0;1;Spese correnti;Acquisto di beni e servizi;Acquisto di servizi;Utenze e canoni;Energia elettrica
664;637,02;ENEL ENERGIA S.P.A.;9146558A6E;11/05/2023;1937;0;1;Spese correnti;Acquisto di beni e servizi;Acquisto di servizi;Utenze e canoni;Energia elettrica
664;1.130,98;ENEL ENERGIA S.P.A.;9146558A6E;11/05/2023;1937;0;1;Spese correnti;Acquisto di beni e servizi;Acquisto di servizi;Utenze e canoni;Energia elettrica
665;202,78;ENEL ENERGIA S.P.A.;9146558A6E;11/05/2023;1386;2;1;Spese correnti;Acquisto di beni e servizi;Acquisto di servizi;Utenze e canoni;Energia elettrica
666;183,93;ENEL ENERGIA S.P.A.;9146558A6E;11/05/2023;1366;3;1;Spese correnti;Acquisto di beni e servizi;Acquisto di servizi;Utenze e canoni;Energia elettrica
667;23,01;ENEL ENERGIA S.P.A.;9146558A6E;11/05/2023;1087;2;1;Spese correnti;Acquisto di beni e servizi;Acquisto di servizi;Utenze e canoni;Energia elettrica
667;106,99;ENEL ENERGIA S.P.A.;9146558A6E;11/05/2023;1087;2;1;Spese correnti;Acquisto di beni e servizi;Acquisto di servizi;Utenze e canoni;Energia elettrica
667;1.290,63;ENEL ENERGIA S.P.A.;9146558A6E;11/05/2023;1087;2;1;Spese correnti;Acquisto di beni e servizi;Acquisto di servizi;Utenze e canoni;Energia elettrica
668;45,9;ENEL ENERGIA S.P.A.;9146558A6E;11/05/2023;1826;1;1;Spese correnti;Acquisto di beni e servizi;Acquisto di servizi;Utenze e canoni;Energia elettrica
668;61,11;ENEL ENERGIA S.P.A.;9146558A6E;11/05/2023;1826;1;1;Spese correnti;Acquisto di beni e servizi;Acquisto di servizi;Utenze e canoni;Energia elettrica
669;10,86;ENEL ENERGIA S.P.A.;9146558A6E;11/05/2023;1526;0;1;Spese correnti;Acquisto di beni e servizi;Acquisto di servizi;Utenze e canoni;Energia elettrica
669;232,9;ENEL ENERGIA S.P.A.;9146558A6E;11/05/2023;1526;0;1;Spese correnti;Acquisto di beni e servizi;Acquisto di servizi;Utenze e canoni;Energia elettrica
669;289,49;ENEL ENERGIA S.P.A.;9146558A6E;11/05/2023;1526;0;1;Spese correnti;Acquisto di beni e servizi;Acquisto di servizi;Utenze e canoni;Energia elettrica
670;47,68;ENEL ENERGIA S.P.A.;9146558A6E;11/05/2023;1656;1;1;Spese correnti;Acquisto di beni e servizi;Acquisto di servizi;Utenze e canoni;Energia elettrica
671;40,04;ENEL ENERGIA S.P.A.;9146558A6E;11/05/2023;1090;0;1;Spese correnti;Acquisto di beni e servizi;Acquisto di servizi;Utenze e canoni;Energia elettrica
672;233,9;ENEL ENERGIA S.P.A.;9146558A6E;11/05/2023;1086;0;1;Spese correnti;Acquisto di beni e servizi;Acquisto di servizi;Utenze e canoni;Energia elettrica
673;1.263,50;VERDE VITA SRL;ZE2396C1D5;11/05/2023;1739;0;1;Spese correnti;Acquisto di beni e servizi;Acquisto di servizi;Contratti di servizio pubblico;Contratti di servizio per il conferimento in discarica dei rifiuti
674;854;BIOLOGIC FORESTER DI FORRESU MARCO;ZA3388CFA2;11/05/2023;1092;0;1;Spese correnti;Acquisto di beni e servizi;Acquisto di beni;Flora e Fauna;Flora selvatica e non selvatica
675;427;BIOLOGIC FORESTER DI FORRESU MARCO;ZA3388CFA2;11/05/2023;1092;0;1;Spese correnti;Acquisto di beni e servizi;Acquisto di beni;Flora e Fauna;Flora selvatica e non selvatica
676;5.875,84;TEKNOSERVICE S.R.L.;ZAE390CDE5;11/05/2023;1738;0;1;Spese correnti;Acquisto di beni e servizi;Acquisto di servizi;Contratti di servizio pubblico;Contratti di servizio per la raccolta rifiuti
677;685,26;KUWAIT PETROLEUM ITALIA SPA;Z5235D861D;11/05/2023;1057;0;1;Spese correnti;Acquisto di beni e servizi;Acquisto di beni;Altri beni di consumo;Carburanti, combustibili e lubrificanti
678;664,9;NEMEA SISTEMI SRL;ZB731630A7;11/05/2023;1087;0;1;Spese correnti;Acquisto di beni e servizi;Acquisto di servizi;Servizi informatici e di telecomunicazioni;Gestione e manutenzione applicazioni
679;3.640,00;PORCINA FRANCESCO;Z6633AA288;11/05/2023;1742;3;1;Spese correnti;Acquisto di beni e servizi;Acquisto di servizi;Altri servizi;Altri servizi diversi n.a.c.
681;342,04;STAMA GIOVANNI;ZF73A8B220;11/05/2023;1742;0;1;Spese correnti;Acquisto di beni e servizi;Acquisto di servizi;Altri servizi;Altri servizi diversi n.a.c.
682;3.941,48;MULAS ALESSIO;Z1A348DC19;12/05/2023;3242;0;2;Spese in conto capitale;Investimenti fissi lordi e acquisto di terreni;Beni materiali;Beni immobili;Opere per la sistemazione del suolo
683;2.063,32;MULAS ALESSIO;Z1A348DC19;12/05/2023;3242;0;2;Spese in conto capitale;Investimenti fissi lordi e acquisto di terreni;Beni materiali;Beni immobili;Opere per la sistemazione del suolo
685;297,52;COMUNE DI PISCINAS; ;12/05/2023;1046;2;1;Spese correnti;Acquisto di beni e servizi;Acquisto di servizi;Servizi amministrativi;Spese postali
686;59,2;ABBANOA S.P.A.; ;12/05/2023;1657;0;1;Spese correnti;Acquisto di beni e servizi;Acquisto di servizi;Utenze e canoni;Acqua
687;244,49;ABBANOA S.P.A.; ;12/05/2023;1367;0;1;Spese correnti;Acquisto di beni e servizi;Acquisto di servizi;Utenze e canoni;Acqua
688;3,76;ABBANOA S.P.A.; ;12/05/2023;1087;3;1;Spese correnti;Acquisto di beni e servizi;Acquisto di servizi;Utenze e canoni;Acqua
688;135,8;ABBANOA S.P.A.; ;12/05/2023;1087;3;1;Spese correnti;Acquisto di beni e servizi;Acquisto di servizi;Utenze e canoni;Acqua
688;354,83;ABBANOA S.P.A.; ;12/05/2023;1087;3;1;Spese correnti;Acquisto di beni e servizi;Acquisto di servizi;Utenze e canoni;Acqua
689;57,26;ABBANOA S.P.A.; ;12/05/2023;1387;0;1;Spese correnti;Acquisto di beni e servizi;Acquisto di servizi;Utenze e canoni;Acqua
689;71,59;ABBANOA S.P.A.; ;12/05/2023;1387;0;1;Spese correnti;Acquisto di beni e servizi;Acquisto di servizi;Utenze e canoni;Acqua
689;193,29;ABBANOA S.P.A.; ;12/05/2023;1387;0;1;Spese correnti;Acquisto di beni e servizi;Acquisto di servizi;Utenze e canoni;Acqua
690;57,26;ABBANOA S.P.A.; ;12/05/2023;1827;0;1;Spese correnti;Acquisto di beni e servizi;Acquisto di servizi;Utenze e canoni;Acqua
690;57,45;ABBANOA S.P.A.; ;12/05/2023;1827;0;1;Spese correnti;Acquisto di beni e servizi;Acquisto di servizi;Utenze e canoni;Acqua
691;53,5;ABBANOA S.P.A.; ;12/05/2023;1717;1;1;Spese correnti;Acquisto di beni e servizi;Acquisto di servizi;Utenze e canoni;Acqua
692;13,75;ABBANOA S.P.A.; ;12/05/2023;1526;1;1;Spese correnti;Acquisto di beni e servizi;Acquisto di servizi;Utenze e canoni;Acqua
692;78,13;ABBANOA S.P.A.; ;12/05/2023;1526;1;1;Spese correnti;Acquisto di beni e servizi;Acquisto di servizi;Utenze e canoni;Acqua
693;155;SOGGETTI DIVERSI; ;15/05/2023;1919;6;1;Spese correnti;Trasferimenti correnti;Trasferimenti correnti a Famiglie;Interventi assistenziali;Altri assegni e sussidi assistenziali
694;230;SOGGETTI DIVERSI; ;15/05/2023;1919;6;1;Spese correnti;Trasferimenti correnti;Trasferimenti correnti a Famiglie;Interventi assistenziali;Altri assegni e sussidi assistenziali
695;300;SOGGETTI DIVERSI; ;15/05/2023;1919;6;1;Spese correnti;Trasferimenti correnti;Trasferimenti correnti a Famiglie;Interventi assistenziali;Altri assegni e sussidi assistenziali
696;290;SOGGETTI DIVERSI; ;15/05/2023;1919;6;1;Spese correnti;Trasferimenti correnti;Trasferimenti correnti a Famiglie;Interventi assistenziali;Altri assegni e sussidi assistenziali
697;466,06;SOGGETTI DIVERSI; ;15/05/2023;1919;6;1;Spese correnti;Trasferimenti correnti;Trasferimenti correnti a Famiglie;Interventi assistenziali;Altri assegni e sussidi assistenziali
698;479,78;SOGGETTI DIVERSI; ;15/05/2023;1916;0;1;Spese correnti;Trasferimenti correnti;Trasferimenti correnti a Famiglie;Interventi assistenziali;Altri assegni e sussidi assistenziali
699;300;SOGGETTI DIVERSI; ;15/05/2023;1919;6;1;Spese correnti;Trasferimenti correnti;Trasferimenti correnti a Famiglie;Interventi assistenziali;Altri assegni e sussidi assistenziali
700;275;SOGGETTI DIVERSI; ;15/05/2023;1919;6;1;Spese correnti;Trasferimenti correnti;Trasferimenti correnti a Famiglie;Interventi assistenziali;Altri assegni e sussidi assistenziali
701;119,72;OMESSO NOMINATIVO NEL RISPETTO DELLA NORMATIVA SULLA PROTEZIONE DATI PERSONALI; ;15/05/2023;1920;15;1;Spese correnti;Trasferimenti correnti;Trasferimenti correnti a Famiglie;Interventi assistenziali;Altri assegni e sussidi assistenziali
702;94,84;OMESSO NOMINATIVO NEL RISPETTO DELLA NORMATIVA SULLA PROTEZIONE DATI PERSONALI; ;15/05/2023;1920;15;1;Spese correnti;Trasferimenti correnti;Trasferimenti correnti a Famiglie;Interventi assistenziali;Altri assegni e sussidi assistenziali
703;156,25;OMESSO NOMINATIVO NEL RISPETTO DELLA NORMATIVA SULLA PROTEZIONE DATI PERSONALI; ;15/05/2023;1920;15;1;Spese correnti;Trasferimenti correnti;Trasferimenti correnti a Famiglie;Interventi assistenziali;Altri assegni e sussidi assistenziali
704;166,26;OMESSO NOMINATIVO NEL RISPETTO DELLA NORMATIVA SULLA PROTEZIONE DATI PERSONALI; ;15/05/2023;1920;15;1;Spese correnti;Trasferimenti correnti;Trasferimenti correnti a Famiglie;Interventi assistenziali;Altri assegni e sussidi assistenziali
705;375;OMESSO NOMINATIVO NEL RISPETTO DELLA NORMATIVA SULLA PROTEZIONE DATI PERSONALI; ;15/05/2023;1920;15;1;Spese correnti;Trasferimenti correnti;Trasferimenti correnti a Famiglie;Interventi assistenziali;Altri assegni e sussidi assistenziali
706;158,24;OMESSO NOMINATIVO NEL RISPETTO DELLA NORMATIVA SULLA PROTEZIONE DATI PERSONALI; ;15/05/2023;1920;15;1;Spese correnti;Trasferimenti correnti;Trasferimenti correnti a Famiglie;Interventi assistenziali;Altri assegni e sussidi assistenziali
707;181,87;OMESSO NOMINATIVO NEL RISPETTO DELLA NORMATIVA SULLA PROTEZIONE DATI PERSONALI; ;15/05/2023;1920;15;1;Spese correnti;Trasferimenti correnti;Trasferimenti correnti a Famiglie;Interventi assistenziali;Altri assegni e sussidi assistenziali
708;363,74;COOP. SOCIALE ADEST A R.L. ONLUS; ;15/05/2023;1920;15;1;Spese correnti;Trasferimenti correnti;Trasferimenti correnti a Famiglie;Interventi assistenziali;Altri assegni e sussidi assistenziali
709;500;OMESSO NOMINATIVO NEL RISPETTO DELLA NORMATIVA SULLA PROTEZIONE DATI PERSONALI; ;15/05/2023;1920;15;1;Spese correnti;Trasferimenti correnti;Trasferimenti correnti a Famiglie;Interventi assistenziali;Altri assegni e sussidi assistenziali
710;2.036,66;OMESSO NOMINATIVO NEL RISPETTO DELLA NORMATIVA SULLA PROTEZIONE DATI PERSONALI; ;15/05/2023;1920;15;1;Spese correnti;Trasferimenti correnti;Trasferimenti correnti a Famiglie;Interventi assistenziali;Altri assegni e sussidi assistenziali
711;500;OMESSO NOMINATIVO NEL RISPETTO DELLA NORMATIVA SULLA PROTEZIONE DATI PERSONALI; ;15/05/2023;1920;15;1;Spese correnti;Trasferimenti correnti;Trasferimenti correnti a Famiglie;Interventi assistenziali;Altri assegni e sussidi assistenziali
712;352,5;OMESSO NOMINATIVO NEL RISPETTO DELLA NORMATIVA SULLA PROTEZIONE DATI PERSONALI; ;15/05/2023;1920;15;1;Spese correnti;Trasferimenti correnti;Trasferimenti correnti a Famiglie;Interventi assistenziali;Altri assegni e sussidi assistenziali
713;485;OMESSO NOMINATIVO NEL RISPETTO DELLA NORMATIVA SULLA PROTEZIONE DATI PERSONALI; ;15/05/2023;1920;15;1;Spese correnti;Trasferimenti correnti;Trasferimenti correnti a Famiglie;Interventi assistenziali;Altri assegni e sussidi assistenziali
714;705;OMESSO NOMINATIVO NEL RISPETTO DELLA NORMATIVA SULLA PROTEZIONE DATI PERSONALI; ;15/05/2023;1920;15;1;Spese correnti;Trasferimenti correnti;Trasferimenti correnti a Famiglie;Interventi assistenziali;Altri assegni e sussidi assistenziali
715;750;OMESSO NOMINATIVO NEL RISPETTO DELLA NORMATIVA SULLA PROTEZIONE DATI PERSONALI; ;15/05/2023;1920;15;1;Spese correnti;Trasferimenti correnti;Trasferimenti correnti a Famiglie;Interventi assistenziali;Altri assegni e sussidi assistenziali
716;312,5;OMESSO NOMINATIVO NEL RISPETTO DELLA NORMATIVA SULLA PROTEZIONE DATI PERSONALI; ;15/05/2023;1920;15;1;Spese correnti;Trasferimenti correnti;Trasferimenti correnti a Famiglie;Interventi assistenziali;Altri assegni e sussidi assistenziali
717;145,61;OMESSO NOMINATIVO NEL RISPETTO DELLA NORMATIVA SULLA PROTEZIONE DATI PERSONALI; ;15/05/2023;1920;15;1;Spese correnti;Trasferimenti correnti;Trasferimenti correnti a Famiglie;Interventi assistenziali;Altri assegni e sussidi assistenziali
718;166,66;OMESSO NOMINATIVO NEL RISPETTO DELLA NORMATIVA SULLA PROTEZIONE DATI PERSONALI; ;15/05/2023;1920;15;1;Spese correnti;Trasferimenti correnti;Trasferimenti correnti a Famiglie;Interventi assistenziali;Altri assegni e sussidi assistenziali
719;422,39;OMESSO NOMINATIVO NEL RISPETTO DELLA NORMATIVA SULLA PROTEZIONE DATI PERSONALI; ;15/05/2023;1920;15;1;Spese correnti;Trasferimenti correnti;Trasferimenti correnti a Famiglie;Interventi assistenziali;Altri assegni e sussidi assistenziali
720;172,35;OMESSO NOMINATIVO NEL RISPETTO DELLA NORMATIVA SULLA PROTEZIONE DATI PERSONALI; ;15/05/2023;1920;15;1;Spese correnti;Trasferimenti correnti;Trasferimenti correnti a Famiglie;Interventi assistenziali;Altri assegni e sussidi assistenziali
721;484;OMESSO NOMINATIVO NEL RISPETTO DELLA NORMATIVA SULLA PROTEZIONE DATI PERSONALI; ;15/05/2023;1920;15;1;Spese correnti;Trasferimenti correnti;Trasferimenti correnti a Famiglie;Interventi assistenziali;Altri assegni e sussidi assistenziali
722;73,97;OMESSO NOMINATIVO NEL RISPETTO DELLA NORMATIVA SULLA PROTEZIONE DATI PERSONALI; ;15/05/2023;1920;15;1;Spese correnti;Trasferimenti correnti;Trasferimenti correnti a Famiglie;Interventi assistenziali;Altri assegni e sussidi assistenziali
723;1.134,67;OMESSO NOMINATIVO NEL RISPETTO DELLA NORMATIVA SULLA PROTEZIONE DATI PERSONALI; ;15/05/2023;1920;0;1;Spese correnti;Trasferimenti correnti;Trasferimenti correnti a Famiglie;Interventi assistenziali;Altri assegni e sussidi assistenziali
724;1.611,79;OMESSO NOMINATIVO NEL RISPETTO DELLA NORMATIVA SULLA PROTEZIONE DATI PERSONALI; ;15/05/2023;1920;0;1;Spese correnti;Trasferimenti correnti;Trasferimenti correnti a Famiglie;Interventi assistenziali;Altri assegni e sussidi assistenziali
725;337,16;OMESSO NOMINATIVO NEL RISPETTO DELLA NORMATIVA SULLA PROTEZIONE DATI PERSONALI; ;15/05/2023;1920;15;1;Spese correnti;Trasferimenti correnti;Trasferimenti correnti a Famiglie;Interventi assistenziali;Altri assegni e sussidi assistenziali
726;333,02;OMESSO NOMINATIVO NEL RISPETTO DELLA NORMATIVA SULLA PROTEZIONE DATI PERSONALI; ;15/05/2023;1920;15;1;Spese correnti;Trasferimenti correnti;Trasferimenti correnti a Famiglie;Interventi assistenziali;Altri assegni e sussidi assistenziali
727;242,72;OMESSO NOMINATIVO NEL RISPETTO DELLA NORMATIVA SULLA PROTEZIONE DATI PERSONALI; ;15/05/2023;1920;15;1;Spese correnti;Trasferimenti correnti;Trasferimenti correnti a Famiglie;Interventi assistenziali;Altri assegni e sussidi assistenziali
728;422,13;OMESSO NOMINATIVO NEL RISPETTO DELLA NORMATIVA SULLA PROTEZIONE DATI PERSONALI; ;15/05/2023;1920;15;1;Spese correnti;Trasferimenti correnti;Trasferimenti correnti a Famiglie;Interventi assistenziali;Altri assegni e sussidi assistenziali
729;189,54;OMESSO NOMINATIVO NEL RISPETTO DELLA NORMATIVA SULLA PROTEZIONE DATI PERSONALI; ;15/05/2023;1920;15;1;Spese correnti;Trasferimenti correnti;Trasferimenti correnti a Famiglie;Interventi assistenziali;Altri assegni e sussidi assistenziali
730;159,38;OMESSO NOMINATIVO NEL RISPETTO DELLA NORMATIVA SULLA PROTEZIONE DATI PERSONALI; ;15/05/2023;1920;15;1;Spese correnti;Trasferimenti correnti;Trasferimenti correnti a Famiglie;Interventi assistenziali;Altri assegni e sussidi assistenziali
731;256,39;OMESSO NOMINATIVO NEL RISPETTO DELLA NORMATIVA SULLA PROTEZIONE DATI PERSONALI; ;15/05/2023;1920;0;1;Spese correnti;Trasferimenti correnti;Trasferimenti correnti a Famiglie;Interventi assistenziali;Altri assegni e sussidi assistenziali
732;256,39;OMESSO NOMINATIVO NEL RISPETTO DELLA NORMATIVA SULLA PROTEZIONE DATI PERSONALI; ;15/05/2023;1920;0;1;Spese correnti;Trasferimenti correnti;Trasferimenti correnti a Famiglie;Interventi assistenziali;Altri assegni e sussidi assistenziali
733;83,18;OMESSO NOMINATIVO NEL RISPETTO DELLA NORMATIVA SULLA PROTEZIONE DATI PERSONALI; ;15/05/2023;1920;15;1;Spese correnti;Trasferimenti correnti;Trasferimenti correnti a Famiglie;Interventi assistenziali;Altri assegni e sussidi assistenziali
734;150,12;OMESSO NOMINATIVO NEL RISPETTO DELLA NORMATIVA SULLA PROTEZIONE DATI PERSONALI; ;15/05/2023;1920;15;1;Spese correnti;Trasferimenti correnti;Trasferimenti correnti a Famiglie;Interventi assistenziali;Altri assegni e sussidi assistenziali
735;136,15;OMESSO NOMINATIVO NEL RISPETTO DELLA NORMATIVA SULLA PROTEZIONE DATI PERSONALI; ;15/05/2023;1920;15;1;Spese correnti;Trasferimenti correnti;Trasferimenti correnti a Famiglie;Interventi assistenziali;Altri assegni e sussidi assistenziali
736;176,25;OMESSO NOMINATIVO NEL RISPETTO DELLA NORMATIVA SULLA PROTEZIONE DATI PERSONALI; ;15/05/2023;1920;15;1;Spese correnti;Trasferimenti correnti;Trasferimenti correnti a Famiglie;Interventi assistenziali;Altri assegni e sussidi assistenziali
737;92,82;OMESSO NOMINATIVO NEL RISPETTO DELLA NORMATIVA SULLA PROTEZIONE DATI PERSONALI; ;15/05/2023;1920;15;1;Spese correnti;Trasferimenti correnti;Trasferimenti correnti a Famiglie;Interventi assistenziali;Altri assegni e sussidi assistenziali
738;206;OMESSO NOMINATIVO NEL RISPETTO DELLA NORMATIVA SULLA PROTEZIONE DATI PERSONALI; ;15/05/2023;1920;15;1;Spese correnti;Trasferimenti correnti;Trasferimenti correnti a Famiglie;Interventi assistenziali;Altri assegni e sussidi assistenziali
739;250;OMESSO NOMINATIVO NEL RISPETTO DELLA NORMATIVA SULLA PROTEZIONE DATI PERSONALI; ;15/05/2023;1920;15;1;Spese correnti;Trasferimenti correnti;Trasferimenti correnti a Famiglie;Interventi assistenziali;Altri assegni e sussidi assistenziali
740;1.108,35;OMESSO NOMINATIVO NEL RISPETTO DELLA NORMATIVA SULLA PROTEZIONE DATI PERSONALI; ;15/05/2023;1920;0;1;Spese correnti;Trasferimenti correnti;Trasferimenti correnti a Famiglie;Interventi assistenziali;Altri assegni e sussidi assistenziali
741;854;NICOLA ZUDDAS S.R.L.;Z143AB2B1D;16/05/2023;1043;1;1;Spese correnti;Acquisto di beni e servizi;Acquisto di servizi;Servizi informatici e di telecomunicazioni;Gestione e manutenzione applicazioni
742;4.000,01;PRO.TU.SAR. DI PIRAS RAFFAELE;9344454761;16/05/2023;1417;3;1;Spese correnti;Acquisto di beni e servizi;Acquisto di servizi;Contratti di servizio pubblico;Contratti di servizio di trasporto scolastico
743;983,32;ISAR COOPERATIVA SOCIALE ONLUS;Z6E33B9DBA;16/05/2023;1036;0;1;Spese correnti;Acquisto di beni e servizi;Acquisto di servizi;Servizi ausiliari per il funzionamento dell'ente;Servizi di pulizia e lavanderia
744;488;MEDIANET SRL;Z05390F79B;16/05/2023;1043;2;1;Spese correnti;Acquisto di beni e servizi;Acquisto di servizi;Utenze e canoni;Telefonia fissa
745;701,55;SAIU ELETTROSERVICE DI CADDIA GIOVANNA ANGELA;Z593AC571B;16/05/2023;1043;4;1;Spese correnti;Acquisto di beni e servizi;Acquisto di servizi;Prestazioni professionali e specialistiche;Altre prestazioni professionali e specialistiche n.a.c.
746;494;S.I.P.A.L.;ZF6391E520;16/05/2023;1043;4;1;Spese correnti;Acquisto di beni e servizi;Acquisto di servizi;Prestazioni professionali e specialistiche;Altre prestazioni professionali e specialistiche n.a.c.
777;1.980,57;OMESSO NOMINATIVO NEL RISPETTO DELLA NORMATIVA SULLA PROTEZIONE DATI PERSONALI;9146558A6E;19/05/2023;1937;0;1;Spese correnti;Acquisto di beni e servizi;Acquisto di servizi;Utenze e canoni;Energia elettrica
778;2.000,00;ORATORIO CIRCOLO ANSPI B.V. DELLA NEVE; ;19/05/2023;1202;0;1;Spese correnti;Trasferimenti correnti;Trasferimenti correnti a Istituzioni Sociali Private;Trasferimenti correnti a Istituzioni Sociali Private;Trasferimenti correnti a Istituzioni Sociali Private
779;1.000,00;ASSOCIAZIONE VOLONTARI SOCCORSO-GIBA; ;19/05/2023;1520;0;1;Spese correnti;Trasferimenti correnti;Trasferimenti correnti a Istituzioni Sociali Private;Trasferimenti correnti a Istituzioni Sociali Private;Trasferimenti correnti a Istituzioni Sociali Private
780;1.000,00;PROCIV - SANTADI ASSOCIAZIONE VOLONTARI; ;19/05/2023;1520;0;1;Spese correnti;Trasferimenti correnti;Trasferimenti correnti a Istituzioni Sociali Private;Trasferimenti correnti a Istituzioni Sociali Private;Trasferimenti correnti a Istituzioni Sociali Private
781;2.000,00;ORATORIO CIRCOLO ANSPI B.V. DELLA NEVE; ;19/05/2023;1520;0;1;Spese correnti;Trasferimenti correnti;Trasferimenti correnti a Istituzioni Sociali Private;Trasferimenti correnti a Istituzioni Sociali Private;Trasferimenti correnti a Istituzioni Sociali Private
782;1.000,00;LIBERA ASSOCIAZIONE MARIO MEDDA; ;19/05/2023;1520;0;1;Spese correnti;Trasferimenti correnti;Trasferimenti correnti a Istituzioni Sociali Private;Trasferimenti correnti a Istituzioni Sociali Private;Trasferimenti correnti a Istituzioni Sociali Private
783;2.000,00;ASSOCIAZIONE PRO-LOCO PISCINAS; ;19/05/2023;1520;0;1;Spese correnti;Trasferimenti correnti;Trasferimenti correnti a Istituzioni Sociali Private;Trasferimenti correnti a Istituzioni Sociali Private;Trasferimenti correnti a Istituzioni Sociali Private
784;1.000,00;LIBERA ASSOCIAZIONE MARIO MEDDA; ;19/05/2023;1520;0;1;Spese correnti;Trasferimenti correnti;Trasferimenti correnti a Istituzioni Sociali Private;Trasferimenti correnti a Istituzioni Sociali Private;Trasferimenti correnti a Istituzioni Sociali Private
785;2.000,00;UNIONE DEI COMUNI DEL SULCIS; ;19/05/2023;1014;0;1;Spese correnti;Acquisto di beni e servizi;Acquisto di servizi;Altri servizi;Quote di associazioni
786;125;OMESSO NOMINATIVO NEL RISPETTO DELLA NORMATIVA SULLA PROTEZIONE DATI PERSONALI; ;19/05/2023;1920;15;1;Spese correnti;Trasferimenti correnti;Trasferimenti correnti a Famiglie;Interventi assistenziali;Altri assegni e sussidi assistenziali
787;104,38;OMESSO NOMINATIVO NEL RISPETTO DELLA NORMATIVA SULLA PROTEZIONE DATI PERSONALI; ;19/05/2023;1920;15;1;Spese correnti;Trasferimenti correnti;Trasferimenti correnti a Famiglie;Interventi assistenziali;Altri assegni e sussidi assistenziali
788;1.628,33;OMESSO NOMINATIVO NEL RISPETTO DELLA NORMATIVA SULLA PROTEZIONE DATI PERSONALI; ;19/05/2023;1920;15;1;Spese correnti;Trasferimenti correnti;Trasferimenti correnti a Famiglie;Interventi assistenziali;Altri assegni e sussidi assistenziali
789;23.071,06;OMESSO NOMINATIVO NEL RISPETTO DELLA NORMATIVA SULLA PROTEZIONE DATI PERSONALI;Z593921117;25/05/2023;3405;0;2;Spese in conto capitale;Investimenti fissi lordi e acquisto di terreni;Beni materiali;Beni immobili;Impianti sportivi
790;1.944,68;SA FERULA Societa Cooperativa;ZE23B2D0BF;25/05/2023;3004;1;2;Spese in conto capitale;Investimenti fissi lordi e acquisto di terreni;Beni materiali;Attrezzature;Attrezzature n.a.c.
791;1.460,56;COMUNE DI CARBONIA; ;25/05/2023;1478;0;1;Spese correnti;Trasferimenti correnti;Trasferimenti correnti a Amministrazioni Pubbliche;Trasferimenti correnti a Amministrazioni Locali;Trasferimenti correnti a Comuni
792;122;MAAFI WIDED;Z2E3AC5843;25/05/2023;1043;4;1;Spese correnti;Acquisto di beni e servizi;Acquisto di servizi;Prestazioni professionali e specialistiche;Altre prestazioni professionali e specialistiche n.a.c.
793;1.956,15;DIVERSI; ;29/05/2023;1001;0;1;Spese correnti;Acquisto di beni e servizi;Acquisto di servizi;Organi e incarichi istituzionali dell'amministrazione;Organi istituzionali dell'amministrazione - Indennità
796;101,16;DIVERSI; ;30/05/2023;1919;6;1;Spese correnti;Trasferimenti correnti;Trasferimenti correnti a Famiglie;Interventi assistenziali;Altri assegni e sussidi assistenziali
797;24,08;INPDAP PRESTAZIONI PREVIDENZIALI; ;30/05/2023;1919;6;1;Spese correnti;Trasferimenti correnti;Trasferimenti correnti a Famiglie;Interventi assistenziali;Altri assegni e sussidi assistenziali
798;8,59;REGIONE AUTONOMA SARDEGNA - I.R.A.P.; ;30/05/2023;1919;6;1;Spese correnti;Trasferimenti correnti;Trasferimenti correnti a Famiglie;Interventi assistenziali;Altri assegni e sussidi assistenziali
804;6.841,72;CASSA DEPOSITI E PRESTITI; ;06/06/2023;1942;0;1;Spese correnti;Interessi passivi;Interessi su Mutui e altri finanziamenti a medio lungo termine;Interessi passivi su finanziamenti a medio lungo termine a Imprese;Interessi passivi a Cassa Depositi e Prestiti SPA su mutui e altri finanziamenti a medio lungo termine
805;351,51;AGROCUI SRL;ZCC3A8C1FD;06/06/2023;1742;0;1;Spese correnti;Acquisto di beni e servizi;Acquisto di servizi;Altri servizi;Altri servizi diversi n.a.c.
806;640,5;SAIU ELETTROSERVICE DI CADDIA GIOVANNA ANGELA;Z0D380CD3E;06/06/2023;1938;0;1;Spese correnti;Acquisto di beni e servizi;Acquisto di servizi;Contratti di servizio pubblico;Contratti di servizio per l'illuminazione pubblica
807;3.238,15;SAIU ELETTROSERVICE DI CADDIA GIOVANNA ANGELA;Z923AB7837;06/06/2023;1089;2;1;Spese correnti;Acquisto di beni e servizi;Acquisto di servizi;Manutenzione ordinaria e riparazioni;Manutenzione ordinaria e riparazioni di impianti e macchinari
808;77,65;ENEL ENERGIA S.P.A.;9146558A6E;08/06/2023;1366;3;1;Spese correnti;Acquisto di beni e servizi;Acquisto di servizi;Utenze e canoni;Energia elettrica
809;296,5;ENEL ENERGIA S.P.A.;9146558A6E;08/06/2023;1086;0;1;Spese correnti;Acquisto di beni e servizi;Acquisto di servizi;Utenze e canoni;Energia elettrica
810;55,64;ENEL ENERGIA S.P.A.;9146558A6E;08/06/2023;1090;0;1;Spese correnti;Acquisto di beni e servizi;Acquisto di servizi;Utenze e canoni;Energia elettrica
811;55,41;ENEL ENERGIA S.P.A.;9146558A6E;08/06/2023;1826;1;1;Spese correnti;Acquisto di beni e servizi;Acquisto di servizi;Utenze e canoni;Energia elettrica
811;162,09;ENEL ENERGIA S.P.A.;9146558A6E;08/06/2023;1826;1;1;Spese correnti;Acquisto di beni e servizi;Acquisto di servizi;Utenze e canoni;Energia elettrica
812;112,2;ENEL ENERGIA S.P.A.;9146558A6E;08/06/2023;1526;0;1;Spese correnti;Acquisto di beni e servizi;Acquisto di servizi;Utenze e canoni;Energia elettrica
812;18,21;ENEL ENERGIA S.P.A.;9146558A6E;08/06/2023;1526;0;1;Spese correnti;Acquisto di beni e servizi;Acquisto di servizi;Utenze e canoni;Energia elettrica
812;460,96;ENEL ENERGIA S.P.A.;9146558A6E;08/06/2023;1526;0;1;Spese correnti;Acquisto di beni e servizi;Acquisto di servizi;Utenze e canoni;Energia elettrica
813;180,73;ENEL ENERGIA S.P.A.;9146558A6E;08/06/2023;1386;2;1;Spese correnti;Acquisto di beni e servizi;Acquisto di servizi;Utenze e canoni;Energia elettrica
814;27,83;ENEL ENERGIA S.P.A.;9146558A6E;08/06/2023;1087;2;1;Spese correnti;Acquisto di beni e servizi;Acquisto di servizi;Utenze e canoni;Energia elettrica
814;97,67;ENEL ENERGIA S.P.A.;9146558A6E;08/06/2023;1087;2;1;Spese correnti;Acquisto di beni e servizi;Acquisto di servizi;Utenze e canoni;Energia elettrica
814;874,24;ENEL ENERGIA S.P.A.;9146558A6E;08/06/2023;1087;2;1;Spese correnti;Acquisto di beni e servizi;Acquisto di servizi;Utenze e canoni;Energia elettrica
815;77,24;ENEL ENERGIA S.P.A.;9146558A6E;08/06/2023;1656;1;1;Spese correnti;Acquisto di beni e servizi;Acquisto di servizi;Utenze e canoni;Energia elettrica
816;18,21;ENEL ENERGIA S.P.A.;9146558A6E;08/06/2023;1937;0;1;Spese correnti;Acquisto di beni e servizi;Acquisto di servizi;Utenze e canoni;Energia elettrica
816;31,42;ENEL ENERGIA S.P.A.;9146558A6E;08/06/2023;1937;0;1;Spese correnti;Acquisto di beni e servizi;Acquisto di servizi;Utenze e canoni;Energia elettrica
816;139,74;ENEL ENERGIA S.P.A.;9146558A6E;08/06/2023;1937;0;1;Spese correnti;Acquisto di beni e servizi;Acquisto di servizi;Utenze e canoni;Energia elettrica
816;164,07;ENEL ENERGIA S.P.A.;9146558A6E;08/06/2023;1937;0;1;Spese correnti;Acquisto di beni e servizi;Acquisto di servizi;Utenze e canoni;Energia elettrica
816;294,94;ENEL ENERGIA S.P.A.;9146558A6E;08/06/2023;1937;0;1;Spese correnti;Acquisto di beni e servizi;Acquisto di servizi;Utenze e canoni;Energia elettrica
816;543,44;ENEL ENERGIA S.P.A.;9146558A6E;08/06/2023;1937;0;1;Spese correnti;Acquisto di beni e servizi;Acquisto di servizi;Utenze e canoni;Energia elettrica
816;960,47;ENEL ENERGIA S.P.A.;9146558A6E;08/06/2023;1937;0;1;Spese correnti;Acquisto di beni e servizi;Acquisto di servizi;Utenze e canoni;Energia elettrica
817;2.037,34;ECOGREEN COOPERATIVA SOCIALE;9669337D4E;08/06/2023;1092;1;1;Spese correnti;Acquisto di beni e servizi;Acquisto di servizi;Altri servizi;Acquisto di sevizi per verde e arredo urbano
818;3.367,60;ECOGREEN COOPERATIVA SOCIALE;967226800F;08/06/2023;1742;0;1;Spese correnti;Acquisto di beni e servizi;Acquisto di servizi;Altri servizi;Altri servizi diversi n.a.c.
819;686,99;KUWAIT PETROLEUM ITALIA SPA;Z5235D861D;08/06/2023;1057;0;1;Spese correnti;Acquisto di beni e servizi;Acquisto di beni;Altri beni di consumo;Carburanti, combustibili e lubrificanti
896;533,92;SOGGETTI DIVERSI; ;20/06/2023;1916;0;1;Spese correnti;Trasferimenti correnti;Trasferimenti correnti a Famiglie;Interventi assistenziali;Altri assegni e sussidi assistenziali
897;246,75;OMESSO NOMINATIVO NEL RISPETTO DELLA NORMATIVA SULLA PROTEZIONE DATI PERSONALI; ;20/06/2023;1920;15;1;Spese correnti;Trasferimenti correnti;Trasferimenti correnti a Famiglie;Interventi assistenziali;Altri assegni e sussidi assistenziali
898;118,7;OMESSO NOMINATIVO NEL RISPETTO DELLA NORMATIVA SULLA PROTEZIONE DATI PERSONALI; ;20/06/2023;1920;15;1;Spese correnti;Trasferimenti correnti;Trasferimenti correnti a Famiglie;Interventi assistenziali;Altri assegni e sussidi assistenziali
899;156,25;OMESSO NOMINATIVO NEL RISPETTO DELLA NORMATIVA SULLA PROTEZIONE DATI PERSONALI; ;20/06/2023;1920;15;1;Spese correnti;Trasferimenti correnti;Trasferimenti correnti a Famiglie;Interventi assistenziali;Altri assegni e sussidi assistenziali
900;303,72;SOGGETTI DIVERSI; ;20/06/2023;1917;0;1;Spese correnti;Trasferimenti correnti;Trasferimenti correnti a Famiglie;Interventi assistenziali;Altri assegni e sussidi assistenziali
901;217,57;OMESSO NOMINATIVO NEL RISPETTO DELLA NORMATIVA SULLA PROTEZIONE DATI PERSONALI; ;20/06/2023;1920;15;1;Spese correnti;Trasferimenti correnti;Trasferimenti correnti a Famiglie;Interventi assistenziali;Altri assegni e sussidi assistenziali
902;250,08;OMESSO NOMINATIVO NEL RISPETTO DELLA NORMATIVA SULLA PROTEZIONE DATI PERSONALI; ;20/06/2023;1920;15;1;Spese correnti;Trasferimenti correnti;Trasferimenti correnti a Famiglie;Interventi assistenziali;Altri assegni e sussidi assistenziali
903;73,34;OMESSO NOMINATIVO NEL RISPETTO DELLA NORMATIVA SULLA PROTEZIONE DATI PERSONALI; ;20/06/2023;1920;15;1;Spese correnti;Trasferimenti correnti;Trasferimenti correnti a Famiglie;Interventi assistenziali;Altri assegni e sussidi assistenziali
904;61,01;OMESSO NOMINATIVO NEL RISPETTO DELLA NORMATIVA SULLA PROTEZIONE DATI PERSONALI; ;20/06/2023;1920;15;1;Spese correnti;Trasferimenti correnti;Trasferimenti correnti a Famiglie;Interventi assistenziali;Altri assegni e sussidi assistenziali
905;158,82;OMESSO NOMINATIVO NEL RISPETTO DELLA NORMATIVA SULLA PROTEZIONE DATI PERSONALI; ;20/06/2023;1920;15;1;Spese correnti;Trasferimenti correnti;Trasferimenti correnti a Famiglie;Interventi assistenziali;Altri assegni e sussidi assistenziali
906;168,37;OMESSO NOMINATIVO NEL RISPETTO DELLA NORMATIVA SULLA PROTEZIONE DATI PERSONALI; ;20/06/2023;1920;15;1;Spese correnti;Trasferimenti correnti;Trasferimenti correnti a Famiglie;Interventi assistenziali;Altri assegni e sussidi assistenziali
907;375;OMESSO NOMINATIVO NEL RISPETTO DELLA NORMATIVA SULLA PROTEZIONE DATI PERSONALI; ;20/06/2023;1920;15;1;Spese correnti;Trasferimenti correnti;Trasferimenti correnti a Famiglie;Interventi assistenziali;Altri assegni e sussidi assistenziali
908;110;OMESSO NOMINATIVO NEL RISPETTO DELLA NORMATIVA SULLA PROTEZIONE DATI PERSONALI; ;20/06/2023;1920;15;1;Spese correnti;Trasferimenti correnti;Trasferimenti correnti a Famiglie;Interventi assistenziali;Altri assegni e sussidi assistenziali
909;294,84;OMESSO NOMINATIVO NEL RISPETTO DELLA NORMATIVA SULLA PROTEZIONE DATI PERSONALI; ;20/06/2023;1920;15;1;Spese correnti;Trasferimenti correnti;Trasferimenti correnti a Famiglie;Interventi assistenziali;Altri assegni e sussidi assistenziali
910;36,73;OMESSO NOMINATIVO NEL RISPETTO DELLA NORMATIVA SULLA PROTEZIONE DATI PERSONALI; ;20/06/2023;1920;15;1;Spese correnti;Trasferimenti correnti;Trasferimenti correnti a Famiglie;Interventi assistenziali;Altri assegni e sussidi assistenziali
911;104,49;OMESSO NOMINATIVO NEL RISPETTO DELLA NORMATIVA SULLA PROTEZIONE DATI PERSONALI; ;20/06/2023;1920;15;1;Spese correnti;Trasferimenti correnti;Trasferimenti correnti a Famiglie;Interventi assistenziali;Altri assegni e sussidi assistenziali
912;170,62;OMESSO NOMINATIVO NEL RISPETTO DELLA NORMATIVA SULLA PROTEZIONE DATI PERSONALI; ;20/06/2023;1920;15;1;Spese correnti;Trasferimenti correnti;Trasferimenti correnti a Famiglie;Interventi assistenziali;Altri assegni e sussidi assistenziali
913;176,25;OMESSO NOMINATIVO NEL RISPETTO DELLA NORMATIVA SULLA PROTEZIONE DATI PERSONALI; ;20/06/2023;1920;15;1;Spese correnti;Trasferimenti correnti;Trasferimenti correnti a Famiglie;Interventi assistenziali;Altri assegni e sussidi assistenziali
914;147,26;SOGGETTI DIVERSI; ;20/06/2023;1920;15;1;Spese correnti;Trasferimenti correnti;Trasferimenti correnti a Famiglie;Interventi assistenziali;Altri assegni e sussidi assistenziali
915;245,59;OMESSO NOMINATIVO NEL RISPETTO DELLA NORMATIVA SULLA PROTEZIONE DATI PERSONALI; ;20/06/2023;1920;0;1;Spese correnti;Trasferimenti correnti;Trasferimenti correnti a Famiglie;Interventi assistenziali;Altri assegni e sussidi assistenziali
916;976,98;OMESSO NOMINATIVO NEL RISPETTO DELLA NORMATIVA SULLA PROTEZIONE DATI PERSONALI; ;20/06/2023;1920;0;1;Spese correnti;Trasferimenti correnti;Trasferimenti correnti a Famiglie;Interventi assistenziali;Altri assegni e sussidi assistenziali
917;128,27;OMESSO NOMINATIVO NEL RISPETTO DELLA NORMATIVA SULLA PROTEZIONE DATI PERSONALI; ;21/06/2023;1920;15;1;Spese correnti;Trasferimenti correnti;Trasferimenti correnti a Famiglie;Interventi assistenziali;Altri assegni e sussidi assistenziali
918;138,38;OMESSO NOMINATIVO NEL RISPETTO DELLA NORMATIVA SULLA PROTEZIONE DATI PERSONALI; ;21/06/2023;1920;15;1;Spese correnti;Trasferimenti correnti;Trasferimenti correnti a Famiglie;Interventi assistenziali;Altri assegni e sussidi assistenziali
919;248,71;OMESSO NOMINATIVO NEL RISPETTO DELLA NORMATIVA SULLA PROTEZIONE DATI PERSONALI; ;21/06/2023;1920;15;1;Spese correnti;Trasferimenti correnti;Trasferimenti correnti a Famiglie;Interventi assistenziali;Altri assegni e sussidi assistenziali
920;187,77;OMESSO NOMINATIVO NEL RISPETTO DELLA NORMATIVA SULLA PROTEZIONE DATI PERSONALI; ;21/06/2023;1920;15;1;Spese correnti;Trasferimenti correnti;Trasferimenti correnti a Famiglie;Interventi assistenziali;Altri assegni e sussidi assistenziali
921;131,76;SOGGETTI DIVERSI; ;21/06/2023;1920;15;1;Spese correnti;Trasferimenti correnti;Trasferimenti correnti a Famiglie;Interventi assistenziali;Altri assegni e sussidi assistenziali
922;144,1;OMESSO NOMINATIVO NEL RISPETTO DELLA NORMATIVA SULLA PROTEZIONE DATI PERSONALI; ;21/06/2023;1920;15;1;Spese correnti;Trasferimenti correnti;Trasferimenti correnti a Famiglie;Interventi assistenziali;Altri assegni e sussidi assistenziali
923;2,78;OMESSO NOMINATIVO NEL RISPETTO DELLA NORMATIVA SULLA PROTEZIONE DATI PERSONALI; ;21/06/2023;1920;15;1;Spese correnti;Trasferimenti correnti;Trasferimenti correnti a Famiglie;Interventi assistenziali;Altri assegni e sussidi assistenziali
924;575,69;OMESSO NOMINATIVO NEL RISPETTO DELLA NORMATIVA SULLA PROTEZIONE DATI PERSONALI; ;21/06/2023;1920;0;1;Spese correnti;Trasferimenti correnti;Trasferimenti correnti a Famiglie;Interventi assistenziali;Altri assegni e sussidi assistenziali
925;473,12;OMESSO NOMINATIVO NEL RISPETTO DELLA NORMATIVA SULLA PROTEZIONE DATI PERSONALI; ;21/06/2023;1920;0;1;Spese correnti;Trasferimenti correnti;Trasferimenti correnti a Famiglie;Interventi assistenziali;Altri assegni e sussidi assistenziali
926;166,66;OMESSO NOMINATIVO NEL RISPETTO DELLA NORMATIVA SULLA PROTEZIONE DATI PERSONALI; ;21/06/2023;1920;15;1;Spese correnti;Trasferimenti correnti;Trasferimenti correnti a Famiglie;Interventi assistenziali;Altri assegni e sussidi assistenziali
927;257;OMESSO NOMINATIVO NEL RISPETTO DELLA NORMATIVA SULLA PROTEZIONE DATI PERSONALI; ;21/06/2023;1920;15;1;Spese correnti;Trasferimenti correnti;Trasferimenti correnti a Famiglie;Interventi assistenziali;Altri assegni e sussidi assistenziali
928;263,21;OMESSO NOMINATIVO NEL RISPETTO DELLA NORMATIVA SULLA PROTEZIONE DATI PERSONALI; ;21/06/2023;1920;15;1;Spese correnti;Trasferimenti correnti;Trasferimenti correnti a Famiglie;Interventi assistenziali;Altri assegni e sussidi assistenziali
929;377,44;OMESSO NOMINATIVO NEL RISPETTO DELLA NORMATIVA SULLA PROTEZIONE DATI PERSONALI; ;21/06/2023;1920;15;1;Spese correnti;Trasferimenti correnti;Trasferimenti correnti a Famiglie;Interventi assistenziali;Altri assegni e sussidi assistenziali
930;327,48;OMESSO NOMINATIVO NEL RISPETTO DELLA NORMATIVA SULLA PROTEZIONE DATI PERSONALI; ;21/06/2023;1920;15;1;Spese correnti;Trasferimenti correnti;Trasferimenti correnti a Famiglie;Interventi assistenziali;Altri assegni e sussidi assistenziali
931;326,42;OMESSO NOMINATIVO NEL RISPETTO DELLA NORMATIVA SULLA PROTEZIONE DATI PERSONALI; ;21/06/2023;1920;15;1;Spese correnti;Trasferimenti correnti;Trasferimenti correnti a Famiglie;Interventi assistenziali;Altri assegni e sussidi assistenziali
932;926,05;OMESSO NOMINATIVO NEL RISPETTO DELLA NORMATIVA SULLA PROTEZIONE DATI PERSONALI; ;21/06/2023;1920;0;1;Spese correnti;Trasferimenti correnti;Trasferimenti correnti a Famiglie;Interventi assistenziali;Altri assegni e sussidi assistenziali
933;434,16;OMESSO NOMINATIVO NEL RISPETTO DELLA NORMATIVA SULLA PROTEZIONE DATI PERSONALI; ;21/06/2023;1920;0;1;Spese correnti;Trasferimenti correnti;Trasferimenti correnti a Famiglie;Interventi assistenziali;Altri assegni e sussidi assistenziali
934;233,48;OMESSO NOMINATIVO NEL RISPETTO DELLA NORMATIVA SULLA PROTEZIONE DATI PERSONALI; ;21/06/2023;1920;0;1;Spese correnti;Trasferimenti correnti;Trasferimenti correnti a Famiglie;Interventi assistenziali;Altri assegni e sussidi assistenziali
935;212,46;OMESSO NOMINATIVO NEL RISPETTO DELLA NORMATIVA SULLA PROTEZIONE DATI PERSONALI; ;21/06/2023;1920;0;1;Spese correnti;Trasferimenti correnti;Trasferimenti correnti a Famiglie;Interventi assistenziali;Altri assegni e sussidi assistenziali
936;750,05;OMESSO NOMINATIVO NEL RISPETTO DELLA NORMATIVA SULLA PROTEZIONE DATI PERSONALI; ;21/06/2023;1920;15;1;Spese correnti;Trasferimenti correnti;Trasferimenti correnti a Famiglie;Interventi assistenziali;Altri assegni e sussidi assistenziali
937;170,16;OMESSO NOMINATIVO NEL RISPETTO DELLA NORMATIVA SULLA PROTEZIONE DATI PERSONALI; ;21/06/2023;1920;15;1;Spese correnti;Trasferimenti correnti;Trasferimenti correnti a Famiglie;Interventi assistenziali;Altri assegni e sussidi assistenziali
938;150,36;OMESSO NOMINATIVO NEL RISPETTO DELLA NORMATIVA SULLA PROTEZIONE DATI PERSONALI; ;21/06/2023;1920;15;1;Spese correnti;Trasferimenti correnti;Trasferimenti correnti a Famiglie;Interventi assistenziali;Altri assegni e sussidi assistenziali
939;250;OMESSO NOMINATIVO NEL RISPETTO DELLA NORMATIVA SULLA PROTEZIONE DATI PERSONALI; ;21/06/2023;1920;15;1;Spese correnti;Trasferimenti correnti;Trasferimenti correnti a Famiglie;Interventi assistenziali;Altri assegni e sussidi assistenziali
940;134,71;OMESSO NOMINATIVO NEL RISPETTO DELLA NORMATIVA SULLA PROTEZIONE DATI PERSONALI; ;21/06/2023;1920;15;1;Spese correnti;Trasferimenti correnti;Trasferimenti correnti a Famiglie;Interventi assistenziali;Altri assegni e sussidi assistenziali
941;160,28;OMESSO NOMINATIVO NEL RISPETTO DELLA NORMATIVA SULLA PROTEZIONE DATI PERSONALI; ;21/06/2023;1920;15;1;Spese correnti;Trasferimenti correnti;Trasferimenti correnti a Famiglie;Interventi assistenziali;Altri assegni e sussidi assistenziali
942;5,96;OMESSO NOMINATIVO NEL RISPETTO DELLA NORMATIVA SULLA PROTEZIONE DATI PERSONALI; ;21/06/2023;1920;15;1;Spese correnti;Trasferimenti correnti;Trasferimenti correnti a Famiglie;Interventi assistenziali;Altri assegni e sussidi assistenziali
943;327,06;OMESSO NOMINATIVO NEL RISPETTO DELLA NORMATIVA SULLA PROTEZIONE DATI PERSONALI; ;21/06/2023;1920;15;1;Spese correnti;Trasferimenti correnti;Trasferimenti correnti a Famiglie;Interventi assistenziali;Altri assegni e sussidi assistenziali
944;159,37;OMESSO NOMINATIVO NEL RISPETTO DELLA NORMATIVA SULLA PROTEZIONE DATI PERSONALI; ;21/06/2023;1920;15;1;Spese correnti;Trasferimenti correnti;Trasferimenti correnti a Famiglie;Interventi assistenziali;Altri assegni e sussidi assistenziali
945;705;OMESSO NOMINATIVO NEL RISPETTO DELLA NORMATIVA SULLA PROTEZIONE DATI PERSONALI; ;21/06/2023;1920;15;1;Spese correnti;Trasferimenti correnti;Trasferimenti correnti a Famiglie;Interventi assistenziali;Altri assegni e sussidi assistenziali
946;768,45;OMESSO NOMINATIVO NEL RISPETTO DELLA NORMATIVA SULLA PROTEZIONE DATI PERSONALI; ;21/06/2023;1920;0;1;Spese correnti;Trasferimenti correnti;Trasferimenti correnti a Famiglie;Interventi assistenziali;Altri assegni e sussidi assistenziali
947;368,52;OMESSO NOMINATIVO NEL RISPETTO DELLA NORMATIVA SULLA PROTEZIONE DATI PERSONALI; ;21/06/2023;1920;0;1;Spese correnti;Trasferimenti correnti;Trasferimenti correnti a Famiglie;Interventi assistenziali;Altri assegni e sussidi assistenziali
948;18,64;OMESSO NOMINATIVO NEL RISPETTO DELLA NORMATIVA SULLA PROTEZIONE DATI PERSONALI; ;21/06/2023;1920;0;1;Spese correnti;Trasferimenti correnti;Trasferimenti correnti a Famiglie;Interventi assistenziali;Altri assegni e sussidi assistenziali
949;40,57;OMESSO NOMINATIVO NEL RISPETTO DELLA NORMATIVA SULLA PROTEZIONE DATI PERSONALI; ;21/06/2023;1920;0;1;Spese correnti;Trasferimenti correnti;Trasferimenti correnti a Famiglie;Interventi assistenziali;Altri assegni e sussidi assistenziali
950;749,77;OMESSO NOMINATIVO NEL RISPETTO DELLA NORMATIVA SULLA PROTEZIONE DATI PERSONALI; ;21/06/2023;1920;0;1;Spese correnti;Trasferimenti correnti;Trasferimenti correnti a Famiglie;Interventi assistenziali;Altri assegni e sussidi assistenziali
951;337,04;OMESSO NOMINATIVO NEL RISPETTO DELLA NORMATIVA SULLA PROTEZIONE DATI PERSONALI; ;21/06/2023;1920;0;1;Spese correnti;Trasferimenti correnti;Trasferimenti correnti a Famiglie;Interventi assistenziali;Altri assegni e sussidi assistenziali
952;22,91;OMESSO NOMINATIVO NEL RISPETTO DELLA NORMATIVA SULLA PROTEZIONE DATI PERSONALI; ;21/06/2023;1920;0;1;Spese correnti;Trasferimenti correnti;Trasferimenti correnti a Famiglie;Interventi assistenziali;Altri assegni e sussidi assistenziali
953;43,93;OMESSO NOMINATIVO NEL RISPETTO DELLA NORMATIVA SULLA PROTEZIONE DATI PERSONALI; ;21/06/2023;1920;0;1;Spese correnti;Trasferimenti correnti;Trasferimenti correnti a Famiglie;Interventi assistenziali;Altri assegni e sussidi assistenziali
954;290;SOGGETTI DIVERSI; ;21/06/2023;1919;6;1;Spese correnti;Trasferimenti correnti;Trasferimenti correnti a Famiglie;Interventi assistenziali;Altri assegni e sussidi assistenziali
955;300;SOGGETTI DIVERSI; ;21/06/2023;1919;6;1;Spese correnti;Trasferimenti correnti;Trasferimenti correnti a Famiglie;Interventi assistenziali;Altri assegni e sussidi assistenziali
956;300;SOGGETTI DIVERSI; ;21/06/2023;1919;6;1;Spese correnti;Trasferimenti correnti;Trasferimenti correnti a Famiglie;Interventi assistenziali;Altri assegni e sussidi assistenziali
957;155;SOGGETTI DIVERSI; ;21/06/2023;1919;6;1;Spese correnti;Trasferimenti correnti;Trasferimenti correnti a Famiglie;Interventi assistenziali;Altri assegni e sussidi assistenziali
958;230;SOGGETTI DIVERSI; ;21/06/2023;1919;6;1;Spese correnti;Trasferimenti correnti;Trasferimenti correnti a Famiglie;Interventi assistenziali;Altri assegni e sussidi assistenziali
959;50,37;MINISTERO  - DIPARTIMENTO AFFARI INTERNI; ;21/06/2023;1037;1;1;Spese correnti;Trasferimenti correnti;Trasferimenti correnti a Amministrazioni Pubbliche;Trasferimenti correnti a Amministrazioni Centrali;Trasferimenti correnti a Ministeri
960;184,69;MINISTERO  - DIPARTIMENTO AFFARI INTERNI; ;21/06/2023;1037;1;1;Spese correnti;Trasferimenti correnti;Trasferimenti correnti a Amministrazioni Pubbliche;Trasferimenti correnti a Amministrazioni Centrali;Trasferimenti correnti a Ministeri
961;322,08;NICOLA ZUDDAS S.R.L.;Z6B3B2B0AC;26/06/2023;1089;0;1;Spese correnti;Acquisto di beni e servizi;Acquisto di beni;Altri beni di consumo;Altri beni e materiali di consumo n.a.c.
962;1.065,30;VERDE VITA SRL;ZE2396C1D5;26/06/2023;1739;0;1;Spese correnti;Acquisto di beni e servizi;Acquisto di servizi;Contratti di servizio pubblico;Contratti di servizio per il conferimento in discarica dei rifiuti
963;915;MEDIANET SRL;Z8D3ACA5D5;26/06/2023;1043;1;1;Spese correnti;Acquisto di beni e servizi;Acquisto di servizi;Servizi informatici e di telecomunicazioni;Altri servizi informatici e di telecomunicazioni n.a.c.
964;344;AGROCUI SRL;ZCC3A8C1FD;26/06/2023;1742;0;1;Spese correnti;Acquisto di beni e servizi;Acquisto di servizi;Altri servizi;Altri servizi diversi n.a.c.
965;4.000,01;PRO.TU.SAR. DI PIRAS RAFFAELE;9344454761;26/06/2023;1417;3;1;Spese correnti;Acquisto di beni e servizi;Acquisto di servizi;Contratti di servizio pubblico;Contratti di servizio di trasporto scolastico
966;983,32;ISAR COOPERATIVA SOCIALE ONLUS;Z6E33B9DBA;26/06/2023;1036;0;1;Spese correnti;Acquisto di beni e servizi;Acquisto di servizi;Servizi ausiliari per il funzionamento dell'ente;Servizi di pulizia e lavanderia
967;5.686,07;ECOGREEN COOPERATIVA SOCIALE;967226800F;26/06/2023;1742;0;1;Spese correnti;Acquisto di beni e servizi;Acquisto di servizi;Altri servizi;Altri servizi diversi n.a.c.
968;640,5;SAIU ELETTROSERVICE DI CADDIA GIOVANNA ANGELA;Z0D380CD3E;26/06/2023;1938;0;1;Spese correnti;Acquisto di beni e servizi;Acquisto di servizi;Contratti di servizio pubblico;Contratti di servizio per l'illuminazione pubblica
969;3.652,07;ECOGREEN COOPERATIVA SOCIALE;9669337D4E;26/06/2023;1092;1;1;Spese correnti;Acquisto di beni e servizi;Acquisto di servizi;Altri servizi;Acquisto di sevizi per verde e arredo urbano
970;5.875,84;TEKNOSERVICE S.R.L.;ZAE390CDE5;26/06/2023;1738;0;1;Spese correnti;Acquisto di beni e servizi;Acquisto di servizi;Contratti di servizio pubblico;Contratti di servizio per la raccolta rifiuti
971;1.956,15;DIVERSI; ;27/06/2023;1001;0;1;Spese correnti;Acquisto di beni e servizi;Acquisto di servizi;Organi e incarichi istituzionali dell'amministrazione;Organi istituzionali dell'amministrazione - Indennità
